Workbook

Sheet General Information
B2: TBP Laboratory Benchmarking Questionnaire - Clinical Biochemistry
B3: General Information and Contact Details
B5: Organisation Name: | C5: Please provide your organisation name
B6: Department/Discipline: | C6: Chemistry
B8: Details For Primary Contact Person For This Questionnaire:
B9: Name: | C9: Please provide the name of the primary contact person for this questionnaire
B10: Job Title: | C10: Please provide the job title of the primary contact person for this questionnaire
B11: Email Address: | C11: yourname@your-emailaddress.net
B12: Telephone Number: | C12: 01234 567890
B15: Introduction
B17: Benchmarking has become an essential component in modern strategy planning for NHS Pathology Laboratories across the UK, however the time and effort required to gather the required data has always proven to be a barrier for some. For that reason, this latest version of the TBP Laboratory Benchmarking Questionnaire has been streamlined to strike the perfect balance between ease (and 'quickness') of completion vs gaining maximum value and bang-for-buck back from the data.
B18: The Benchmarking programme itself began at Keele University in 1994, and has progressed through many changes since it first launched. During the past twelve months in particular, however, the service has taken giant strides forwards in terms of data collection processes and the technologies deployed to provide analyses and reporting, to the point that it is now almost unrecognisable. Those returning to the service after a break of even a couple of years will likely be very surprised to see the advancements made across the board in all aspects of the way the process works, and the outputs which are delivered at the end.
B19: In terms of the questionnaires, we have reverted back to providing individual questionnaires for each disicpline (as opposed to the single multi-disciplinary questionnaire which was in use from 2015 to 2019). There is also an additional 'General' questionnaire designed to collate the core data required to assist with peer grouping your laboratory and for reporting some of the 'shared' data, which helps prevent duplication of effort.
B20: This new streamlined questionnaire contains just three vastly shortened and simplified sections for completion: Workload, Staffing & Finance, and Turnaround Times. Each has been designed to be as quick and easy as possible to complete, with guidance notes and a variety of other 'assists' in place to help you through the process. Of course, you are always welcome to contact us at any point for further help and assistance:
B21: enquiries@thebenchmarkingpartnership.com
B22: Once your questionnaire is complete, please return it to us at the email address above. You will receive multiple opportunities to review your data via draft (full) reports, and to submit any changes/revisions as required, so please don't worry too much if you're unsure about any of the data you're submitting in your first submission These things are often easier to spot in context vs your peer group, and in addition we will be providing more advanced data checking tools to assist you this time, so you will have plenty of scope to make amendments if anything looks wrong.
B24: Before You Get Started
B26: We advise enabling macros in order to use the automatic jump-back to this page (see below), however don't worry - the questionnaire can be completed just fine without them.
B27: We also advise running this spreadsheet with calculations set to "Automatic" (found in the 'Formulas' tab under "Calculation Options" in most versions of Excel). Again it's fine to run with calculations set to 'manual', however you will need to press F9 to process any changes you have made (particularly in order to review data via the Summary Data Sense Check Sheet).
B28: Finally, we strongly recommend saving backup versions of this file as you go along (in addition to saving a 'clean' copy somewhere on your hard drive or network). This way you can return to an earlier version without starting all over again in the event of an error occurring somewhere down the line).
B30: Navigation Menu
B32: To help you find your way around the questionnaire, you can click on the following links to guide you to the required section:
B34: Summary Data Sense Check Sheet | C34: Summarises your data entered so far to provide a 'sense check' before submission
B35: Workload Guidance Notes | C35: Guidance notes to help you complete the workload data section
B36: Workload Data Entry | C36: Enter your workload data here - source of workload and individual test volume data
B37: Staffing and Finance Guidance | C37: Guidance notes to help you complete the staffing and finance data section
B38: Staffing and Finance Data Entry | C38: Enter your staffing and finance (non-pay) data here. Pay data no longer required.
B39: Turnaround Times | C39: Enter the turnaround times data for this discipline here
B41: You can return back to this page at any point by pressing CTRL+SHIFT+N simultaneously (provided you have macros enabled)

Sheet Summary Data Sense Check Sheet
B2: ='General Information'!B2:C2 -> TBP Laboratory Benchmarking Questionnaire - Clinical Biochemistry
B3: Summary Data - Sense Checking
B5: Workload Volume | C5: Total Tests (Including Referred Out) | D5: Tests Referred Out | E5: Tests In-House (Calculated)
B6: Total "Traditional" Chemistry Tests | C6: =SUM('Workload Data Entry'!C225,'Workload Data Entry'!C240,'Workload Data Entry'!C288,'Workload Data Entry'!C310,'Workload Data Entry'!C342,'Workload Data Entry'!C360,'Workload Data Entry'!C644) -> 0 | D6: =SUM('Workload Data Entry'!D225,'Workload Data Entry'!D240,'Workload Data Entry'!D288,'Workload Data Entry'!D310,'Workload Data Entry'!D342,'Workload Data Entry'!D360,'Workload Data Entry'!D644) -> 0 | E6: =SUM('Workload Data Entry'!E225,'Workload Data Entry'!E240,'Workload Data Entry'!E288,'Workload Data Entry'!E310,'Workload Data Entry'!E342,'Workload Data Entry'!E360,'Workload Data Entry'!E644) -> 0
B7: Total "Traditional" Immunology Tests | C7: =SUM('Workload Data Entry'!C454,'Workload Data Entry'!C463,'Workload Data Entry'!C472,'Workload Data Entry'!C490,'Workload Data Entry'!C504,'Workload Data Entry'!C507,'Workload Data Entry'!C645) -> 0 | D7: =SUM('Workload Data Entry'!D454,'Workload Data Entry'!D463,'Workload Data Entry'!D472,'Workload Data Entry'!D490,'Workload Data Entry'!D504,'Workload Data Entry'!D507,'Workload Data Entry'!D645) -> 0 | E7: =SUM('Workload Data Entry'!E454,'Workload Data Entry'!E463,'Workload Data Entry'!E472,'Workload Data Entry'!E490,'Workload Data Entry'!E504,'Workload Data Entry'!E507,'Workload Data Entry'!E645) -> 0
B8: Total "Traditional" Haematology and Blood Transfusion Tests | C8: =SUM('Workload Data Entry'!C523,'Workload Data Entry'!C533,'Workload Data Entry'!C557,'Workload Data Entry'!C563,'Workload Data Entry'!C579,'Workload Data Entry'!C593,'Workload Data Entry'!C599,'Workload Data Entry'!C605,'Workload Data Entry'!C616,'Workload Data Entry'!C622,'Workload Data Entry'!C641,'Workload Data Entry'!C646) -> 0 | D8: =SUM('Workload Data Entry'!D523,'Workload Data Entry'!D533,'Workload Data Entry'!D557,'Workload Data Entry'!D563,'Workload Data Entry'!D579,'Workload Data Entry'!D593,'Workload Data Entry'!D599,'Workload Data Entry'!D605,'Workload Data Entry'!D616,'Workload Data Entry'!D622,'Workload Data Entry'!D641,'Workload Data Entry'!D646) -> 0 | E8: =SUM('Workload Data Entry'!E523,'Workload Data Entry'!E533,'Workload Data Entry'!E557,'Workload Data Entry'!E563,'Workload Data Entry'!E579,'Workload Data Entry'!E593,'Workload Data Entry'!E599,'Workload Data Entry'!E605,'Workload Data Entry'!E616,'Workload Data Entry'!E622,'Workload Data Entry'!E641,'Workload Data Entry'!E646) -> 0
B9: Total Any Other/Non-Defined Tests | C9: =SUM('Workload Data Entry'!C648) -> 0 | D9: =SUM('Workload Data Entry'!D648) -> 0 | E9: =SUM('Workload Data Entry'!E648) -> 0
B10: Total Tests | C10: =SUM(C6:C9) -> 0 | D10: =SUM(D6:D9) -> 0 | E10: 0
B12: Staffing Summary | C12: FTE Staff | D12: Salary
B13: Medical Staff (Total) | C13: =SUM('Staffing and Finance Data Entry'!D30:D34) -> 0 | D13: ='Staffing and Finance Data Entry'!D63 -> 0
B14: Clinical Scientists (Including Consultants and Trainees) | C14: =SUM('Staffing and Finance Data Entry'!D37:D40) -> 0 | D14: ='Staffing and Finance Data Entry'!D64 -> 0
B15: Biomedical Scientists (Including Trainees) | C15: =SUM('Staffing and Finance Data Entry'!D43:D45) -> 0 | D15: ='Staffing and Finance Data Entry'!D65 -> 0
B16: Laboratory Support Workers (MLA and Associate Practitioner) | C16: =SUM('Staffing and Finance Data Entry'!D46:D47) -> 0 | D16: ='Staffing and Finance Data Entry'!D66 -> 0
B17: Administrative and Clerical Staff | C17: =SUM('Staffing and Finance Data Entry'!D51) -> 0 | D17: ='Staffing and Finance Data Entry'!D67 -> 0
B18: Remaining Others (Including Additional Payments eg Out of Hours) | C18: =SUM(C19-SUM(C13:C17)) -> 0 | D18: =SUM(D19-SUM(D13:D17)) -> 0
B19: Total | C19: ='Staffing and Finance Data Entry'!D58 -> 0 | D19: ='Staffing and Finance Data Entry'!D60 -> 0
B21: Non Pay and Total Expenditure
B22: Total Non Pay | D22: =SUM('Staffing and Finance Data Entry'!D12) -> 0
B23: Total Expenditure | D23: =SUM(D19,D22) -> 0
B25: Calculated Cost Per Test (Based on Tests In-House): | C25: =IF(ISERROR(IF(D19=0,"",IF(D22=0,"",SUM(D23/E10)))=TRUE),"",IF(D19=0,"",IF(D22=0,"",SUM(D23/E10)))) -> 

Sheet Workload Guidance Notes
B2: ='General Information'!B2:C2 -> TBP Laboratory Benchmarking Questionnaire - Clinical Biochemistry
B3: Workload Guidance Notes
B5: Individual tests data are once again being collected at individual disicpline level (ie separate questionnaire and workload matrix for each discipline). We have provided a complete "Blood Sciences" test list for each individual discipline, even though many of these tests will not be performed in the department for which you are completing this questionnaire. This is because different laboratories operate different multi-disciplinary ways of working, and we wish to allow for any potential combination of tests performed across each department.
B6: However, you should only account for tests performed in your department (ie the department to which this questionnaire relates), and should always include any staff and non-pay costs (within scope) included with performing that workload within this questionnaire. Please do not worry about double-counting across multiple questionnaires at this stage; our data checking system will flag up to you where tests may have been double counted, and will work with you to ensure that any combined calculations of data in your final reports do not include double counting.
B7: Total tests values given should cover the total performed during the latest financial year (1st April 2019 to 31st March 2020)
B9: The use of requests and/or tests as unweighted units of workload measurement varies between departments. Even the definitions of requests and tests vary between departments as well as within departments. However, on-going development with significant input from our user groups and specialty panels have identified the most commonly used definitions of 'request' and 'test' and they are stated below. Workload measurements will never be a flawless comparison across different departments, but these are the closest definitions available and will provide a useful and informative comparison of workload volume when analysed appropriately.
B11: TBP Definition of a 'Test'
B12: "A result produced by an analytical process on a single specimen. Calculated results and comments describing a test or result should NOT be counted as tests." (Do not include analyser indices (e.g. haemolysis, icterus, lipaemia) in your test totals).
B14: Due to problems in many LIMS systems counting 'requests' in Blood Sciences disciplines, we no longer collect data for requests for Chemistry, Haematology, Immunology, or combined Blood Sciences.
B16: Examples of Requests and Tests in Haematology
B18: Full blood count = one request and one test
B19: Full blood count and ESR = one request and two tests
B20: Full blood, ESR, INR, B12 and serum folate = one request and five tests
B22: N.B. 'Diff' should be included with the full blood count as one single test, NOT as a separate test.
B24: PT, APTT, fibrinogen = one request and three tests. (N.B. This applies whether tests are performed on either a semi-automated or a fully automated coagulometer)
B26: Platelet aggregation = 1 request and X number of tests, depending on how many aggregation studies are performed, e.g. ADP and ristocetin = 2 tests.
B28: Blood Transfusion
B29: In the 2001/2002 report, a detailed analysis was taken on definitions of blood transfusion requests and tests. The majority of departments have now agreed the following definitions.
B31: Blood Transfusion Request
B32: A blood transfusion request should be patient focused and related to either (i) specimens taken from one patient at one time on which one or more tests are requested or (ii) a request for blood products/blood components irrespective of number or type of product/components requested at one time which may or may not necessitate a sample from a patient.
B34: N.B. Blood product/component requests ONLY occur when issued separately from red cells.
B36: Blood Transfusion Test
B37: A test is (i) the output of either one analysis or a number of related analyses that produce a reportable conclusion e.g. blood group, antibody screen, or (ii) the workload associated with the issue of blood transfusion products and components measured as follows:
B38: Platelets, fresh frozen plasma and cryo precipitate (measured in bags)
B39: Albumin (measured by bottles irrespective of size and concentration)
B40: Anti-D (measured by the number of vials irrespective of dose)
B41: Coagulation concentrate (measured by the number of bottles irrespective of size, type and concentration)
B42: Intravenous and tetanus immunoglobulin (measured by the number of bottles)
B43: Autologus blood red cell units (measured by the number of units collected)
B44: ·
B45: Blood Transfusion Sample
B46: A blood transfusion sample is patient focused and is related to a specimen taken from one patient and received by the laboratory on which one or more tests are required which may or may not include the provision of blood products and blood components.
B48: Examples of Blood Transfusion and Blood Product Workload
B50: Crossmatch of 4 units of red blood cells = 1 request, 3 tests (blood group, antibody screen, cross match) and 4 blood products/components.
B52: Request for crossmatch of 4 units of red blood cells and 2 units of FFP = 1 request, 3 tests and 6 blood products/components.
B54: Request for 1 unit of platelets and cross match of 4 units of red blood cells = 1 request and 3 tests and either 5 blood products/components (if platelets supplied in one pool), or 10 blood products/components if 6 individual bags of platelets supplied.
B56: Request for 2 bottles of e.g. 4.5% albumin = 1 request and 2 blood products/components and no tests.
B58: Blood Film with Report
B60: Blood film where a manual differential has been performed or an interpretative comment has been made in the report following examination of the film.
B62: Blood Film without Report
B64: A blood film has been prepared as a result of internal laboratory working procedures and no report issued.
B67: Examples of tests in Immunology
B69: How to count results from multiplex ANA assays:
B70: If you use an ANA screen that requires follow up additional tests such as DNA or ENA when the screen is positive (e.g. Phadia CTD/Symphony and ELISA ANA screens) then:
B71: • count the screen as one test under "ANA screen/titre on other substrate"
B72: • count the individual follow on tests as additional tests under DNA or ENA as appropriate
B73: • if you characterise 6 ENA antigen (e.g. Ro, La, Sm, RNP, Jo-1, Scl-70) then count 6 tests for each sample tested for ENA
B75: If you use a multiplex method such as Luminex/Bioplex where the 'screen' simultaneously measures several antigens and follow on testing for DNA and ENA is not required because these are generated as part of the screen (e.g. Bioplex Luminex) then:
B76: • record the number of ANA tests as zero from this method (count any other ANA, e.g. By IIF, as normal)
B77: • record the number of DNAs performed as one for each sample processed
B78: • record the number of ENAs as the number of specificities multiplied by the number of samples processed
B79: • For example, for a test incorporating DNA and 12 'ENAs', record ANA = 0, DNA = 1, ENA = 12 tests for each sample
B80: • The above applies regardless of whether or not each individual specificity is reported, provided that a 'negative' report indicates that all of the specificities are negative
B81: Where an autoantibody screen using a composite tissue block, e.g. stomach ± kidney ± liver is performed to screen for the presence of a combination of autoantibodies, e.g. ANA, Anti-GPC, ARA, ASMA and AMA, this should be reported as one test not the total number of specificities that may be identifiable.
B83: Where an ANA titre is performed following a positive ANA screen this should be reported as one test, not two.
B84: ENA screen = 1 test, ENA characterisation = number of specificities tests for, e.g. if testing for Ro, La, Sm and RNP this equals 4 tests, or equals 6 tests if Scl-70 and Jo-1 are included.
B85: Each immunoglobulin specificity (IgG, IgA, IgM, IgD, IgE) is a test. Similarly, complement C3 and C4 are each individual tests.
B86: Each antiphospholipid antibody specificity (e.g. cardiolipin, β2GPI or anti-phosphatidyl serine antibody) is a separate test. If multiple isotypes (e.g. IgG and IgM isotypes for cardiolipin) are tested, each is one test.
B88: ANCA ELISA MPO = 1, PR3 = 1, therefore if both are undertaken it is two tests.
B90: Pneumococcal serotypes should be counted as separate tests. This also applies to those included in total referred out tests.
B91: In calculating the number of allergy related tests each individual allergen specific Ab sought represents one test UNLESS part of a commercially provided MIX, e.g. Pharmacia Food Mix, in which case the count would be one test (not five for each of the allergens found in the mix). Report multiple allergen strips or immunoblots as single assays on the appropriate line, not as individual specificities.
B93: Lymphocyte phenotyping activity should be reported in terms of each of the panels identified, giving separately the panel specificity.
B94: Lymphocyte phenotyping/subsets for HIV
B95: Lymphocyte phenotyping/subsets for PRIMARY immunodeficiency
B96: Lymphocyte phenotyping/subsets for LYMPHOMA/LEUKAEMIA typing each constitute one panel.

Sheet Workload Data Entry
B2: ='General Information'!B2:C2 -> TBP Laboratory Benchmarking Questionnaire - Clinical Biochemistry
B4: Source of Workload
B6: Source of Workload
B7: Hospitals/laboratories within your overall Trust/Organisation | C7: 0
B8: Other NHS hospitals/laboratories within your network | C8: 0
B9: Other NHS hospitals/laboratories outside your network | C9: 0
B10: Private/non-NHS work | C10: 0
B11: Primary care/GP tests | C11: 0
B12: Any other not listed above | C12: 0
C13: =IF(SUM(C7:C12)<>1,"Attention: Needs To Equal 100%","") -> Attention: Needs To Equal 100%
B16: Individual Tests: Workload Volume
B18: Please provide data for total volume of each test performed during the most recent financial year (1st April 2019 to 31st March 2020). First column (C) should include all tests done, including those referred out. Second column (D) should contain the total volume of each test referred out (ie referred outside of your organisation, not sent to another laboratory site within your organisation). The final column (E) is automatically calculated for you, and shows the total volume of each test performed in-house (for reference).
B19: Due to the fact that departments operate in slightly different multi-disciplinary ways, we have provided a complete list of tests for all 'Blood Sciences' disicplines, starting with "Traditional" Clinical Biochemistry tests (Immunology and Haematology follow below) in order to ensure maximum flexibility. However, you should ONLY include volume data for tests performed within the department that is covered by this questionnaire, and should always also include all staff and relevant non-pay associated with the performance of these tests in the Staffing and Finance section. Please simply ignore all tests not relevant to the department you are filling this questionnaire in for.
B20: The colour coding and highlighting system will help you to quickly find the groups of tests you are looking for:
B22: Clinical Biochemistry | C22: Blue
B23: Immunology | C23: Gold/Yellow
B24: Haematology and Blood Transfusion | C24: Red/Pink
B25: Please refer to guidance notes section for further assistance, including guidance on how to count tests.
B27: "Traditional" Clinical Biochemistry Tests | C27: Total Tests (Including Referred Out) | D27: Tests Referred Out | E27: Tests In-House (Calculated)
B28: Plasma/Serum/Blood
B29: 1,25 Hydroxy Vitamin D | C29: 0 | D29: 0 | E29: =IF(D29>C29,"Error",SUM(C29-D29)) -> 0
B30: 11-Deoxycortisol | C30: 0 | D30: 0 | E30: =IF(D30>C30,"Error",SUM(C30-D30)) -> 0
B31: 17 Hydroxy Progesterone | C31: 0 | D31: 0 | E31: 0
B32: 25 Hydroxy Vitamin D | C32: 0 | D32: 0 | E32: 0
B33: ACTH | C33: 0 | D33: 0 | E33: 0
B34: Acyl Carnitine | C34: 0 | D34: 0 | E34: 0
B35: Adrenaline | C35: 0 | D35: 0 | E35: 0
B36: Albumin | C36: 0 | D36: 0 | E36: 0
B37: Alcohol (Ethanol) | C37: 0 | D37: 0 | E37: 0
B38: Aldosterone | C38: 0 | D38: 0 | E38: 0
B39: Alkaline phosphatase | C39: 0 | D39: 0 | E39: 0
B40: Alkaline phosphatase isoenzymes | C40: 0 | D40: 0 | E40: 0
B41: Alpha 1 Antitrypsin | C41: 0 | D41: 0 | E41: 0
B42: Alpha 1 Antitrypsin Phenotype | C42: 0 | D42: 0 | E42: 0
B43: Alpha-fetoprotein (non-Downs) | C43: 0 | D43: 0 | E43: 0
B44: ALT | C44: 0 | D44: 0 | E44: 0
B45: Aluminium | C45: 0 | D45: 0 | E45: 0
B46: Amino Acids | C46: 0 | D46: 0 | E46: 0
B47: Amiodarone | C47: 0 | D47: 0 | E47: 0
B48: Amitryptiline | C48: 0 | D48: 0 | E48: 0
B49: Ammonia | C49: 0 | D49: 0 | E49: 0
B50: Amylase | C50: 0 | D50: 0 | E50: 0
B51: Androstenedione | C51: 0 | D51: 0 | E51: 0
B52: Angiotensin Converting Enzyme | C52: 0 | D52: 0 | E52: 0
B53: Anti Mullerian hormone | C53: 0 | D53: 0 | E53: 0
B54: Anti thyroid peroxidase antibodies (TPO) | C54: 0 | D54: 0 | E54: 0
B55: Antibiotics (Gentamycin) | C55: 0 | D55: 0 | E55: 0
B56: Antibiotics (Other) | C56: 0 | D56: 0 | E56: 0
B57: Antibiotics (Tobramycin) | C57: 0 | D57: 0 | E57: 0
B58: Antibiotics (Vancomycin) | C58: 0 | D58: 0 | E58: 0
B59: Apo A1 | C59: 0 | D59: 0 | E59: 0
B60: Apo B | C60: 0 | D60: 0 | E60: 0
B61: Apo E Genotype | C61: 0 | D61: 0 | E61: 0
B62: Arsenic | C62: 0 | D62: 0 | E62: 0
B63: Ascorbic acid (Leucocyte) | C63: 0 | D63: 0 | E63: 0
B64: AST | C64: 0 | D64: 0 | E64: 0
B65: B hydroxybutyrate | C65: 0 | D65: 0 | E65: 0
B66: B2 Microglobulin | C66: 0 | D66: 0 | E66: 0
B67: Bicarbonate | C67: 0 | D67: 0 | E67: 0
B68: Bile acids | C68: 0 | D68: 0 | E68: 0
B69: Bilirubin (Conjugated) | C69: 0 | D69: 0 | E69: 0
B70: Bilirubin (Total) | C70: 0 | D70: 0 | E70: 0
B71: Bismuth | C71: 0 | D71: 0 | E71: 0
B72: Blood Gas (count as 1 test, Exclude POCT) | C72: 0 | D72: 0 | E72: 0
B73: Blood Spot TSH | C73: 0 | D73: 0 | E73: 0
B74: BNP/NTproBNP | C74: 0 | D74: 0 | E74: 0
B75: Bone alkaline phosphatase | C75: 0 | D75: 0 | E75: 0
B76: CA 125 | C76: 0 | D76: 0 | E76: 0
B77: CA 15-3 | C77: 0 | D77: 0 | E77: 0
B78: CA 19-9 | C78: 0 | D78: 0 | E78: 0
B79: Cadmium | C79: 0 | D79: 0 | E79: 0
B80: Caeruloplasmin | C80: 0 | D80: 0 | E80: 0
B81: Calcitonin | C81: 0 | D81: 0 | E81: 0
B82: Calcium | C82: 0 | D82: 0 | E82: 0
B83: Carbamazepine | C83: 0 | D83: 0 | E83: 0
B84: Carbohydrate Deficient transferrin | C84: 0 | D84: 0 | E84: 0
B85: Carboxyhaemoglobin | C85: 0 | D85: 0 | E85: 0
B86: Carotene | C86: 0 | D86: 0 | E86: 0
B87: Carotenoids (x1) | C87: 0 | D87: 0 | E87: 0
B88: CEA | C88: 0 | D88: 0 | E88: 0
B89: Chloride | C89: 0 | D89: 0 | E89: 0
B90: Cholesterol | C90: 0 | D90: 0 | E90: 0
B91: Cholinesterase | C91: 0 | D91: 0 | E91: 0
B92: Cholinesterase phenotype (count as 1 test) | C92: 0 | D92: 0 | E92: 0
B93: Chromium | C93: 0 | D93: 0 | E93: 0
B94: CK (Creatine Kinase) | C94: 0 | D94: 0 | E94: =IF(D94>C94,"Error",SUM(C94-D94)) -> 0
B95: CKMB Enzymatic | C95: 0 | D95: 0 | E95: 0
B96: CKMB Mass | C96: 0 | D96: 0 | E96: 0
B97: Cobalt | C97: 0 | D97: 0 | E97: 0
B98: Copper | C98: 0 | D98: 0 | E98: 0
B99: Cortisol | C99: 0 | D99: 0 | E99: 0
B100: C-Reactive Protein | C100: 0 | D100: 0 | E100: 0
B101: Creatinine Enzymatic | C101: 0 | D101: 0 | E101: 0
B102: Creatinine JAFFE | C102: 0 | D102: 0 | E102: 0
B103: CTx | C103: 0 | D103: 0 | E103: 0
B104: Cyclic AMP | C104: 0 | D104: 0 | E104: 0
B105: Cyclosporin | C105: 0 | D105: 0 | E105: 0
B106: Cystatin | C106: 0 | D106: 0 | E106: 0
B107: DHAS/DHEAS | C107: 0 | D107: 0 | E107: 0
B108: Digoxin | C108: 0 | D108: 0 | E108: 0
B109: Dihydrotestosterone | C109: 0 | D109: 0 | E109: 0
B110: Dopamine | C110: 0 | D110: 0 | E110: 0
B111: Downs Screening | C111: 0 | D111: 0 | E111: 0
B112: Ethosuximide | C112: 0 | D112: 0 | E112: 0
B113: Ethylene Glycol | C113: 0 | D113: 0 | E113: 0
B114: Ferritin | C114: 0 | D114: 0 | E114: 0
B115: Flecainide | C115: 0 | D115: 0 | E115: 0
B116: Folate | C116: 0 | D116: 0 | E116: 0
B117: Folate (Red Cell) | C117: 0 | D117: 0 | E117: 0
B118: Fructosamine | C118: 0 | D118: 0 | E118: 0
B119: FSH | C119: 0 | D119: 0 | E119: 0
B120: Gamma Glutamyl Transferase | C120: 0 | D120: 0 | E120: 0
B121: Gastrin | C121: 0 | D121: 0 | E121: 0
B122: Glucagon | C122: 0 | D122: 0 | E122: 0
B123: Glucose | C123: 0 | D123: 0 | E123: 0
B124: Growth Hormone | C124: 0 | D124: 0 | E124: 0
B125: Gut hormone screen | C125: 0 | D125: 0 | E125: 0
B126: Haptoglobin | C126: 0 | D126: 0 | E126: 0
B127: HbA1c | C127: 0 | D127: 0 | E127: 0
B128: HCG (Non-Downs) | C128: 0 | D128: 0 | E128: 0
B129: HDL | C129: 0 | D129: 0 | E129: 0
B130: HFE Genotype (Haemochromatosis) | C130: 0 | D130: 0 | E130: 0
B131: Homocysteine | C131: 0 | D131: 0 | E131: 0
B132: IGF1 | C132: 0 | D132: 0 | E132: 0
B133: IGFBP-3 | C133: 0 | D133: 0 | E133: 0
B134: Inhibin A/B | C134: 0 | D134: 0 | E134: 0
B135: Insulin | C135: 0 | D135: 0 | E135: 0
B136: Insulin C-Peptide | C136: 0 | D136: 0 | E136: 0
B137: Iron | C137: 0 | D137: 0 | E137: 0
B138: Iron Binding Capacity | C138: 0 | D138: 0 | E138: 0
B139: Lactate | C139: 0 | D139: 0 | E139: 0
B140: Lamotrigine | C140: 0 | D140: 0 | E140: 0
B141: LDH | C141: 0 | D141: 0 | E141: 0
B142: LDL (Direct) | C142: 0 | D142: 0 | E142: 0
B143: Lead | C143: 0 | D143: 0 | E143: 0
B144: Leptin | C144: 0 | D144: 0 | E144: 0
B145: LH | C145: 0 | D145: 0 | E145: 0
B146: Lipoprotein Lipase | C146: 0 | D146: 0 | E146: 0
B147: Lithium | C147: 0 | D147: 0 | E147: 0
B148: Lp(a) | C148: 0 | D148: 0 | E148: 0
B149: Macroprolactin | C149: 0 | D149: 0 | E149: 0
B150: Magnesium | C150: 0 | D150: 0 | E150: 0
B151: Manganese | C151: 0 | D151: 0 | E151: 0
B152: Mercury | C152: 0 | D152: 0 | E152: 0
B153: Methaemoglobin | C153: 0 | D153: 0 | E153: 0
B154: Methanol | C154: 0 | D154: 0 | E154: 0
B155: Methotrexate | C155: 0 | D155: 0 | E155: 0
B156: Myoglobin | C156: 0 | D156: 0 | E156: 0
B157: Neurone Specific Enolase | C157: 0 | D157: 0 | E157: 0
B158: Noradrenaline | C158: 0 | D158: 0 | E158: =IF(D158>C158,"Error",SUM(C158-D158)) -> 0
B159: Nortripyline | C159: 0 | D159: 0 | E159: 0
B160: Oestradiol | C160: 0 | D160: 0 | E160: 0
B161: Orosomucoid | C161: 0 | D161: 0 | E161: 0
B162: Osmolality | C162: 0 | D162: 0 | E162: 0
B163: Osteocalcein | C163: 0 | D163: 0 | E163: 0
B164: ELF Testing | C164: 0 | D164: 0 | E164: 0
B165: P111NP (Only those not already included in ELF testing) | C165: 0 | D165: 0 | E165: 0
B166: P1CP (bone markers) | C166: 0 | D166: 0 | E166: 0
B167: P1NP (bone markers) | C167: 0 | D167: 0 | E167: 0
B168: Pancreatic Polypeptide | C168: 0 | D168: 0 | E168: 0
B169: Paracetamol | C169: 0 | D169: 0 | E169: 0
B170: Phenobarbitone | C170: 0 | D170: 0 | E170: 0
B171: Phenytoin | C171: 0 | D171: 0 | E171: 0
B172: Phosphate | C172: 0 | D172: 0 | E172: 0
B173: PKU for Neonatal Screening | C173: 0 | D173: 0 | E173: 0
B174: Placental Alkaline Phosphatase | C174: 0 | D174: 0 | E174: 0
B175: Porphyrins | C175: 0 | D175: 0 | E175: 0
B176: Potassium | C176: 0 | D176: 0 | E176: 0
B177: Procalcitonin | C177: 0 | D177: 0 | E177: 0
B178: Progesterone | C178: 0 | D178: 0 | E178: 0
B179: Proinsulin | C179: 0 | D179: 0 | E179: 0
B180: Prolactin | C180: 0 | D180: 0 | E180: 0
B181: Protein S100 | C181: 0 | D181: 0 | E181: 0
B182: PSA (Free) | C182: 0 | D182: 0 | E182: 0
B183: PSA (Total) | C183: 0 | D183: 0 | E183: 0
B184: PTH | C184: 0 | D184: 0 | E184: 0
B185: PTHrP | C185: 0 | D185: 0 | E185: 0
B186: Pyruvate | C186: 0 | D186: 0 | E186: 0
B187: Quantitative thyroid hormone binding | C187: 0 | D187: 0 | E187: 0
B188: Renin Activity | C188: 0 | D188: 0 | E188: 0
B189: Salicylate | C189: 0 | D189: 0 | E189: 0
B190: Selenium | C190: 0 | D190: 0 | E190: 0
B191: SHBG | C191: 0 | D191: 0 | E191: 0
B192: Sirolimus | C192: 0 | D192: 0 | E192: 0
B193: Sodium | C193: 0 | D193: 0 | E193: 0
B194: Somatostatin | C194: 0 | D194: 0 | E194: 0
B195: Sulphonylureas | C195: 0 | D195: 0 | E195: 0
B196: T3 (free) | C196: 0 | D196: 0 | E196: 0
B197: T3 (Total) | C197: 0 | D197: 0 | E197: 0
B198: T4 (Free) | C198: 0 | D198: 0 | E198: 0
B199: T4 (Total) | C199: 0 | D199: 0 | E199: 0
B200: Tacrolimus (FK 506) | C200: 0 | D200: 0 | E200: 0
B201: Testosterone | C201: 0 | D201: 0 | E201: 0
B202: Theophyline | C202: 0 | D202: 0 | E202: 0
B203: Thiamine Diphosphate | C203: 0 | D203: 0 | E203: 0
B204: Thyroglobulin | C204: 0 | D204: 0 | E204: 0
B205: Thyroid Binding Globulin | C205: 0 | D205: 0 | E205: 0
B206: Total Protein | C206: 0 | D206: 0 | E206: 0
B207: TPMT | C207: 0 | D207: 0 | E207: 0
B208: Transferrin | C208: 0 | D208: 0 | E208: 0
... 417 more rows

Sheet Staffing and Finance Guidance
B2: ='General Information'!B2:C2 -> TBP Laboratory Benchmarking Questionnaire - Clinical Biochemistry
B3: Inputting Your Staffing and Non-Pay Data
B5: Finance Data Configuration
I7: You will begin by configuring the 'Finance' options, which will apply modifiers to your salaries and also allow you to enter your non-pay value. "On Costs" are set to 26% by default, which is a standard contribution made towards things such as pensions and payroll tax.
I12: "High Cost Area Supplement", formerly referred to as 'London Weighting', applies an additional percentage to salaries for organisations based in qualifying geographical areas.
I15: Click here for further information on HCAS.
I17: The database for this report includes 'Actual' salaries submitted by departments in your peer group. However, you can instead choose to apply your settings (including HCAS, on-costs, and average experience for each role, etc) to their data to enable normalised comparability.
I22: "Additional Staff Payments" will include items such as Out Of Hours payments, but can also include anything you may additionally pay staff over and above anything already defined in this setup to ensure you calculated salaries figure is 100% correct.
I27: Our definition for counting 'Non Pay' has been long-established through the National Pathology Benchmarking Programme, and it is important to follow the definition in order to ensure your data are comparable with those of your peer group.
B32: Calculating Non-Pay
B33: Non-pay expenditure should include items such as: Minor capital purchases (£5,000 or below), leasehold payments, reagents costs, maintenance payments and managed service contract costs, depreciation cost estimates for owned equipment, consumables, travel, course and conference fees, etc. Do NOT include blood costs, even if they are on your budget (because some laboratories are nationally funded by the NBTS, or simply do not count blood costs in their budget). You should also NOT include capital charge, transport costs, phlebotomy costs or hospital overhead charges.
B36: Medical Staff Salary Configuration
B38: A range of options derived from national pay guidelines have been provided to help generate accurate salary information for each group of your Medical Staff. The options require you to pick a 'typical' profile which will be most representative of your Medical Staff as a whole, however we appreciate that some departments might struggle to find a suitable profile that will 100% match that of their staff. Under these circumstances you should select the options which generate the closest result in terms of salary, and then use the "Additional Medical Staff Cost Modifier" percentage to make a manual adjustment.
I40: The options provided in the 'Report Setup' page reflect national pay structures for Medical Staff.
I43: Further guidance can be found here.
B45: Please note that there is a section at the bottom of the workforce data entry matrix which will show you the calculated salaries for each core group based on your current options selected and FTE data entered. This is provided for guidance to help you double check the calculated salaries for each selected staff group.
B47: Trainee Contribution Weighting
B49: Whilst trainees make a significant contribution to the overal productivity and efficiency of the laboratory, their overall contribution is not as significant as a fully qualified member of staff. Over the past 20 years our national benchmarking data have attempted to reflect this through "Weighting" percentages for the contribution made to overall output by each key group of trainees (Junior Doctors/SpR, Clinical Scientists, and Biomedical Scientists). This report provides you with the flexibility to adjust the contribution of each group to a figure representative of your organisation. By default the system is set to 36.5% for Junior Doctors/SpR, a figure which was previously recognised nationally, albeit now redundant (we believe) but probably still represents a realistic consistent contribution value. Other trainees are set to 75% by default, but their roles vary greatly by department and so you should adjust these based on your own judgement to best reflect the contribution made by these staff in your department.
I51: Please note: These changes will not be reflected in the worforce data entry matrix in the 'Report Setup' page, however they WILL be reflected in the analyses of the report itself. You should therefore enter the full FTE of these staff, and not attempt to apportion them yourself.
B56: Workforce Data Entry Matrix
I59: The Workforce Data Entry Matrix allows you to allocate all of your FTE staffing values by AfC Band (where relevant) for each job role.
I61: You must only enter data into WHITE boxes.
I62: Shaded boxes with values are automatically updated to show current subtotals for reference.
I64: Do not double count staff. If a member of staff performs a dual role, for example a BMS covers the role of Quality Manager on a 50/50 basis, please apportion their time out as separate FTE for each role (a close estimate is perfectly acceptable) as 0.50 WTE BMS and 0.50 WTE Quality Manager (in this example) etc.
I69: Your FTE staffing data should include all staff in post at the end of the financial year to which you are reporting, ie it should reflect your staffing position at 31st March 2020. You should also include staff on long term sick leave and maternity leave, and all vacancies that are actively being advertised. This means that frozen vacancies, unfunded vacancies and establishment posts that may have been unfilled for some time SHOULD NOT be included.
I78: Do not include phlebotomy staff, nursing staff, porters, or transport staff, even if they are included in your budget. The majority of laboratories typically do not carry these costs, and we are looking to achieve comparability in our cost efficiency data analyses.
I82: Your total staff are listed below for reference, but cannot be amended directly.
B84: Calculating Consultant FTE
B85: FTE Consultants should be calculated based only on their PAs which contribute (either directly or indirectly) to the output, productivity and/or service provision of the laboratory. The FTE figure we use is calculated from the number of PAs that are provided in this way, where 1 PA = 0.10 FTE. Consultants who work more than 10 PAs will be reflected through >1.00 FTE, for example a Consultant who works 12 Laboratory/Diagnostic PAs per week will pro rata at 1.20 WTE. Likewise, a Consultant who works 5 Laboratory/Diagnostic Related PAs per week will pro rata at 0.50 WTE. Salaries calculated by our system will reflect the calculated FTE, not the number of actual people in post. This will ensure your data are consistent with the rest of our database.
B87: PAs related to laboratory/diagnostic work will include obvious areas such as bench work, reporting and interpretation, and laboratory management duties. They will also include things such as attendance at MDT meetings, laboratory staff training, any activities which involve discussion of a laboratory-generated result with a patient or doctor etc, and in-house teaching (i.e. within the laboratory or involving laboratory staff). Essentially, these are DCC PAs not funded by a University, a research grant, a clinical trial, private income, or other source outside the Trust/organisation. We would expect PAs related to areas such as external teaching, private clinics, and research to be excluded.
B89: Salary Adjustments For Experience Level
I92: This reporting system provides you with the ability to specify a 'typical' experience level profile for each staffing group within the data entry matrix in order to more accurately calculate salaries. In the interests of making this process as quick and easy as possible to complete it is simply not feasible to make you specify the individual experience level of every member of staff within your department, so we have opted for an approach which will allow you to specify a 'typical' experience level for each key group of staff, based on nationally agreed pay scale definitions.
I100: These options can be found to the right of the Workforce Data Entry Matrix.
I101: Please apply a common-sense approach to selecting an option which best represents each group within your workforce. Remember that the current salary calculations based on the options you have selected against the FTE data entered are displayed for reference underneath the 'total FTE' column at the bottom of the matrix, so if the total feels a little too low or too high then it can be adjusted until it provides a "best fit". If required any finetuning to overall salary can be compensated in the 'Additional Staff Payments' box towards the top of the matrix.

Sheet Staffing and Finance Data Entry
A1: DO NOT INSERT OR REMOVE ROWS OR COLUMNS
C2: ='General Information'!B2 -> TBP Laboratory Benchmarking Questionnaire - Clinical Biochemistry
C3: Staffing and Finance Data
C5: This year we have taken significant steps to both streamline the data collection process and also deliver more comparable data in your final reports. For this reason we no longer require you to provide salaries data from your finance department, and have instead built a new system for helping you to calculating salaries based on national standards and pay scale definitions. There are a series of options provided that will allow you to generate a salary profile for your workforce that will provide an accurate calculation of salaries, but will also allow us the ability to provide 'normalised' pay cost analyses within your reports (in addition to "actual vs actual"). In other words, your report will also be able to show you the impact that 'having a staffing profile the same as yours' (in terms of things like on-costs, HCAS, level of experience/time in post for key staff, etc) would have on the cost efficiency of the rest of your peer group.
C6: For a full tutorial on how to complete this section please refer to the guidance notes
C8: Finance Configuration
C9: On-Cost Percentage | D9: 0.26 | E9: <<< | F9: Enter on-cost value here ('typical' = 26%)
C10: Apply High Cost Area Supplement (HCAS) | D10: None | E10: <<< | F10: Applies AfC High Cost Area Supplement costs to mid-point salaries (previously referred to as "London Weighting")
C11: Additional Staff Payments (eg Out of Hours) | D11: 0
C12: Total Non-Pay | D12: 0 | E12: <<< | F12: Please refer to the guidance notes below for calculating non-pay
C14: Medical Staff Salary Configuration
C15: Set 'Typical' Consultant Profile For This Department | D15: Default (Mid Point)
C16: Set 'Typical' Consultant Clinical Excellence 2019 Awards Level (England and Wales Only) | D16: Default (Mid Point)
C17: Set 'Typical' Specialist Registrar (SpR) Profile For This Department | D17: Default (Mid Point) | E17: <<< | F17: In order to maintain a consistent UK-wide approach we have retained the 'old' (2002) contract definitions of SpR payscale
C18: Set 'Typical' Pay Level for Remaining Other Medical Staff (Using AfC Midpoint as Baseline) | D18: Default (Mid Point) | E18: <<< | F18: Since the specific roles of any 'other medical staff' can vary greatly, we have used AfC scale as a way to easily create comparative average salary calculations (even though these staff will not be paid using an AfC scale)
C19: Additional Medical Staff Cost Modifier | D19: +0.0% | E19: <<< | F19: Option to further modify mid-point staff costs from -10% to +10% to allow for impact of part-time staff, locums, additional payments etc
C21: Trainee Contribution Weighting
C22: Medical Trainees (Junior Doctors, Specialist Registrars) | D22: 0.365 | E22: <<< | F22: Please note that these options will take effect within the analyses in your reports, but will NOT be reflected in the staffing figures below. You should enter the actual FTE of your trainees, not a value which you have aggregated yourself based on contribution percentage. Your 'Total Staff' may therefore differ in the analyses compared with the totals shown below.
C23: Clinical Scientist Trainees | D23: 0.75
C24: Biomedical Scientist Trainees | D24: 0.75
C25: Apply Workload Weighting to Salary (For Internally Funded Trainees) | D25: No | E25: **NOT SURE THIS ACTUALLY WORKS
C27: Staffing FTE Data - Worforce Data Entry Matrix
C29: Medical Staff | D29: Total Staff FTE
A30: 1 | C30: Medical Consultants Incl Locums (Lab/Related FTE Only) | D30: 0 | E30: <<< | F30: Must be based on Laboratory/Diagnostic Related PAs only (see below guidance note)
A31: 2 | C31: Locum Consultants (Lab/Related FTE Only) | D31: 0 | E31: <<< | F31: Must be based on Laboratory/Diagnostic Related PAs only (see below guidance note)
A32: 3 | C32: Junior Doctors/Specialty Trainees (Specialist Registrar/SpR) - Funded Internally | D32: 0
A33: 4 | C33: Junior Doctors/Specialty Trainees (Specialist Registrar/SpR) - Funded Externally | D33: 0
A34: 5 | C34: Remaining Other Medical Staff | D34: 0 | S34: "Typical" Experience Level of Each Staff Group
S35: (Leave as "Default" to set all to mid-point)
C36: Clinical Scientists | D36: Total Staff FTE | E36: Band 1 | F36: Band 2 | G36: Band 3 | H36: Band 4 | I36: Band 5 | J36: Band 6 | K36: Band 7 | L36: Band 8a | M36: Band 8b | N36: Band 8c | O36: Band 8d | P36: Band 9 | R36: =C36 -> Clinical Scientists | S36: Band 1 | T36: Bands 2-4 | U36: Band 5 | V36: Bands 6-7 | W36: Bands 8a+
A37: 6 | C37: Consultant Clinical Scientists | D37: =SUM(E37:P37) -> 0 | E37: 0 | F37: 0 | G37: 0 | H37: 0 | I37: 0 | J37: 0 | K37: 0 | L37: 0 | M37: 0 | N37: 0 | O37: 0 | P37: 0 | R37: =C37 -> Consultant Clinical Scientists | S37: Default | T37: Default | U37: Default | V37: Default | W37: Default
A38: 7 | C38: Non-Trainee, Non-Consultant Clinical Scientists | D38: =SUM(E38:P38) -> 0 | E38: 0 | F38: 0 | G38: 0 | H38: 0 | I38: 0 | J38: 0 | K38: 0 | L38: 0 | M38: 0 | N38: 0 | O38: 0 | P38: 0 | R38: Non-Trainee, Non-Consultant Clinical Scientists | S38: Default | T38: Default | U38: Default | V38: Default | W38: Default
A39: 8 | C39: Trainee Clinical Scientists - Funded Internally | D39: =SUM(E39:P39) -> 0 | E39: 0 | F39: 0 | G39: 0 | H39: 0 | I39: 0 | J39: 0 | K39: 0 | L39: 0 | M39: 0 | N39: 0 | O39: 0 | P39: 0 | R39: Trainee Clinical Scientists - Funded Internally | S39: Default | T39: Default | U39: Default | V39: Default | W39: Default
A40: 9 | C40: Trainee Clinical Scientists - Funded Externally | D40: 0 | E40: 0 | F40: 0 | G40: 0 | H40: 0 | I40: 0 | J40: 0 | K40: 0 | L40: 0 | M40: 0 | N40: 0 | O40: 0 | P40: 0 | R40: Trainee Clinical Scientists - Funded Externally | S40: Default | T40: Default | U40: Default | V40: Default | W40: Default
C42: BMS and Other Laboratory Staff | D42: Total Staff FTE | E42: Band 1 | F42: Band 2 | G42: Band 3 | H42: Band 4 | I42: Band 5 | J42: Band 6 | K42: Band 7 | L42: Band 8a | M42: Band 8b | N42: Band 8c | O42: Band 8d | P42: Band 9 | R42: =C42 -> BMS and Other Laboratory Staff | S42: Band 1 | T42: Bands 2-4 | U42: Band 5 | V42: Bands 6-7 | W42: Bands 8a+
A43: 10 | C43: Non-Trainee Biomedical Scientists | D43: =SUM(E43:P43) -> 0 | E43: 0 | F43: 0 | G43: 0 | H43: 0 | I43: 0 | J43: 0 | K43: 0 | L43: 0 | M43: 0 | N43: 0 | O43: 0 | P43: 0 | R43: Non-Trainee Biomedical Scientists | S43: Default | T43: Default | U43: Default | V43: Default | W43: Default
A44: 11 | C44: Trainee Biomedical Scientists - Funded Internally | D44: 0 | E44: 0 | F44: 0 | G44: 0 | H44: 0 | I44: 0 | J44: 0 | K44: 0 | L44: 0 | M44: 0 | N44: 0 | O44: 0 | P44: 0 | R44: Trainee Biomedical Scientists - Funded Internally | S44: Default | T44: Default | U44: Default | V44: Default | W44: Default
A45: 12 | C45: Trainee Biomedical Scientists - Funded Externally | D45: =SUM(E45:P45) -> 0 | E45: 0 | F45: 0 | G45: 0 | H45: 0 | I45: 0 | J45: 0 | K45: 0 | L45: 0 | M45: 0 | N45: 0 | O45: 0 | P45: 0 | R45: Trainee Biomedical Scientists - Funded Externally | S45: Default | T45: Default | U45: Default | V45: Default | W45: Default
A46: 13 | C46: Laboratory Support Worker/Medical Laboratory Assistant (MLA) | D46: 0 | E46: 0 | F46: 0 | G46: 0 | H46: 0 | I46: 0 | J46: 0 | K46: 0 | L46: 0 | M46: 0 | N46: 0 | O46: 0 | P46: 0 | R46: Laboratory Support Worker/Medical Laboratory Assistant (MLA) | S46: Default | T46: Default | U46: Default | V46: Default | W46: Default
A47: 14 | C47: Associate Practitioners | D47: 0 | E47: 0 | F47: 0 | G47: 0 | H47: 0 | I47: 0 | J47: 0 | K47: 0 | L47: 0 | M47: 0 | N47: 0 | O47: 0 | P47: 0 | R47: Associate Practitioners | S47: Default | T47: Default | U47: Default | V47: Default | W47: Default
A48: 15 | C48: Cytoscreeners | D48: 0 | E48: 0 | F48: 0 | G48: 0 | H48: 0 | I48: 0 | J48: 0 | K48: 0 | L48: 0 | M48: 0 | N48: 0 | O48: 0 | P48: 0 | R48: Cytoscreeners | S48: Default | T48: Default | U48: Default | V48: Default | W48: Default
C50: Remaining Other Staff | D50: Total Staff FTE | E50: Band 1 | F50: Band 2 | G50: Band 3 | H50: Band 4 | I50: Band 5 | J50: Band 6 | K50: Band 7 | L50: Band 8a | M50: Band 8b | N50: Band 8c | O50: Band 8d | P50: Band 9 | R50: =C50 -> Remaining Other Staff | S50: Band 1 | T50: Bands 2-4 | U50: Band 5 | V50: Bands 6-7 | W50: Bands 8a+
A51: 16 | C51: Administrative and Clerical Staff | D51: =SUM(E51:P51) -> 0 | E51: 0 | F51: 0 | G51: 0 | H51: 0 | I51: 0 | J51: 0 | K51: 0 | L51: 0 | M51: 0 | N51: 0 | O51: 0 | P51: 0 | R51: Administrative and Clerical Staff | S51: Default | T51: Default | U51: Default | V51: Default | W51: Default
A52: 17 | C52: Management Staff (Include Clinical Director, Finance Director, Lab Manager etc) | D52: 0 | E52: 0 | F52: 0 | G52: 0 | H52: 0 | I52: 0 | J52: 0 | K52: 0 | L52: 0 | M52: 0 | N52: 0 | O52: 0 | P52: 0 | R52: Management Staff (Include Clinical Director, Finance Director, Lab Manager etc) | S52: Default | T52: Default | U52: Default | V52: Default | W52: Default
A53: 18 | C53: Quality Managers (Dedicated Role) | D53: 0 | E53: 0 | F53: 0 | G53: 0 | H53: 0 | I53: 0 | J53: 0 | K53: 0 | L53: 0 | M53: 0 | N53: 0 | O53: 0 | P53: 0 | R53: Quality Managers (Dedicated Role) | S53: Default | T53: Default | U53: Default | V53: Default | W53: Default
A54: 19 | C54: IT Staff | D54: 0 | E54: 0 | F54: 0 | G54: 0 | H54: 0 | I54: 0 | J54: 0 | K54: 0 | L54: 0 | M54: 0 | N54: 0 | O54: 0 | P54: 0 | R54: IT Staff | S54: Default | T54: Default | U54: Default | V54: Default | W54: Default
A55: 20 | C55: Remaning Other Staff (Exclude Porters, Phlebotomists, Nursing Staff) | D55: 0 | E55: 0 | F55: 0 | G55: 0 | H55: 0 | I55: 0 | J55: 0 | K55: 0 | L55: 0 | M55: 0 | N55: 0 | O55: 0 | P55: 0 | R55: Remaning Other Staff (Exclude Porters, Phlebotomists, Nursing Staff) | S55: Default | T55: Default | U55: Default | V55: Default | W55: Default
D57: Total Staff FTE | E57: Band 1 | F57: Band 2 | G57: Band 3 | H57: Band 4 | I57: Band 5 | J57: Band 6 | K57: Band 7 | L57: Band 8a | M57: Band 8b | N57: Band 8c | O57: Band 8d | P57: Band 9
A58: 21 | C58: TOTAL FTE STAFF | D58: =SUM(SUM(D30:D34),SUM(D37:D40),SUM(D43:D48),SUM(D51:D55)) -> 0 | E58: =SUM(SUM(E30:E34),SUM(E37:E40),SUM(E43:E48),SUM(E51:E55)) -> 0 | F58: 0 | G58: 0 | H58: 0 | I58: 0 | J58: 0 | K58: 0 | L58: 0 | M58: 0 | N58: 0 | O58: 0 | P58: 0
C60: CALCULATED TOTAL PAY (INCLUDING ALL MODIFIERS AND ADDITIONS) | D60: =IF('Data Export'!I256="XXX",0,'Data Export'!I256) -> 0
C62: Selected Individual Calculated Salaries (For Reference)
C63: Medical Staff (Total) | D63: =SUM('Data Export'!I235:I239) -> 0 | E63: These salaries are calculated using the options and staffing FTE you have entered above, and will be used in the analyses within this report. They are provided here for reference to allow you to cross-check the information you have entered so far. Please note, these cannot be amended directly.
C64: Clinical Scientists (Including Consultants and Trainees) | D64: =SUM('Data Export'!I240:I243) -> 0
C65: Biomedical Scientists (Including Trainees) | D65: =SUM('Data Export'!I244:I247) -> 0
C66: Laboratory Support Workers (MLA and Associate Practitioner) | D66: =SUM('Data Export'!I248:I249) -> 0
C67: Administrative and Clerical Staff | D67: =SUM('Data Export'!I251) -> 0
C69: Definition of PAs related to 'Laboratory/Diagnostic Work'
C70: FTE Consultants should be calculated based only on their PAs which contribute (either directly or indirectly) to the output, productivity and/or service provision of the laboratory. The FTE figure we use is calculated from the number of PAs that are provided in this way, where 1 PA = 0.10 FTE. Consultants who work more than 10 PAs will be reflected through >1.00 FTE, for example a Consultant who works 12 Laboratory/Diagnostic PAs per week will pro rata at 1.20 WTE. Likewise, a Consultant who works 5 Laboratory/Diagnostic Related PAs per week will pro rata at 0.50 WTE. Salaries calculated by our system will reflect the calculated FTE, not the number of actual people in post. This will ensure your data are consistent with the rest of our database.
C71: PAs related to laboratory/diagnostic work will include obvious areas such as bench work, reporting and interpretation, and laboratory management duties. They will also include things such as attendance at MDT meetings, laboratory staff training, any activities which involve discussion of a laboratory-generated result with a patient or doctor etc, and in-house teaching (i.e. within the laboratory or involving laboratory staff). Essentially, these are DCC PAs not funded by a University, a research grant, a clinical trial, private income, or other source outside the Trust/organisation. We would expect PAs related to areas such as external teaching, private clinics, and research to be excluded.
C73: Calculating Non-Pay
C74: Non-pay expenditure should include items such as: Minor capital purchases (£5,000 or below), leasehold payments, reagents costs, maintenance payments and managed service contract costs, depreciation cost estimates for owned equipment, consumables, travel, course and conference fees, etc. You should not include capital charge, transport costs, phlebotomy costs or hospital overhead charges.

Sheet AfC Spine Data (hidden)
K1: Selected Data
K2: HCAS
C3: Band | D3: Previous spine point | E3: Minimum years of experience | F3: 2019/20 annual value (£) | G3: including Inner London HCAS | H3: including Outer London HCAS | I3: including Fringe HCAS | K3: ='Staffing and Finance Data Entry'!D10 -> None | L3: With on-costs | M3: Modifier 2 | N3: Final Figure | P3: Band | Q3: Term | R3: CON lookup | S3: Salary | V3: Trainees Reduction Salary Value
C4: Band 1 | D4: 2 | E4: < 1 year | F4: 17652 | G4: 22052 | H4: 21374 | I4: 18669 | K4: =IF(K$3="None",$F4,IF(K$3=$G$3,$G4,IF(K$3=$H$3,$H4,IF(K$3=$I$3,$I4,$F4)))) -> 17652 | L4: =SUM(K4,SUM(K4*'Staffing and Finance Data Entry'!$D$9)) -> 22241.52 | M4: =L4 -> 22241.52 | N4: =M4 -> 22241.52 | P4: 1 | Q4: <1 Year | R4: =CONCATENATE(P4,"-",Q4) -> 1-<1 Year | S4: =N4 -> 22241.52 | U4: Medical Trainees | V4: =IF('Staffing and Finance Data Entry'!$D$25="Yes",'Staffing and Finance Data Entry'!D22,100%) -> 1
E5: Default | F5: =F4 -> 17652 | G5: =G4 -> 22052 | H5: 21374 | I5: 18669 | K5: =IF(K$3="None",$F5,IF(K$3=$G$3,$G5,IF(K$3=$H$3,$H5,IF(K$3=$I$3,$I5,$F5)))) -> 17652 | L5: =SUM(K5,SUM(K5*'Staffing and Finance Data Entry'!$D$9)) -> 22241.52 | M5: =L5 -> 22241.52 | N5: 22241.52 | P5: 1 | Q5: Default | R5: =CONCATENATE(P5,"-",Q5) -> 1-Default | S5: =N5 -> 22241.52 | U5: Clinical Scientist Trainees | V5: =IF('Staffing and Finance Data Entry'!$D$25="Yes",'Staffing and Finance Data Entry'!D23,100%) -> 1
D6: 3 | E6: 1+ years | F6: 17652 | G6: 22052 | H6: 21374 | I6: 18669 | K6: 17652 | L6: =SUM(K6,SUM(K6*'Staffing and Finance Data Entry'!$D$9)) -> 22241.52 | M6: 22241.52 | N6: 22241.52 | P6: 1 | Q6: 1+ Years | R6: 1-1+ Years | S6: 22241.52 | U6: Biomedical Scientist Trainnes | V6: =IF('Staffing and Finance Data Entry'!$D$25="Yes",'Staffing and Finance Data Entry'!D24,100%) -> 1
C7: Band 2 | D7: 2 | E7: < 1 year | F7: 17652 | G7: 22052 | H7: 21374 | I7: 18669 | K7: 17652 | L7: =SUM(K7,SUM(K7*'Staffing and Finance Data Entry'!$D$9)) -> 22241.52 | M7: 22241.52 | N7: 22241.52 | P7: 2 | Q7: <1 Year | R7: 2-<1 Year | S7: 22241.52
D8: 3 | E8: 1 - 2 years | F8: 17652 | G8: 22052 | H8: 21374 | I8: 18669 | K8: 17652 | L8: =SUM(K8,SUM(K8*'Staffing and Finance Data Entry'!$D$9)) -> 22241.52 | M8: 22241.52 | N8: 22241.52 | P8: 2 | Q8: 1-2 Years | R8: 2-1-2 Years | S8: 22241.52
D9: 4 | E9: 2 - 3 years | F9: 17652 | G9: 22052 | H9: 21374 | I9: 18669 | K9: 17652 | L9: =SUM(K9,SUM(K9*'Staffing and Finance Data Entry'!$D$9)) -> 22241.52 | M9: 22241.52 | N9: 22241.52 | P9: 2 | Q9: 2-3 Years | R9: 2-2-3 Years | S9: 22241.52
D10: 5 | E10: 3 - 4 years | F10: 17652 | G10: 22052 | H10: 21374 | I10: 18669 | K10: 17652 | L10: =SUM(K10,SUM(K10*'Staffing and Finance Data Entry'!$D$9)) -> 22241.52 | M10: 22241.52 | N10: 22241.52 | P10: 2 | Q10: 3-4 Years | R10: 2-3-4 Years | S10: 22241.52
E11: Default | F11: =F10 -> 17652 | G11: =G10 -> 22052 | H11: 21374 | I11: 18669 | K11: 17652 | L11: =SUM(K11,SUM(K11*'Staffing and Finance Data Entry'!$D$9)) -> 22241.52 | M11: 22241.52 | N11: 22241.52 | P11: 2 | Q11: Default | R11: 2-Default | S11: 22241.52
D12: 6 | E12: 4 - 5 years | F12: 17652 | G12: 22052 | H12: 21374 | I12: 18669 | K12: 17652 | L12: =SUM(K12,SUM(K12*'Staffing and Finance Data Entry'!$D$9)) -> 22241.52 | M12: 22241.52 | N12: 22241.52 | P12: 2 | Q12: 4-5 Years | R12: 2-4-5 Years | S12: 22241.52
D13: 7 | E13: 5 - 6 years | F13: 17983 | G13: 22383 | H13: 21705 | I13: 19000 | K13: 17983 | L13: =SUM(K13,SUM(K13*'Staffing and Finance Data Entry'!$D$9)) -> 22658.58 | M13: 22658.58 | N13: 22658.58 | P13: 2 | Q13: 5-6 Years | R13: 2-5-6 Years | S13: 22658.58
D14: 8 | E14: 6+ years | F14: 19020 | G14: 23420 | H14: 22742 | I14: 20037 | K14: 19020 | L14: =SUM(K14,SUM(K14*'Staffing and Finance Data Entry'!$D$9)) -> 23965.2 | M14: 23965.2 | N14: 23965.2 | P14: 2 | Q14: 6+ Years | R14: 2-6+ Years | S14: 23965.2
C15: Band 3 | D15: 6 | E15: < 1 year | F15: 18813 | G15: 23213 | H15: 22535 | I15: 19830 | K15: 18813 | L15: =SUM(K15,SUM(K15*'Staffing and Finance Data Entry'!$D$9)) -> 23704.38 | M15: 23704.38 | N15: 23704.38 | P15: 3 | Q15: <1 Year | R15: 3-<1 Year | S15: 23704.38
D16: 7 | E16: 1 - 2 years | F16: 18813 | G16: 23213 | H16: 22535 | I16: 19830 | K16: 18813 | L16: =SUM(K16,SUM(K16*'Staffing and Finance Data Entry'!$D$9)) -> 23704.38 | M16: 23704.38 | N16: 23704.38 | P16: 3 | Q16: 1-2 Years | R16: 3-1-2 Years | S16: 23704.38
D17: 8 | E17: 2 - 3 years | F17: 18813 | G17: 23213 | H17: 22535 | I17: 19830 | K17: 18813 | L17: =SUM(K17,SUM(K17*'Staffing and Finance Data Entry'!$D$9)) -> 23704.38 | M17: 23704.38 | N17: 23704.38 | P17: 3 | Q17: 2-3 Years | R17: 3-2-3 Years | S17: 23704.38
D18: 9 | E18: 3 - 4 years | F18: 18813 | G18: 23213 | H18: 22535 | I18: 19830 | K18: 18813 | L18: =SUM(K18,SUM(K18*'Staffing and Finance Data Entry'!$D$9)) -> 23704.38 | M18: 23704.38 | N18: 23704.38 | P18: 3 | Q18: 3-4 Years | R18: 3-3-4 Years | S18: 23704.38
E19: Default | F19: =F18 -> 18813 | G19: =G18 -> 23213 | H19: 22535 | I19: 19830 | K19: 18813 | L19: =SUM(K19,SUM(K19*'Staffing and Finance Data Entry'!$D$9)) -> 23704.38 | M19: 23704.38 | N19: 23704.38 | P19: 3 | Q19: Default | R19: 3-Default | S19: 23704.38
D20: 10 | E20: 4 - 5 years | F20: 19332 | G20: 23732 | H20: 23054 | I20: 20349 | K20: 19332 | L20: =SUM(K20,SUM(K20*'Staffing and Finance Data Entry'!$D$9)) -> 24358.32 | M20: 24358.32 | N20: 24358.32 | P20: 3 | Q20: 4-5 Years | R20: 3-4-5 Years | S20: 24358.32
D21: 11 | E21: 5 - 6 years | F21: 19917 | G21: 24317 | H21: 23639 | I21: 20934 | K21: 19917 | L21: =SUM(K21,SUM(K21*'Staffing and Finance Data Entry'!$D$9)) -> 25095.42 | M21: 25095.42 | N21: 25095.42 | P21: 3 | Q21: 5-6 Years | R21: 3-5-6 Years | S21: 25095.42
D22: 12 | E22: 6+ years | F22: 20795 | G22: 25195 | H22: 24517 | I22: 21834.75 | K22: 20795 | L22: =SUM(K22,SUM(K22*'Staffing and Finance Data Entry'!$D$9)) -> 26201.7 | M22: 26201.7 | N22: 26201.7 | P22: 3 | Q22: 6+ Years | R22: 3-6+ Years | S22: 26201.7
C23: Band 4 | D23: 11 | E23: < 1 year | F23: 21089 | G23: 25489 | H23: 24811 | I23: 22143.45 | K23: 21089 | L23: =SUM(K23,SUM(K23*'Staffing and Finance Data Entry'!$D$9)) -> 26572.14 | M23: 26572.14 | N23: 26572.14 | P23: 4 | Q23: <1 Year | R23: 4-<1 Year | S23: 26572.14
D24: 12 | E24: 1 - 2 years | F24: 21089 | G24: 25489 | H24: 24811 | I24: 22143.45 | K24: 21089 | L24: =SUM(K24,SUM(K24*'Staffing and Finance Data Entry'!$D$9)) -> 26572.14 | M24: 26572.14 | N24: 26572.14 | P24: 4 | Q24: 1-2 Years | R24: 4-1-2 Years | S24: 26572.14
D25: 13 | E25: 2 - 3 years | F25: 21089 | G25: 25489 | H25: 24811 | I25: 22143.45 | K25: 21089 | L25: =SUM(K25,SUM(K25*'Staffing and Finance Data Entry'!$D$9)) -> 26572.14 | M25: 26572.14 | N25: 26572.14 | P25: 4 | Q25: 2-3 Years | R25: 4-2-3 Years | S25: 26572.14
D26: 14 | E26: 3 - 4 years | F26: 21819 | G26: 26219 | H26: 25541 | I26: 22909.95 | K26: 21819 | L26: =SUM(K26,SUM(K26*'Staffing and Finance Data Entry'!$D$9)) -> 27491.94 | M26: 27491.94 | N26: 27491.94 | P26: 4 | Q26: 3-4 Years | R26: 4-3-4 Years | S26: 27491.94
E27: Default | F27: =F26 -> 21819 | G27: =G26 -> 26219 | H27: =H26 -> 25541 | I27: =I26 -> 22909.95 | K27: 21819 | L27: =SUM(K27,SUM(K27*'Staffing and Finance Data Entry'!$D$9)) -> 27491.94 | M27: 27491.94 | N27: 27491.94 | P27: 4 | Q27: Default | R27: 4-Default | S27: 27491.94
D28: 15 | E28: 4 - 5 years | F28: 22482 | G28: 26978.4 | H28: 26204 | I28: 23606.1 | K28: 22482 | L28: =SUM(K28,SUM(K28*'Staffing and Finance Data Entry'!$D$9)) -> 28327.32 | M28: 28327.32 | N28: 28327.32 | P28: 4 | Q28: 4-5 Years | R28: 4-4-5 Years | S28: 28327.32
D29: 16 | E29: 5 - 6 years | F29: 22707 | G29: 27248.4 | H29: 26429 | I29: 23842.35 | K29: 22707 | L29: =SUM(K29,SUM(K29*'Staffing and Finance Data Entry'!$D$9)) -> 28610.82 | M29: 28610.82 | N29: 28610.82 | P29: 4 | Q29: 5-6 Years | R29: 4-5-6 Years | S29: 28610.82
D30: 17 | E30: 6+ years | F30: 23761 | G30: 28513.2 | H30: 27483 | I30: 24949.05 | K30: 23761 | L30: =SUM(K30,SUM(K30*'Staffing and Finance Data Entry'!$D$9)) -> 29938.86 | M30: 29938.86 | N30: 29938.86 | P30: 4 | Q30: 6+ Years | R30: 4-6+ Years | S30: 29938.86
C31: Band 5 | D31: 16 | E31: < 1 year | F31: 24214 | G31: 29056.8 | H31: 27936 | I31: 25424.7 | K31: 24214 | L31: =SUM(K31,SUM(K31*'Staffing and Finance Data Entry'!$D$9)) -> 30509.64 | M31: 30509.64 | N31: 30509.64 | P31: 5 | Q31: <1 Year | R31: 5-<1 Year | S31: 30509.64
D32: 17 | E32: 1 - 2 years | F32: 24214 | G32: 29056.8 | H32: 27936 | I32: 25424.7 | K32: 24214 | L32: =SUM(K32,SUM(K32*'Staffing and Finance Data Entry'!$D$9)) -> 30509.64 | M32: 30509.64 | N32: 30509.64 | P32: 5 | Q32: 1-2 Years | R32: 5-1-2 Years | S32: 30509.64
D33: 18 | E33: 2 - 3 years | F33: 24214 | G33: 29056.8 | H33: 27936 | I33: 25424.7 | K33: 24214 | L33: =SUM(K33,SUM(K33*'Staffing and Finance Data Entry'!$D$9)) -> 30509.64 | M33: 30509.64 | N33: 30509.64 | P33: 5 | Q33: 2-3 Years | R33: 5-2-3 Years | S33: 30509.64
D34: 19 | E34: 3 - 4 years | F34: 26220 | G34: 31464 | H34: 30153 | I34: 27531 | K34: 26220 | L34: =SUM(K34,SUM(K34*'Staffing and Finance Data Entry'!$D$9)) -> 33037.2 | M34: 33037.2 | N34: 33037.2 | P34: 5 | Q34: 3-4 Years | R34: 5-3-4 Years | S34: 33037.2
E35: Default | F35: =F34 -> 26220 | G35: =G34 -> 31464 | H35: =H34 -> 30153 | I35: =I34 -> 27531 | K35: 26220 | L35: =SUM(K35,SUM(K35*'Staffing and Finance Data Entry'!$D$9)) -> 33037.2 | M35: 33037.2 | N35: 33037.2 | P35: 5 | Q35: Default | R35: 5-Default | S35: 33037.2
D36: 20 | E36: 4 - 5 years | F36: 26220 | G36: 31464 | H36: 30153 | I36: 27531 | K36: 26220 | L36: =SUM(K36,SUM(K36*'Staffing and Finance Data Entry'!$D$9)) -> 33037.2 | M36: 33037.2 | N36: 33037.2 | P36: 5 | Q36: 4-5 Years | R36: 5-4-5 Years | S36: 33037.2
D37: 21 | E37: 5 - 6 years | F37: 27260 | G37: 32712 | H37: 31349 | I37: 28623 | K37: 27260 | L37: =SUM(K37,SUM(K37*'Staffing and Finance Data Entry'!$D$9)) -> 34347.6 | M37: 34347.6 | N37: 34347.6 | P37: 5 | Q37: 5-6 Years | R37: 5-5-6 Years | S37: 34347.6
D38: 22 | E38: 6 - 7 years | F38: 28358 | G38: 34029.6 | H38: 32611.7 | I38: 29775.9 | K38: 28358 | L38: =SUM(K38,SUM(K38*'Staffing and Finance Data Entry'!$D$9)) -> 35731.08 | M38: 35731.08 | N38: 35731.08 | P38: 5 | Q38: 6-7 Years | R38: 5-6-7 Years | S38: 35731.08
D39: 23 | E39: 7+ years | F39: 30112 | G39: 36134.4 | H39: 34628.8 | I39: 31617.6 | K39: 30112 | L39: =SUM(K39,SUM(K39*'Staffing and Finance Data Entry'!$D$9)) -> 37941.12 | M39: 37941.12 | N39: 37941.12 | P39: 5 | Q39: 7+ Years | R39: 5-7+ Years | S39: 37941.12
C40: Band 6 | D40: 21 | E40: < 1 year | F40: 30401 | G40: 36481.2 | H40: 34961.15 | I40: 31921.05 | K40: 30401 | L40: =SUM(K40,SUM(K40*'Staffing and Finance Data Entry'!$D$9)) -> 38305.26 | M40: 38305.26 | N40: 38305.26 | P40: 6 | Q40: <1 Year | R40: 6-<1 Year | S40: 38305.26
D41: 22 | E41: 1 - 2 years | F41: 30401 | G41: 36481.2 | H41: 34961.15 | I41: 31921.05 | K41: 30401 | L41: =SUM(K41,SUM(K41*'Staffing and Finance Data Entry'!$D$9)) -> 38305.26 | M41: 38305.26 | N41: 38305.26 | P41: 6 | Q41: 1-2 Years | R41: 6-1-2 Years | S41: 38305.26
D42: 23 | E42: 2 - 3 years | F42: 30401 | G42: 36481.2 | H42: 34961.15 | I42: 31921.05 | K42: 30401 | L42: =SUM(K42,SUM(K42*'Staffing and Finance Data Entry'!$D$9)) -> 38305.26 | M42: 38305.26 | N42: 38305.26 | P42: 6 | Q42: 2-3 Years | R42: 6-2-3 Years | S42: 38305.26
D43: 24 | E43: 3 - 4 years | F43: 32525 | G43: 39030 | H43: 37268 | I43: 34151.25 | K43: 32525 | L43: =SUM(K43,SUM(K43*'Staffing and Finance Data Entry'!$D$9)) -> 40981.5 | M43: 40981.5 | N43: 40981.5 | P43: 6 | Q43: 3-4 Years | R43: 6-3-4 Years | S43: 40981.5
D44: 25 | E44: 4 - 5 years | F44: 32525 | G44: 39030 | H44: 37268 | I44: 34151.25 | K44: 32525 | L44: =SUM(K44,SUM(K44*'Staffing and Finance Data Entry'!$D$9)) -> 40981.5 | M44: 40981.5 | N44: 40981.5 | P44: 6 | Q44: 4-5 Years | R44: 6-4-5 Years | S44: 40981.5
E45: Default | F45: =F44 -> 32525 | G45: =G44 -> 39030 | H45: =H44 -> 37268 | I45: =I44 -> 34151.25 | K45: 32525 | L45: =SUM(K45,SUM(K45*'Staffing and Finance Data Entry'!$D$9)) -> 40981.5 | M45: 40981.5 | N45: 40981.5 | P45: 6 | Q45: Default | R45: 6-Default | S45: 40981.5
D46: 26 | E46: 5 - 6 years | F46: 32525 | G46: 39030 | H46: 37268 | I46: 34151.25 | K46: 32525 | L46: =SUM(K46,SUM(K46*'Staffing and Finance Data Entry'!$D$9)) -> 40981.5 | M46: 40981.5 | N46: 40981.5 | P46: 6 | Q46: 5-6 Years | R46: 6-5-6 Years | S46: 40981.5
D47: 27 | E47: 6 - 7 years | F47: 33587 | G47: 40304.4 | H47: 38330 | I47: 35266.35 | K47: 33587 | L47: =SUM(K47,SUM(K47*'Staffing and Finance Data Entry'!$D$9)) -> 42319.62 | M47: 42319.62 | N47: 42319.62 | P47: 6 | Q47: 6-7 Years | R47: 6-6-7 Years | S47: 42319.62
D48: 28 | E48: 7 - 8 years | F48: 34782 | G48: 41559 | H48: 39525 | I48: 36521.1 | K48: 34782 | L48: =SUM(K48,SUM(K48*'Staffing and Finance Data Entry'!$D$9)) -> 43825.32 | M48: 43825.32 | N48: 43825.32 | P48: 6 | Q48: 7-8 Years | R48: 6-7-8 Years | S48: 43825.32
D49: 29 | E49: 8+ years | F49: 37267 | G49: 44044 | H49: 42010 | I49: 39029 | K49: 37267 | L49: =SUM(K49,SUM(K49*'Staffing and Finance Data Entry'!$D$9)) -> 46956.42 | M49: 46956.42 | N49: 46956.42 | P49: 6 | Q49: 8+ Years | R49: 6-8+ Years | S49: 46956.42
C50: Band 7 | D50: 26 | E50: < 1 year | F50: 37570 | G50: 44347 | H50: 42313 | I50: 39332 | K50: 37570 | L50: =SUM(K50,SUM(K50*'Staffing and Finance Data Entry'!$D$9)) -> 47338.2 | M50: 47338.2 | N50: 47338.2 | P50: 7 | Q50: <1 Year | R50: 7-<1 Year | S50: 47338.2
D51: 27 | E51: 1 - 2 years | F51: 37570 | G51: 44347 | H51: 42313 | I51: 39332 | K51: 37570 | L51: =SUM(K51,SUM(K51*'Staffing and Finance Data Entry'!$D$9)) -> 47338.2 | M51: 47338.2 | N51: 47338.2 | P51: 7 | Q51: 1-2 Years | R51: 7-1-2 Years | S51: 47338.2
D52: 28 | E52: 2 - 3 years | F52: 37570 | G52: 44347 | H52: 42313 | I52: 39332 | K52: 37570 | L52: =SUM(K52,SUM(K52*'Staffing and Finance Data Entry'!$D$9)) -> 47338.2 | M52: 47338.2 | N52: 47338.2 | P52: 7 | Q52: 2-3 Years | R52: 7-2-3 Years | S52: 47338.2
D53: 29 | E53: 3 - 4 years | F53: 37570 | G53: 44347 | H53: 42313 | I53: 39332 | K53: 37570 | L53: =SUM(K53,SUM(K53*'Staffing and Finance Data Entry'!$D$9)) -> 47338.2 | M53: 47338.2 | N53: 47338.2 | P53: 7 | Q53: 3-4 Years | R53: 7-3-4 Years | S53: 47338.2
D54: 30 | E54: 4 - 5 years | F54: 38765 | G54: 45542 | H54: 43508 | I54: 40527 | K54: 38765 | L54: =SUM(K54,SUM(K54*'Staffing and Finance Data Entry'!$D$9)) -> 48843.9 | M54: 48843.9 | N54: 48843.9 | P54: 7 | Q54: 4-5 Years | R54: 7-4-5 Years | S54: 48843.9
E55: Default | F55: =F54 -> 38765 | G55: =G54 -> 45542 | H55: =H54 -> 43508 | I55: =I54 -> 40527 | K55: 38765 | L55: =SUM(K55,SUM(K55*'Staffing and Finance Data Entry'!$D$9)) -> 48843.9 | M55: 48843.9 | N55: 48843.9 | P55: 7 | Q55: Default | R55: 7-Default | S55: 48843.9
D56: 31 | E56: 5 - 6 years | F56: 38765 | G56: 45542 | H56: 43508 | I56: 40527 | K56: 38765 | L56: =SUM(K56,SUM(K56*'Staffing and Finance Data Entry'!$D$9)) -> 48843.9 | M56: 48843.9 | N56: 48843.9 | P56: 7 | Q56: 5-6 Years | R56: 7-5-6 Years | S56: 48843.9
D57: 32 | E57: 6 - 7 years | F57: 40092 | G57: 46869 | H57: 44835 | I57: 41854 | K57: 40092 | L57: =SUM(K57,SUM(K57*'Staffing and Finance Data Entry'!$D$9)) -> 50515.92 | M57: 50515.92 | N57: 50515.92 | P57: 7 | Q57: 6-7 Years | R57: 7-6-7 Years | S57: 50515.92
D58: 33 | E58: 7 - 8 years | F58: 41486 | G58: 48263 | H58: 46229 | I58: 43248 | K58: 41486 | L58: =SUM(K58,SUM(K58*'Staffing and Finance Data Entry'!$D$9)) -> 52272.36 | M58: 52272.36 | N58: 52272.36 | P58: 7 | Q58: 7-8 Years | R58: 7-7-8 Years | S58: 52272.36
D59: 34 | E59: 8+ years | F59: 43772 | G59: 50549 | H59: 48515 | I59: 45534 | K59: 43772 | L59: =SUM(K59,SUM(K59*'Staffing and Finance Data Entry'!$D$9)) -> 55152.72 | M59: 55152.72 | N59: 55152.72 | P59: 7 | Q59: 8+ Years | R59: 7-8+ Years | S59: 55152.72
C60: Band 8a | D60: 33 | E60: < 1 year | F60: 44606 | G60: 51383 | H60: 49349 | I60: 46368 | K60: 44606 | L60: =SUM(K60,SUM(K60*'Staffing and Finance Data Entry'!$D$9)) -> 56203.56 | M60: 56203.56 | N60: 56203.56 | P60: 8a | Q60: <1 Year | R60: 8a-<1 Year | S60: 56203.56
D61: 34 | E61: 1 - 2 years | F61: 44606 | G61: 51383 | H61: 49349 | I61: 46368 | K61: 44606 | L61: =SUM(K61,SUM(K61*'Staffing and Finance Data Entry'!$D$9)) -> 56203.56 | M61: 56203.56 | N61: 56203.56 | P61: 8a | Q61: 1-2 Years | R61: 8a-1-2 Years | S61: 56203.56
D62: 35 | E62: 2 - 3 years | F62: 44606 | G62: 51383 | H62: 49349 | I62: 46368 | K62: 44606 | L62: =SUM(K62,SUM(K62*'Staffing and Finance Data Entry'!$D$9)) -> 56203.56 | M62: 56203.56 | N62: 56203.56 | P62: 8a | Q62: 2-3 Years | R62: 8a-2-3 Years | S62: 56203.56
E63: Default | F63: =AVERAGE(F62,F64) -> 45468.5 | G63: =AVERAGE(G62,G64) -> 52245.5 | H63: 50211.5 | I63: 47230.5 | K63: 45468.5 | L63: =SUM(K63,SUM(K63*'Staffing and Finance Data Entry'!$D$9)) -> 57290.31 | M63: 57290.31 | N63: 57290.31 | P63: 8a | Q63: Default | R63: 8a-Default | S63: 57290.31
D64: 36 | E64: 3 - 4 years | F64: 46331 | G64: 53108 | H64: 51074 | I64: 48093 | K64: 46331 | L64: =SUM(K64,SUM(K64*'Staffing and Finance Data Entry'!$D$9)) -> 58377.06 | M64: 58377.06 | N64: 58377.06 | P64: 8a | Q64: 3-4 Years | R64: 8a-3-4 Years | S64: 58377.06
D65: 37 | E65: 4 - 5 years | F65: 48324 | G65: 55101 | H65: 53067 | I65: 50086 | K65: 48324 | L65: =SUM(K65,SUM(K65*'Staffing and Finance Data Entry'!$D$9)) -> 60888.24 | M65: 60888.24 | N65: 60888.24 | P65: 8a | Q65: 4-5 Years | R65: 8a-4-5 Years | S65: 60888.24
D66: 38 | E66: 5+ years | F66: 50819 | G66: 57596 | H66: 55562 | I66: 52581 | K66: 50819 | L66: =SUM(K66,SUM(K66*'Staffing and Finance Data Entry'!$D$9)) -> 64031.94 | M66: 64031.94 | N66: 64031.94 | P66: 8a | Q66: 5+ Years | R66: 8a-5+ Years | S66: 64031.94
C67: Band 8b | D67: 37 | E67: < 1 year | F67: 52306 | G67: 59083 | H67: 57,049 | I67: 54068 | K67: 52306 | L67: =SUM(K67,SUM(K67*'Staffing and Finance Data Entry'!$D$9)) -> 65905.56 | M67: 65905.56 | N67: 65905.56 | P67: 8b | Q67: <1 Year | R67: 8b-<1 Year | S67: 65905.56
D68: 38 | E68: 1 - 2 years | F68: 52306 | G68: 59083 | H68: 57049 | I68: 54068 | K68: 52306 | L68: =SUM(K68,SUM(K68*'Staffing and Finance Data Entry'!$D$9)) -> 65905.56 | M68: 65905.56 | N68: 65905.56 | P68: 8b | Q68: 1-2 Years | R68: 8b-1-2 Years | S68: 65905.56
D69: 39 | E69: 2 - 3 years | F69: 52306 | G69: 59083 | H69: 57049 | I69: 54068 | K69: =IF(K$3="None",$F69,IF(K$3=$G$3,$G69,IF(K$3=$H$3,$H69,IF(K$3=$I$3,$I69,$F69)))) -> 52306 | L69: =SUM(K69,SUM(K69*'Staffing and Finance Data Entry'!$D$9)) -> 65905.56 | M69: =L69 -> 65905.56 | N69: 65905.56 | P69: 8b | Q69: 2-3 Years | R69: =CONCATENATE(P69,"-",Q69) -> 8b-2-3 Years | S69: =N69 -> 65905.56
E70: Default | F70: =AVERAGE(F69,F71) -> 53766 | G70: =AVERAGE(G69,G71) -> 60543 | H70: =AVERAGE(H69,H71) -> 58509 | I70: =AVERAGE(I69,I71) -> 55528 | K70: 53766 | L70: =SUM(K70,SUM(K70*'Staffing and Finance Data Entry'!$D$9)) -> 67745.16 | M70: 67745.16 | N70: 67745.16 | P70: 8b | Q70: Default | R70: 8b-Default | S70: 67745.16
D71: 40 | E71: 3 - 4 years | F71: 55226 | G71: 62003 | H71: 59969 | I71: 56988 | K71: 55226 | L71: =SUM(K71,SUM(K71*'Staffing and Finance Data Entry'!$D$9)) -> 69584.76 | M71: 69584.76 | N71: 69584.76 | P71: 8b | Q71: 3-4 Years | R71: 8b-3-4 Years | S71: 69584.76
D72: 41 | E72: 4 - 5 years | F72: 58148 | G72: 64925 | H72: 62891 | I72: 59910 | K72: 58148 | L72: =SUM(K72,SUM(K72*'Staffing and Finance Data Entry'!$D$9)) -> 73266.48 | M72: 73266.48 | N72: 73266.48 | P72: 8b | Q72: 4-5 Years | R72: 8b-4-5 Years | S72: 73266.48
D73: 42 | E73: 5+ years | F73: 60983 | G73: 67760 | H73: 65726 | I73: 62745 | K73: 60983 | L73: =SUM(K73,SUM(K73*'Staffing and Finance Data Entry'!$D$9)) -> 76838.58 | M73: 76838.58 | N73: 76838.58 | P73: 8b | Q73: 5+ Years | R73: 8b-5+ Years | S73: 76838.58
C74: Band 8c | D74: 41 | E74: < 1 year | F74: 61777 | G74: 68554 | H74: 66520 | I74: 63539 | K74: 61777 | L74: =SUM(K74,SUM(K74*'Staffing and Finance Data Entry'!$D$9)) -> 77839.02 | M74: 77839.02 | N74: 77839.02 | P74: 8c | Q74: <1 Year | R74: 8c-<1 Year | S74: 77839.02
D75: 42 | E75: 1 - 2 years | F75: 61777 | G75: 68554 | H75: 66520 | I75: 63539 | K75: 61777 | L75: =SUM(K75,SUM(K75*'Staffing and Finance Data Entry'!$D$9)) -> 77839.02 | M75: 77839.02 | N75: 77839.02 | P75: 8c | Q75: 1-2 Years | R75: 8c-1-2 Years | S75: 77839.02
D76: 43 | E76: 2 - 3 years | F76: 61777 | G76: 68554 | H76: 66520 | I76: 63539 | K76: 61777 | L76: =SUM(K76,SUM(K76*'Staffing and Finance Data Entry'!$D$9)) -> 77839.02 | M76: 77839.02 | N76: 77839.02 | P76: 8c | Q76: 2-3 Years | R76: 8c-2-3 Years | S76: 77839.02
E77: Default | F77: =AVERAGE(F76,F78) -> 63223.5 | G77: =AVERAGE(G76,G78) -> 70000.5 | H77: =AVERAGE(H76,H78) -> 67966.5 | I77: =AVERAGE(I76,I78) -> 64985.5 | K77: 63223.5 | L77: =SUM(K77,SUM(K77*'Staffing and Finance Data Entry'!$D$9)) -> 79661.61 | M77: 79661.61 | N77: 79661.61 | P77: 8c | Q77: Default | R77: 8c-Default | S77: 79661.61
D78: 44 | E78: 3- 4 years | F78: 64670 | G78: 71447 | H78: 69413 | I78: 66432 | K78: 64670 | L78: =SUM(K78,SUM(K78*'Staffing and Finance Data Entry'!$D$9)) -> 81484.2 | M78: 81484.2 | N78: 81484.2 | P78: 8c | Q78: 3-4 Years | R78: 8c-3-4 Years | S78: 81484.2
D79: 45 | E79: 4 - 5 years | F79: 69007 | G79: 75784 | H79: 73750 | I79: 70769 | K79: 69007 | L79: =SUM(K79,SUM(K79*'Staffing and Finance Data Entry'!$D$9)) -> 86948.82 | M79: 86948.82 | N79: 86948.82 | P79: 8c | Q79: 4-5 Years | R79: 8c-4-5 Years | S79: 86948.82
D80: 46 | E80: 5+ years | F80: 72597 | G80: 79374 | H80: 77340 | I80: 74359 | K80: 72597 | L80: =SUM(K80,SUM(K80*'Staffing and Finance Data Entry'!$D$9)) -> 91472.22 | M80: 91472.22 | N80: 91472.22 | P80: 8c | Q80: 5+ Years | R80: 8c-5+ Years | S80: 91472.22
C81: Band 8d | D81: 45 | E81: < 1 year | F81: 73936 | G81: 80713 | H81: 78679 | I81: 75698 | K81: 73936 | L81: =SUM(K81,SUM(K81*'Staffing and Finance Data Entry'!$D$9)) -> 93159.36 | M81: 93159.36 | N81: 93159.36 | P81: 8d | Q81: <1 Year | R81: 8d-<1 Year | S81: 93159.36
D82: 46 | E82: 1 - 2 years | F82: 73936 | G82: 80713 | H82: 78679 | I82: 75698 | K82: 73936 | L82: =SUM(K82,SUM(K82*'Staffing and Finance Data Entry'!$D$9)) -> 93159.36 | M82: 93159.36 | N82: 93159.36 | P82: 8d | Q82: 1-2 Years | R82: 8d-1-2 Years | S82: 93159.36
D83: 47 | E83: 2 - 3 years | F83: 73936 | G83: 80713 | H83: 78679 | I83: 75698 | K83: 73936 | L83: =SUM(K83,SUM(K83*'Staffing and Finance Data Entry'!$D$9)) -> 93159.36 | M83: 93159.36 | N83: 93159.36 | P83: 8d | Q83: 2-3 Years | R83: 8d-2-3 Years | S83: 93159.36
E84: Default | F84: =AVERAGE(F83,F85) -> 75743 | G84: =AVERAGE(G83,G85) -> 82520 | H84: =AVERAGE(H83,H85) -> 80486 | I84: =AVERAGE(I83,I85) -> 77505 | K84: 75743 | L84: =SUM(K84,SUM(K84*'Staffing and Finance Data Entry'!$D$9)) -> 95436.18 | M84: 95436.18 | N84: 95436.18 | P84: 8d | Q84: Default | R84: 8d-Default | S84: 95436.18
D85: 48 | E85: 3- 4 years | F85: 77550 | G85: 84327 | H85: 82293 | I85: 79312 | K85: 77550 | L85: =SUM(K85,SUM(K85*'Staffing and Finance Data Entry'!$D$9)) -> 97713 | M85: 97713 | N85: 97713 | P85: 8d | Q85: 3-4 Years | R85: 8d-3-4 Years | S85: 97713
D86: 49 | E86: 4 - 5 years | F86: 81493 | G86: 88270 | H86: 86236 | I86: 83255 | K86: 81493 | L86: =SUM(K86,SUM(K86*'Staffing and Finance Data Entry'!$D$9)) -> 102681.18 | M86: 102681.18 | N86: 102681.18 | P86: 8d | Q86: 4-5 Years | R86: 8d-4-5 Years | S86: 102681.18
D87: 50 | E87: 5+ years | F87: 86687 | G87: 93464 | H87: 91430 | I87: 88449 | K87: 86687 | L87: =SUM(K87,SUM(K87*'Staffing and Finance Data Entry'!$D$9)) -> 109225.62 | M87: 109225.62 | N87: 109225.62 | P87: 8d | Q87: 5+ Years | R87: 8d-5+ Years | S87: 109225.62
C88: Band 9 | D88: 49 | E88: < 1 year | F88: 89537 | G88: 96314 | H88: 94280 | I88: 91299 | K88: 89537 | L88: =SUM(K88,SUM(K88*'Staffing and Finance Data Entry'!$D$9)) -> 112816.62 | M88: 112816.62 | N88: 112816.62 | P88: 9 | Q88: <1 Year | R88: 9-<1 Year | S88: 112816.62
D89: 50 | E89: 1 - 2 years | F89: 89537 | G89: 96314 | H89: 94280 | I89: 91299 | K89: 89537 | L89: =SUM(K89,SUM(K89*'Staffing and Finance Data Entry'!$D$9)) -> 112816.62 | M89: 112816.62 | N89: 112816.62 | P89: 9 | Q89: 1-2 Years | R89: 9-1-2 Years | S89: 112816.62
D90: 51 | E90: 2 - 3 years | F90: 89537 | G90: 96314 | H90: 94280 | I90: 91299 | K90: 89537 | L90: =SUM(K90,SUM(K90*'Staffing and Finance Data Entry'!$D$9)) -> 112816.62 | M90: 112816.62 | N90: 112816.62 | P90: 9 | Q90: 2-3 Years | R90: 9-2-3 Years | S90: 112816.62
E91: Default | F91: =AVERAGE(F90,F92) -> 91686 | G91: =AVERAGE(G90,G92) -> 98463 | H91: =AVERAGE(H90,H92) -> 96429 | I91: =AVERAGE(I90,I92) -> 93448 | K91: 91686 | L91: =SUM(K91,SUM(K91*'Staffing and Finance Data Entry'!$D$9)) -> 115524.36 | M91: 115524.36 | N91: 115524.36 | P91: 9 | Q91: Default | R91: 9-Default | S91: 115524.36
D92: 52 | E92: 3- 4 years | F92: 93835 | G92: 100612 | H92: 98578 | I92: 95597 | K92: 93835 | L92: =SUM(K92,SUM(K92*'Staffing and Finance Data Entry'!$D$9)) -> 118232.1 | M92: 118232.1 | N92: 118232.1 | P92: 9 | Q92: 3-4 Years | R92: 9-3-4 Years | S92: 118232.1
D93: 53 | E93: 4 - 5 years | F93: 98339 | G93: 105116 | H93: 103082 | I93: 100101 | K93: 98339 | L93: =SUM(K93,SUM(K93*'Staffing and Finance Data Entry'!$D$9)) -> 123907.14 | M93: 123907.14 | N93: 123907.14 | P93: 9 | Q93: 4-5 Years | R93: 9-4-5 Years | S93: 123907.14
D94: 54 | E94: 5+ years | F94: 103860 | G94: 110637 | H94: 108603 | I94: 105622 | K94: 103860 | L94: =SUM(K94,SUM(K94*'Staffing and Finance Data Entry'!$D$9)) -> 130863.6 | M94: 130863.6 | N94: 130863.6 | P94: 9 | Q94: 5+ Years | R94: 9-5+ Years | S94: 130863.6

Sheet lists (hidden)
K1: Experience Level
B2: Complexity | C2: Staff Cost Modifier | F2: Discipline | G2: Disc No | H2: Disc Codes | I2: Source of Workload Lookup | K2: Band 1 | L2: Bands 2-4 | M2: Band 5 | N2: Bands 6-7 | O2: Bands 8a+ | Q2: HCAS | R2: Diagnostics | S2: Consultants | T2: Consultants Clinical Excellence | U2: SpR Profiles | V2: Other Medical Staff
B3: 9 (Highest) | C3: +0.0% | D3: 1 | F3: Chemistry | G3: 1 | H3: CH | I3: =G3 -> 1 | K3: Default | L3: Default | M3: Default | N3: Default | O3: Default | Q3: None | R3: Not Selected | S3: Default (Mid Point) | T3: Exclude | U3: Default (Mid Point) | V3: Default (Mid Point)
B4: 8 (Top Decile) | C4: +40.0% | D4: 1.4 | F4: Haematology | G4: 2 | H4: HA | I4: =G4 -> 2 | K4: <1 Year | L4: <1 Year | M4: <1 Year | N4: <1 Year | O4: <1 Year | Q4: including Inner London HCAS | R4: Siemens | S4: 2003 Contract: (starting salary) | T4: Default (Mid Point) | U4: Min: £31,841 | V4: AfC1
B5: 7 (Top Quartile) | C5: +39.5% | D5: 1.395 | F5: Immunology | G5: 3 | H5: IM | I5: 3 | K5: 1+ Years | L5: 1-2 Years | M5: 1-2 Years | N5: 1-2 Years | O5: 1-2 Years | Q5: including Outer London HCAS | R5: Others | S5: 2003 Contract: (1 year completed as consultan | T5: Level 1 | U5: 1: £33,790 | V5: AfC2
B6: 6 (Just Above Average) | C6: +39.0% | D6: 1.39 | F6: Combined Blood Sciences | G6: 4 | H6: BS | I6: 5 | L6: 2-3 Years | M6: 2-3 Years | N6: 2-3 Years | O6: 2-3 Years | Q6: including Fringe HCAS | S6: 2003 Contract: (2 years completed) | T6: Level 2 | U6: 2: £36,511 | V6: AfC3
B7: 5 (Average) | C7: +38.5% | D7: 1.385 | F7: Microbiology | G7: 5 | H7: MI | I7: 4 | L7: 3-4 Years | M7: 3-4 Years | N7: 3-4 Years | O7: 3-4 Years | S7: 2003 Contract: (3 years completed) | T7: Level 3 | U7: 3: £38,156 | V7: AfC4
B8: 4 (Just Below Average) | C8: +38.0% | D8: 1.38 | F8: Cellular Pathology | G8: 6 | H8: HC | I8: 8 | L8: 4-5 Years | M8: 4-5 Years | N8: 4-5 Years | O8: 4-5 Years | S8: 2003 Contract: (4-8 years completed) | T8: Level 4 | U8: 4: £40,141 | V8: AfC5
B9: 3 (Lower Quartile) | C9: +37.5% | D9: 1.375 | F9: Histopathology | G9: 7 | H9: HI | I9: 6 | L9: 5-6 Years | M9: 5-6 Years | N9: 5-6 Years | O9: 5+ Years | S9: 2003 Contract: (9-13 years completed) | T9: Level 5 | U9: 5: £42,126 | V9: AfC6
B10: 2 (Lower Decile) | C10: +37.0% | D10: 1.37 | F10: Cytology | G10: 8 | H10: CY | I10: 7 | L10: 6+ Years | M10: 6-7 Years | N10: 6-7 Years | S10: 2003 Contract: (14-18 years completed) | T10: Level 6 | U10: 6: £44,112 | V10: AfC7
B11: 1 (Lowest) | C11: +36.5% | D11: 1.365 | M11: 7+ Years | N11: 7-8 Years | S11: 2003 Contract: (19 years completed) | T11: Level 7 | U11: 7: £46,096 | V11: AfC8a
C12: +36.0% | D12: 1.36 | N12: 8+ Years | S12: Pre 2003: Basic | T12: Level 8 | U12: 8: £48,082 | V12: AfC8b
C13: +35.5% | D13: 1.355 | S13: Pre 2003: 1 | T13: Level 9 or Bronze | U13: 9: £50,068 | V13: AfC8c
C14: +35.0% | D14: 1.35 | S14: Pre 2003: 2 | T14: Level 10 or Silver | V14: AfC8d
C15: +34.5% | D15: 1.345 | S15: Pre 2003: 3 | T15: Level 11 or Gold | V15: AfC9
C16: +34.0% | D16: 1.34 | S16: Pre 2003: 4 | T16: Level 12 or Platinum
C17: +33.5% | D17: 1.335
C18: +33.0% | D18: 1.33
C19: +32.5% | D19: 1.325
C20: +32.0% | D20: 1.32
C21: +31.5% | D21: 1.315
C22: +31.0% | D22: 1.31
C23: +30.5% | D23: 1.305
C24: +30.0% | D24: 1.3
C25: +29.5% | D25: 1.295
C26: +29.0% | D26: 1.29
C27: +28.5% | D27: 1.285
C28: +28.0% | D28: 1.28
C29: +27.5% | D29: 1.275
C30: +27.0% | D30: 1.27
C31: +26.5% | D31: 1.265
C32: +26.0% | D32: 1.26
C33: +25.5% | D33: 1.255
C34: +25.0% | D34: 1.25
C35: +24.5% | D35: 1.245
C36: +24.0% | D36: 1.24
C37: +23.5% | D37: 1.235
C38: +23.0% | D38: 1.23
C39: +22.5% | D39: 1.225
C40: +22.0% | D40: 1.22
C41: +21.5% | D41: 1.215
C42: +21.0% | D42: 1.21
C43: +20.5% | D43: 1.205
C44: +20.0% | D44: 1.2
C45: +19.5% | D45: 1.195
C46: +19.0% | D46: 1.19
C47: +18.5% | D47: 1.185
C48: +18.0% | D48: 1.18
C49: +17.5% | D49: 1.175
C50: +17.0% | D50: 1.17
C51: +16.5% | D51: 1.165
C52: +16.0% | D52: 1.16
C53: +15.5% | D53: 1.155
C54: +15.0% | D54: 1.15
C55: +14.5% | D55: 1.145
C56: +14.0% | D56: 1.14
C57: +13.5% | D57: 1.135
C58: +13.0% | D58: 1.13
C59: +12.5% | D59: 1.125
C60: +12.0% | D60: 1.12
C61: +11.5% | D61: 1.115
C62: +11.0% | D62: 1.11
C63: +10.5% | D63: 1.105
C64: +10.0% | D64: 1.1
C65: +9.5% | D65: 1.095
C66: +9.0% | D66: 1.09
C67: +8.5% | D67: 1.085
C68: +8.0% | D68: 1.08
C69: +7.5% | D69: 1.075
C70: +7.0% | D70: 1.07
C71: +6.5% | D71: 1.065
C72: +6.0% | D72: 1.06
C73: +5.5% | D73: 1.055
C74: +5.0% | D74: 1.05
C75: +4.5% | D75: 1.045
C76: +4.0% | D76: 1.04
C77: +3.5% | D77: 1.035
C78: +3.0% | D78: 1.03
C79: +2.5% | D79: 1.025
C80: +2.0% | D80: 1.02
C81: +1.5% | D81: 1.015
C82: +1.0% | D82: 1.01
C83: +0.5% | D83: 1.005
C84: +0.0% | D84: 1
C85: -0.5% | D85: 0.995
C86: -1.0% | D86: 0.99
C87: -1.5% | D87: 0.985
C88: -2.0% | D88: 0.98
C89: -2.5% | D89: 0.975
C90: -3.0% | D90: 0.97
C91: -3.5% | D91: 0.965
C92: -4.0% | D92: 0.96
C93: -4.5% | D93: 0.955
C94: -5.0% | D94: 0.95
C95: -5.5% | D95: 0.945
C96: -6.0% | D96: 0.94
C97: -6.5% | D97: 0.935
C98: -7.0% | D98: 0.93
C99: -7.5% | D99: 0.925
C100: -8.0% | D100: 0.92
C101: -8.5% | D101: 0.915
C102: -9.0% | D102: 0.91
C103: -9.5% | D103: 0.905
C104: -10.0% | D104: 0.9
C105: -10.5% | D105: 0.895
C106: -11.0% | D106: 0.89
C107: -11.5% | D107: 0.885
C108: -12.0% | D108: 0.88
C109: -12.5% | D109: 0.875
C110: -13.0% | D110: 0.87
C111: -13.5% | D111: 0.865
C112: -14.0% | D112: 0.86
C113: -14.5% | D113: 0.855
C114: -15.0% | D114: 0.85
C115: -15.5% | D115: 0.845
C116: -16.0% | D116: 0.84
C117: -16.5% | D117: 0.835
C118: -17.0% | D118: 0.83
C119: -17.5% | D119: 0.825
C120: -18.0% | D120: 0.82
C121: -18.5% | D121: 0.815
C122: -19.0% | D122: 0.81
C123: -19.5% | D123: 0.805
C124: -20.0% | D124: 0.8
C125: -20.5% | D125: 0.795
C126: -21.0% | D126: 0.79
C127: -21.5% | D127: 0.785
C128: -22.0% | D128: 0.78
C129: -22.5% | D129: 0.775
C130: -23.0% | D130: 0.77
C131: -23.5% | D131: 0.765
C132: -24.0% | D132: 0.76
C133: -24.5% | D133: 0.755
C134: -25.0% | D134: 0.75
C135: -25.5% | D135: 0.745
C136: -26.0% | D136: 0.74
C137: -26.5% | D137: 0.735
C138: -27.0% | D138: 0.73
C139: -27.5% | D139: 0.725
C140: -28.0% | D140: 0.72
C141: -28.5% | D141: 0.715
C142: -29.0% | D142: 0.71
C143: -29.5% | D143: 0.705
C144: -30.0% | D144: 0.7
C145: -30.5% | D145: 0.695
C146: -31.0% | D146: 0.69
C147: -31.5% | D147: 0.685
C148: -32.0% | D148: 0.68
C149: -32.5% | D149: 0.675
C150: -33.0% | D150: 0.67
C151: -33.5% | D151: 0.665
C152: -34.0% | D152: 0.66
C153: -34.5% | D153: 0.655
C154: -35.0% | D154: 0.65
C155: -35.5% | D155: 0.645
C156: -36.0% | D156: 0.64
C157: -36.5% | D157: 0.635
C158: -37.0% | D158: 0.63
C159: -37.5% | D159: 0.625
C160: -38.0% | D160: 0.62
C161: -38.5% | D161: 0.615
C162: -39.0% | D162: 0.61
C163: -39.5% | D163: 0.605
C164: -40.0% | D164: 0.6

Sheet Turnaround Times
B2: ='General Information'!B2:C2 -> TBP Laboratory Benchmarking Questionnaire - Clinical Biochemistry
B3: Turnaround Times
B5: Please use data taken from 1st January 2020 to 31st March 2020.
B6: The following questions relate to the turnaroud times section of the Royal College of Pathologists KPI document.
B7: These inform CPA standard G1 and ISO15189:2012 standards 4.4.1 and 4.14.1. The percentage of specified investigations from A&E completed within one hour of sample collection should be recorded and published, however not all laboratories are able to access data relating to sample collection. We have therefore used two 'start points' in the following questions, and request that participants complete both where possible. For clarification, we define the end point as "the authorised result being made available to the requestor".
B8: For reference, the target set by the RCPath (for "vein to result") is 90% within 60 minutes.
B10: A&E Requests for U&E (or equivalent)
B11: Proportion of requests reported within one hour of sample collection (if known) | C11: 0
B12: Proportion of requests reported within one hour of receipt in the laboratory | C12: 0
B13: Average turnaround time (in minutes) (Please use 95th percentile as your average) | C13: 0
B14: Your local target turnaround time (in minutes) | C14: 0
B16: A&E Requests for Troponin
B17: Proportion of requests reported within one hour of sample collection (if known) | C17: 0
B18: Proportion of requests reported within one hour of receipt in the laboratory | C18: 0
B19: Average turnaround time (in minutes) (Please use 95th percentile as your average) | C19: 0
B20: Your local target turnaround time (in minutes) | C20: 0

Sheet Consultant Pay (hidden)
C2: 2003 Contract | F2: Pre 2003 | I2: Clinical Excellence Awards | M2: SPR
C3: 1 (starting salary) | D3: 79860 | F3: Basic | G3: 66306 | I3: Level | J3: Clinical excellence awards £ | M3: Min | N3: 31841
C4: 2 (1 year completed as consultant) | D4: 82361 | F4: 1 | G4: 71051 | I4: Level 1 | J4: 3016 | M4: 1 | N4: 33790
C5: 3 (2 years completed) | D5: 84862 | F5: 2 | G5: 75796 | I5: Level 2 | J5: 6032 | M5: 2 | N5: 36511
C6: 4 (3 years completed) | D6: 87362 | F6: 3 | G6: 80541 | I6: Level 3 | J6: 9048 | M6: 3 | N6: 38156
C7: 5 (4-8 years completed) | D7: 89856 | F7: 4 | G7: 85951 | I7: Level 4 | J7: 12064 | M7: 4 | N7: 40141
C8: 6 (9-13 years completed) | D8: 95795 | I8: Level 5 | J8: 15080 | M8: 5 | N8: 42126
C9: 7 (14-18 years completed) | D9: 101735 | I9: Level 6 | J9: 18096 | M9: 6 | N9: 44112
C10: 8 (19 years completed) | D10: 107668 | I10: Level 7 | J10: 24128 | M10: 7 | N10: 46096
I11: Level 8 | J11: 30160 | M11: 8 | N11: 48082
I12: Level 9 or Bronze | J12: 36192 | M12: 9 | N12: 50068
I13: Level 10 or Silver | J13: 47582
C14: Basic Salary Data Lookup | F14: SpR Salary Lookup | I14: Level 11 or Gold | J14: 59477
C15: Default (Mid Point) | D15: =D20 -> 89856 | F15: Default (Mid Point) | G15: =MEDIAN(G16:G25) -> 41133.5 | I15: Level 12 or Platinum | J15: 77320
C16: 2003 Contract: (starting salary) | D16: 79860 | F16: Min: £31,841 | G16: 31841
C17: 2003 Contract: (1 year completed as consultan | D17: 82361 | F17: 1: £33,790 | G17: 33790
C18: 2003 Contract: (2 years completed) | D18: 84862 | F18: 2: £36,511 | G18: 36511
C19: 2003 Contract: (3 years completed) | D19: 87362 | F19: 3: £38,156 | G19: 38156
C20: 2003 Contract: (4-8 years completed) | D20: 89856 | F20: 4: £40,141 | G20: 40141
C21: 2003 Contract: (9-13 years completed) | D21: 95795 | F21: 5: £42,126 | G21: 42126
C22: 2003 Contract: (14-18 years completed) | D22: 101735 | F22: 6: £44,112 | G22: 44112
C23: 2003 Contract: (19 years completed) | D23: 107668 | F23: 7: £46,096 | G23: 46096
C24: Pre 2003: Basic | D24: 66306 | F24: 8: £48,082 | G24: 48082
C25: Pre 2003: 1 | D25: 71051 | F25: 9: £50,068 | G25: 50068
C26: Pre 2003: 2 | D26: 75796
C27: Pre 2003: 3 | D27: 80541
C28: Pre 2003: 4 | D28: 85951
C30: Clinical Excellence Award Lookup | F30: Other Medical Staff Salary
C31: Exclude | D31: 0 | F31: Default (Mid Point) | G31: =MEDIAN(G32:G43) -> 35645
C32: Default (Mid Point) | D32: =MEDIAN(D33:D44) -> 21112 | F32: AfC1 | G32: 17652
C33: Level 1 | D33: 3016 | F33: AfC2 | G33: 17652
C34: Level 2 | D34: 6032 | F34: AfC3 | G34: 18813
C35: Level 3 | D35: 9048 | F35: AfC4 | G35: 21819
C36: Level 4 | D36: 12064 | F36: AfC5 | G36: 26220
C37: Level 5 | D37: 15080 | F37: AfC6 | G37: 32525
C38: Level 6 | D38: 18096 | F38: AfC7 | G38: 38765
C39: Level 7 | D39: 24128 | F39: AfC8a | G39: 45468.5
C40: Level 8 | D40: 30160 | F40: AfC8b | G40: 53766
C41: Level 9 or Bronze | D41: 36192 | F41: AfC8c | G41: 63223.5
C42: Level 10 or Silver | D42: 47582 | F42: AfC8d | G42: 75743
C43: Level 11 or Gold | D43: 59477 | F43: AfC9 | G43: 91686
C44: Level 12 or Platinum | D44: 77320
C46: Calculated Salary for Consultants: | D46: =SUM(SUM(VLOOKUP('Staffing and Finance Data Entry'!$D$15,'Consultant Pay'!$C$15:$D$28,2,FALSE),VLOOKUP('Staffing and Finance Data Entry'!$D$16,'Consultant Pay'!$C$31:$D$44,2,FALSE))*SUM(1,'Staffing and Finance Data Entry'!D9)*VLOOKUP('Staffing and Finance Data Entry'!D19,lists!C3:D400,2,FALSE)) -> 139819.68
C47: Locum Salary | D47: =SUM(D22*SUM(1,'Staffing and Finance Data Entry'!D9)*SUM(1,'Staffing and Finance Data Entry'!D19)*VLOOKUP('Staffing and Finance Data Entry'!D19,lists!C3:D400,2,FALSE)) -> 128186.1
C48: SpR Salary | D48: =SUM(VLOOKUP('Staffing and Finance Data Entry'!D17,'Consultant Pay'!F15:G25,2,FALSE)*SUM(1,'Staffing and Finance Data Entry'!D9)*SUM(1,'Staffing and Finance Data Entry'!D19)*VLOOKUP('Staffing and Finance Data Entry'!D19,lists!C3:D400,2,FALSE)) -> 51828.21
C49: Other Medical Staff Salary | D49: =SUM(VLOOKUP('Staffing and Finance Data Entry'!D18,'Consultant Pay'!F31:G43,2,FALSE)*SUM(1,'Staffing and Finance Data Entry'!D9)*SUM(1,'Staffing and Finance Data Entry'!D19)*VLOOKUP('Staffing and Finance Data Entry'!D19,lists!C3:D400,2,FALSE)) -> 44912.7

Sheet Data Export (hidden)
E2: Selected Disc Code: | F2: CH
I3: Selected Lab
C4: Import Number | D4: AfC Import | E4: Raw Code | F4: Salary Calc | G4: Final Code | H4: Descriptor | I4: E000
H5: LOOKUP | I5: 4
C6: 1 | D6: 4 | E6: Staffing-Total-Q1 | G6: =CONCATENATE($F$2,"-",E6) -> CH-Staffing-Total-Q1 | H6: Total FTE - Medical Consultant | I6: =IF(ISERROR(VLOOKUP($C6,'Staffing and Finance Data Entry'!$A$30:$P$60,$D6,FALSE))=TRUE,"XXX",IF(VLOOKUP($C6,'Staffing and Finance Data Entry'!$A$30:$P$60,$D6,FALSE)=0,"XXX",VLOOKUP($C6,'Staffing and Finance Data Entry'!$A$30:$P$60,$D6,FALSE))) -> XXX
C7: 2 | D7: 4 | E7: Staffing-Total-Q2 | G7: =CONCATENATE($F$2,"-",E7) -> CH-Staffing-Total-Q2 | H7: Total FTE - Locum Consultants | I7: =IF(ISERROR(VLOOKUP($C7,'Staffing and Finance Data Entry'!$A$30:$P$60,$D7,FALSE))=TRUE,"XXX",IF(VLOOKUP($C7,'Staffing and Finance Data Entry'!$A$30:$P$60,$D7,FALSE)=0,"XXX",VLOOKUP($C7,'Staffing and Finance Data Entry'!$A$30:$P$60,$D7,FALSE))) -> XXX
C8: 3 | D8: 4 | E8: Staffing-Total-Q3 | G8: CH-Staffing-Total-Q3 | H8: Total FTE - Junior Doctors/Specialty Trainees (Specialist Registrar/SpR) - Internally Funded | I8: =IF(ISERROR(VLOOKUP($C8,'Staffing and Finance Data Entry'!$A$30:$P$60,$D8,FALSE))=TRUE,"XXX",IF(VLOOKUP($C8,'Staffing and Finance Data Entry'!$A$30:$P$60,$D8,FALSE)=0,"XXX",SUM(VLOOKUP($C8,'Staffing and Finance Data Entry'!$A$30:$P$60,$D8,FALSE)*'Staffing and Finance Data Entry'!$D$22))) -> XXX
C9: 4 | D9: 4 | E9: Staffing-Total-Q4 | G9: CH-Staffing-Total-Q4 | H9: Total FTE - Junior Doctors/Specialty Trainees (Specialist Registrar/SpR) - Externally Funded | I9: =IF(ISERROR(VLOOKUP($C9,'Staffing and Finance Data Entry'!$A$30:$P$60,$D9,FALSE))=TRUE,"XXX",IF(VLOOKUP($C9,'Staffing and Finance Data Entry'!$A$30:$P$60,$D9,FALSE)=0,"XXX",SUM(VLOOKUP($C9,'Staffing and Finance Data Entry'!$A$30:$P$60,$D9,FALSE)*'Staffing and Finance Data Entry'!$D$22))) -> XXX
C10: 5 | D10: 4 | E10: Staffing-Total-Q6 | G10: CH-Staffing-Total-Q6 | H10: Total FTE - Remaining Other Medical Staff | I10: =IF(ISERROR(VLOOKUP($C10,'Staffing and Finance Data Entry'!$A$30:$P$60,$D10,FALSE))=TRUE,"XXX",IF(VLOOKUP($C10,'Staffing and Finance Data Entry'!$A$30:$P$60,$D10,FALSE)=0,"XXX",VLOOKUP($C10,'Staffing and Finance Data Entry'!$A$30:$P$60,$D10,FALSE))) -> XXX
C11: 6 | D11: 4 | E11: Staffing-Total-Q8 | G11: CH-Staffing-Total-Q8 | H11: Total FTE - Consultant Clinical Scientist | I11: =IF(ISERROR(VLOOKUP($C11,'Staffing and Finance Data Entry'!$A$30:$P$60,$D11,FALSE))=TRUE,"XXX",IF(VLOOKUP($C11,'Staffing and Finance Data Entry'!$A$30:$P$60,$D11,FALSE)=0,"XXX",VLOOKUP($C11,'Staffing and Finance Data Entry'!$A$30:$P$60,$D11,FALSE))) -> XXX
C12: 7 | D12: 4 | E12: Staffing-Total-Q9 | G12: CH-Staffing-Total-Q9 | H12: Total FTE - Non-Trainee, Non-Consultant Clinical Scientist | I12: =IF(ISERROR(VLOOKUP($C12,'Staffing and Finance Data Entry'!$A$30:$P$60,$D12,FALSE))=TRUE,"XXX",IF(VLOOKUP($C12,'Staffing and Finance Data Entry'!$A$30:$P$60,$D12,FALSE)=0,"XXX",VLOOKUP($C12,'Staffing and Finance Data Entry'!$A$30:$P$60,$D12,FALSE))) -> XXX
C13: 8 | D13: 4 | E13: Staffing-Total-Q10 | G13: CH-Staffing-Total-Q10 | H13: Total FTE - Trainee Clinical Scientist (eg STP) - Internally Funded | I13: =IF(ISERROR(VLOOKUP($C13,'Staffing and Finance Data Entry'!$A$30:$P$60,$D13,FALSE))=TRUE,"XXX",IF(VLOOKUP($C13,'Staffing and Finance Data Entry'!$A$30:$P$60,$D13,FALSE)=0,"XXX",SUM(VLOOKUP($C13,'Staffing and Finance Data Entry'!$A$30:$P$60,$D13,FALSE)*'Staffing and Finance Data Entry'!$D$23))) -> XXX
C14: 9 | D14: 4 | E14: Staffing-Total-Q11 | G14: CH-Staffing-Total-Q11 | H14: Total FTE - Trainee Clinical Scientist (eg STP) - Externally Funded | I14: =IF(ISERROR(VLOOKUP($C14,'Staffing and Finance Data Entry'!$A$30:$P$60,$D14,FALSE))=TRUE,"XXX",IF(VLOOKUP($C14,'Staffing and Finance Data Entry'!$A$30:$P$60,$D14,FALSE)=0,"XXX",SUM(VLOOKUP($C14,'Staffing and Finance Data Entry'!$A$30:$P$60,$D14,FALSE)*'Staffing and Finance Data Entry'!$D$23))) -> XXX
D15: 4 | E15: Staffing-Total-Q13 | G15: CH-Staffing-Total-Q13 | H15: Total FTE - Consultant Biomedical Scientist | I15: =IF(ISERROR(VLOOKUP($C15,'Staffing and Finance Data Entry'!$A$30:$P$60,$D15,FALSE))=TRUE,"XXX",IF(VLOOKUP($C15,'Staffing and Finance Data Entry'!$A$30:$P$60,$D15,FALSE)=0,"XXX",VLOOKUP($C15,'Staffing and Finance Data Entry'!$A$30:$P$60,$D15,FALSE))) -> XXX
C16: 10 | D16: 4 | E16: Staffing-Total-Q14 | G16: CH-Staffing-Total-Q14 | H16: Total FTE - Non Trainee Biomedical Scientist | I16: =IF(ISERROR(VLOOKUP($C16,'Staffing and Finance Data Entry'!$A$30:$P$60,$D16,FALSE))=TRUE,"XXX",IF(VLOOKUP($C16,'Staffing and Finance Data Entry'!$A$30:$P$60,$D16,FALSE)=0,"XXX",VLOOKUP($C16,'Staffing and Finance Data Entry'!$A$30:$P$60,$D16,FALSE))) -> XXX
C17: 11 | D17: 4 | E17: Staffing-Total-Q15 | G17: CH-Staffing-Total-Q15 | H17: Total FTE - Trainee Biomedical Scientist - Internally Funded | I17: =IF(ISERROR(VLOOKUP($C17,'Staffing and Finance Data Entry'!$A$30:$P$60,$D17,FALSE))=TRUE,"XXX",IF(VLOOKUP($C17,'Staffing and Finance Data Entry'!$A$30:$P$60,$D17,FALSE)=0,"XXX",SUM(VLOOKUP($C17,'Staffing and Finance Data Entry'!$A$30:$P$60,$D17,FALSE)*'Staffing and Finance Data Entry'!$D$24))) -> XXX
C18: 12 | D18: 4 | E18: Staffing-Total-Q16 | G18: CH-Staffing-Total-Q16 | H18: Total FTE - Trainee Biomedical Scientist - Externally Funded | I18: =IF(ISERROR(VLOOKUP($C18,'Staffing and Finance Data Entry'!$A$30:$P$60,$D18,FALSE))=TRUE,"XXX",IF(VLOOKUP($C18,'Staffing and Finance Data Entry'!$A$30:$P$60,$D18,FALSE)=0,"XXX",SUM(VLOOKUP($C18,'Staffing and Finance Data Entry'!$A$30:$P$60,$D18,FALSE)*'Staffing and Finance Data Entry'!$D$24))) -> XXX
C19: 13 | D19: 4 | E19: Staffing-Total-Q18 | G19: CH-Staffing-Total-Q18 | H19: Total FTE - Laboratory Support Worker/Medical Laboratory Assistant (MLA) | I19: =IF(ISERROR(VLOOKUP($C19,'Staffing and Finance Data Entry'!$A$30:$P$60,$D19,FALSE))=TRUE,"XXX",IF(VLOOKUP($C19,'Staffing and Finance Data Entry'!$A$30:$P$60,$D19,FALSE)=0,"XXX",VLOOKUP($C19,'Staffing and Finance Data Entry'!$A$30:$P$60,$D19,FALSE))) -> XXX
C20: 14 | D20: 4 | E20: Staffing-Total-Q19 | G20: CH-Staffing-Total-Q19 | H20: Total FTE - Associate Practitioner | I20: =IF(ISERROR(VLOOKUP($C20,'Staffing and Finance Data Entry'!$A$30:$P$60,$D20,FALSE))=TRUE,"XXX",IF(VLOOKUP($C20,'Staffing and Finance Data Entry'!$A$30:$P$60,$D20,FALSE)=0,"XXX",VLOOKUP($C20,'Staffing and Finance Data Entry'!$A$30:$P$60,$D20,FALSE))) -> XXX
C21: 15 | D21: 4 | E21: Staffing-Total-Q28 | G21: CH-Staffing-Total-Q28 | H21: Total FTE - Cytoscreeners | I21: =IF(ISERROR(VLOOKUP($C21,'Staffing and Finance Data Entry'!$A$30:$P$60,$D21,FALSE))=TRUE,"XXX",IF(VLOOKUP($C21,'Staffing and Finance Data Entry'!$A$30:$P$60,$D21,FALSE)=0,"XXX",VLOOKUP($C21,'Staffing and Finance Data Entry'!$A$30:$P$60,$D21,FALSE))) -> XXX
C22: 16 | D22: 4 | E22: Staffing-Total-Q21 | G22: CH-Staffing-Total-Q21 | H22: Total FTE - Administrative and Clerical Staff | I22: =IF(ISERROR(VLOOKUP($C22,'Staffing and Finance Data Entry'!$A$30:$P$60,$D22,FALSE))=TRUE,"XXX",IF(VLOOKUP($C22,'Staffing and Finance Data Entry'!$A$30:$P$60,$D22,FALSE)=0,"XXX",VLOOKUP($C22,'Staffing and Finance Data Entry'!$A$30:$P$60,$D22,FALSE))) -> XXX
C23: 17 | D23: 4 | E23: Staffing-Total-Q22 | G23: CH-Staffing-Total-Q22 | H23: Total FTE - Management Staff (Include Clinical Director, Finance Director, Lab Manager etc) | I23: =IF(ISERROR(VLOOKUP($C23,'Staffing and Finance Data Entry'!$A$30:$P$60,$D23,FALSE))=TRUE,"XXX",IF(VLOOKUP($C23,'Staffing and Finance Data Entry'!$A$30:$P$60,$D23,FALSE)=0,"XXX",VLOOKUP($C23,'Staffing and Finance Data Entry'!$A$30:$P$60,$D23,FALSE))) -> XXX
C24: 18 | D24: 4 | E24: Staffing-Total-Q23 | G24: CH-Staffing-Total-Q23 | H24: Total FTE - Quality Managers | I24: =IF(ISERROR(VLOOKUP($C24,'Staffing and Finance Data Entry'!$A$30:$P$60,$D24,FALSE))=TRUE,"XXX",IF(VLOOKUP($C24,'Staffing and Finance Data Entry'!$A$30:$P$60,$D24,FALSE)=0,"XXX",VLOOKUP($C24,'Staffing and Finance Data Entry'!$A$30:$P$60,$D24,FALSE))) -> XXX
C25: 19 | D25: 4 | E25: Staffing-Total-Q24 | G25: CH-Staffing-Total-Q24 | H25: Total FTE - IT Staff | I25: =IF(ISERROR(VLOOKUP($C25,'Staffing and Finance Data Entry'!$A$30:$P$60,$D25,FALSE))=TRUE,"XXX",IF(VLOOKUP($C25,'Staffing and Finance Data Entry'!$A$30:$P$60,$D25,FALSE)=0,"XXX",VLOOKUP($C25,'Staffing and Finance Data Entry'!$A$30:$P$60,$D25,FALSE))) -> XXX
C26: 20 | D26: 4 | E26: Staffing-Total-Q25 | G26: CH-Staffing-Total-Q25 | H26: Total FTE - Remaning Other Staff | I26: =IF(ISERROR(VLOOKUP($C26,'Staffing and Finance Data Entry'!$A$30:$P$60,$D26,FALSE))=TRUE,"XXX",IF(VLOOKUP($C26,'Staffing and Finance Data Entry'!$A$30:$P$60,$D26,FALSE)=0,"XXX",VLOOKUP($C26,'Staffing and Finance Data Entry'!$A$30:$P$60,$D26,FALSE))) -> XXX
C27: 21 | D27: 4 | E27: Staffing-Total-Q27 | G27: CH-Staffing-Total-Q27 | H27: Total FTE - Total | I27: =IF(SUM(I6:I26)=0,"XXX",SUM(I6:I26)) -> XXX
C28: 6 | D28: 5 | E28: Staffing-AfC1-Q1 | G28: CH-Staffing-AfC1-Q1 | H28: AfC 1 - Consultant Clinical Scientist | I28: =IF(ISERROR(VLOOKUP($C28,'Staffing and Finance Data Entry'!$A$30:$P$60,$D28,FALSE))=TRUE,"XXX",IF(VLOOKUP($C28,'Staffing and Finance Data Entry'!$A$30:$P$60,$D28,FALSE)=0,"XXX",VLOOKUP($C28,'Staffing and Finance Data Entry'!$A$30:$P$60,$D28,FALSE))) -> XXX
C29: 7 | D29: 5 | E29: Staffing-AfC1-Q2 | G29: CH-Staffing-AfC1-Q2 | H29: AfC 1 - Non-Trainee, Non-Consultant Clinical Scientist | I29: =IF(ISERROR(VLOOKUP($C29,'Staffing and Finance Data Entry'!$A$30:$P$60,$D29,FALSE))=TRUE,"XXX",IF(VLOOKUP($C29,'Staffing and Finance Data Entry'!$A$30:$P$60,$D29,FALSE)=0,"XXX",VLOOKUP($C29,'Staffing and Finance Data Entry'!$A$30:$P$60,$D29,FALSE))) -> XXX
C30: 8 | D30: 5 | E30: Staffing-AfC1-Q3 | G30: CH-Staffing-AfC1-Q3 | H30: AfC 1 - Trainee Clinical Scientist (eg STP) - Internally Funded | I30: =IF(ISERROR(VLOOKUP($C30,'Staffing and Finance Data Entry'!$A$30:$P$60,$D30,FALSE))=TRUE,"XXX",IF(VLOOKUP($C30,'Staffing and Finance Data Entry'!$A$30:$P$60,$D30,FALSE)=0,"XXX",SUM(VLOOKUP($C30,'Staffing and Finance Data Entry'!$A$30:$P$60,$D30,FALSE)*'Staffing and Finance Data Entry'!$D$23))) -> XXX
C31: 9 | D31: 5 | E31: Staffing-AfC1-Q4 | G31: CH-Staffing-AfC1-Q4 | H31: AfC 1 - Trainee Clinical Scientist (eg STP) - Externally Funded | I31: =IF(ISERROR(VLOOKUP($C31,'Staffing and Finance Data Entry'!$A$30:$P$60,$D31,FALSE))=TRUE,"XXX",IF(VLOOKUP($C31,'Staffing and Finance Data Entry'!$A$30:$P$60,$D31,FALSE)=0,"XXX",SUM(VLOOKUP($C31,'Staffing and Finance Data Entry'!$A$30:$P$60,$D31,FALSE)*'Staffing and Finance Data Entry'!$D$23))) -> XXX
D32: 5 | E32: Staffing-AfC1-Q6 | G32: CH-Staffing-AfC1-Q6 | H32: AfC 1 - Consultant Biomedical Scientist | I32: =IF(ISERROR(VLOOKUP($C32,'Staffing and Finance Data Entry'!$A$30:$P$60,$D32,FALSE))=TRUE,"XXX",IF(VLOOKUP($C32,'Staffing and Finance Data Entry'!$A$30:$P$60,$D32,FALSE)=0,"XXX",VLOOKUP($C32,'Staffing and Finance Data Entry'!$A$30:$P$60,$D32,FALSE))) -> XXX
C33: 10 | D33: 5 | E33: Staffing-AfC1-Q7 | G33: CH-Staffing-AfC1-Q7 | H33: AfC 1 - Non Trainee Biomedical Scientist | I33: =IF(ISERROR(VLOOKUP($C33,'Staffing and Finance Data Entry'!$A$30:$P$60,$D33,FALSE))=TRUE,"XXX",IF(VLOOKUP($C33,'Staffing and Finance Data Entry'!$A$30:$P$60,$D33,FALSE)=0,"XXX",VLOOKUP($C33,'Staffing and Finance Data Entry'!$A$30:$P$60,$D33,FALSE))) -> XXX
C34: 11 | D34: 5 | E34: Staffing-AfC1-Q8 | G34: CH-Staffing-AfC1-Q8 | H34: AfC 1 - Trainee Biomedical Scientist - Internally Funded | I34: =IF(ISERROR(VLOOKUP($C34,'Staffing and Finance Data Entry'!$A$30:$P$60,$D34,FALSE))=TRUE,"XXX",IF(VLOOKUP($C34,'Staffing and Finance Data Entry'!$A$30:$P$60,$D34,FALSE)=0,"XXX",SUM(VLOOKUP($C34,'Staffing and Finance Data Entry'!$A$30:$P$60,$D34,FALSE)*'Staffing and Finance Data Entry'!$D$24))) -> XXX
C35: 12 | D35: 5 | E35: Staffing-AfC1-Q9 | G35: CH-Staffing-AfC1-Q9 | H35: AfC 1 - Trainee Biomedical Scientist - Externally Funded | I35: =IF(ISERROR(VLOOKUP($C35,'Staffing and Finance Data Entry'!$A$30:$P$60,$D35,FALSE))=TRUE,"XXX",IF(VLOOKUP($C35,'Staffing and Finance Data Entry'!$A$30:$P$60,$D35,FALSE)=0,"XXX",SUM(VLOOKUP($C35,'Staffing and Finance Data Entry'!$A$30:$P$60,$D35,FALSE)*'Staffing and Finance Data Entry'!$D$24))) -> XXX
C36: 13 | D36: 5 | E36: Staffing-AfC1-Q11 | G36: CH-Staffing-AfC1-Q11 | H36: AfC 1 - Laboratory Support Worker/Medical Laboratory Assistant (MLA) | I36: =IF(ISERROR(VLOOKUP($C36,'Staffing and Finance Data Entry'!$A$30:$P$60,$D36,FALSE))=TRUE,"XXX",IF(VLOOKUP($C36,'Staffing and Finance Data Entry'!$A$30:$P$60,$D36,FALSE)=0,"XXX",VLOOKUP($C36,'Staffing and Finance Data Entry'!$A$30:$P$60,$D36,FALSE))) -> XXX
C37: 14 | D37: 5 | E37: Staffing-AfC1-Q12 | G37: CH-Staffing-AfC1-Q12 | H37: AfC 1 - Associate Practitioner | I37: =IF(ISERROR(VLOOKUP($C37,'Staffing and Finance Data Entry'!$A$30:$P$60,$D37,FALSE))=TRUE,"XXX",IF(VLOOKUP($C37,'Staffing and Finance Data Entry'!$A$30:$P$60,$D37,FALSE)=0,"XXX",VLOOKUP($C37,'Staffing and Finance Data Entry'!$A$30:$P$60,$D37,FALSE))) -> XXX
C38: 15 | D38: 5 | E38: Staffing-AfC1-Q28 | G38: CH-Staffing-AfC1-Q28 | H38: AfC 1 - Cytoscreeners | I38: =IF(ISERROR(VLOOKUP($C38,'Staffing and Finance Data Entry'!$A$30:$P$60,$D38,FALSE))=TRUE,"XXX",IF(VLOOKUP($C38,'Staffing and Finance Data Entry'!$A$30:$P$60,$D38,FALSE)=0,"XXX",VLOOKUP($C38,'Staffing and Finance Data Entry'!$A$30:$P$60,$D38,FALSE))) -> XXX
C39: 16 | D39: 5 | E39: Staffing-AfC1-Q14 | G39: CH-Staffing-AfC1-Q14 | H39: AfC 1 - Administrative and Clerical Staff | I39: =IF(ISERROR(VLOOKUP($C39,'Staffing and Finance Data Entry'!$A$30:$P$60,$D39,FALSE))=TRUE,"XXX",IF(VLOOKUP($C39,'Staffing and Finance Data Entry'!$A$30:$P$60,$D39,FALSE)=0,"XXX",VLOOKUP($C39,'Staffing and Finance Data Entry'!$A$30:$P$60,$D39,FALSE))) -> XXX
C40: 17 | D40: 5 | E40: Staffing-AfC1-Q15 | G40: CH-Staffing-AfC1-Q15 | H40: AfC 1 - Management Staff (Include Clinical Director, Finance Director, Lab Manager etc) | I40: =IF(ISERROR(VLOOKUP($C40,'Staffing and Finance Data Entry'!$A$30:$P$60,$D40,FALSE))=TRUE,"XXX",IF(VLOOKUP($C40,'Staffing and Finance Data Entry'!$A$30:$P$60,$D40,FALSE)=0,"XXX",VLOOKUP($C40,'Staffing and Finance Data Entry'!$A$30:$P$60,$D40,FALSE))) -> XXX
C41: 18 | D41: 5 | E41: Staffing-AfC1-Q16 | G41: CH-Staffing-AfC1-Q16 | H41: AfC 1 - Quality Managers | I41: =IF(ISERROR(VLOOKUP($C41,'Staffing and Finance Data Entry'!$A$30:$P$60,$D41,FALSE))=TRUE,"XXX",IF(VLOOKUP($C41,'Staffing and Finance Data Entry'!$A$30:$P$60,$D41,FALSE)=0,"XXX",VLOOKUP($C41,'Staffing and Finance Data Entry'!$A$30:$P$60,$D41,FALSE))) -> XXX
C42: 19 | D42: 5 | E42: Staffing-AfC1-Q17 | G42: CH-Staffing-AfC1-Q17 | H42: AfC 1 - IT Staff | I42: =IF(ISERROR(VLOOKUP($C42,'Staffing and Finance Data Entry'!$A$30:$P$60,$D42,FALSE))=TRUE,"XXX",IF(VLOOKUP($C42,'Staffing and Finance Data Entry'!$A$30:$P$60,$D42,FALSE)=0,"XXX",VLOOKUP($C42,'Staffing and Finance Data Entry'!$A$30:$P$60,$D42,FALSE))) -> XXX
C43: 20 | D43: 5 | E43: Staffing-AfC1-Q18 | G43: CH-Staffing-AfC1-Q18 | H43: AfC 1 - Remaning Other Staff | I43: =IF(ISERROR(VLOOKUP($C43,'Staffing and Finance Data Entry'!$A$30:$P$60,$D43,FALSE))=TRUE,"XXX",IF(VLOOKUP($C43,'Staffing and Finance Data Entry'!$A$30:$P$60,$D43,FALSE)=0,"XXX",VLOOKUP($C43,'Staffing and Finance Data Entry'!$A$30:$P$60,$D43,FALSE))) -> XXX
C44: 21 | D44: 5 | E44: Staffing-AfC1-Q20 | G44: CH-Staffing-AfC1-Q20 | H44: AfC 1 - Total | I44: =IF(SUM(I28:I43)=0,"XXX",SUM(I28:I43)) -> XXX
C45: 6 | D45: 6 | E45: Staffing-AfC2-Q1 | G45: CH-Staffing-AfC2-Q1 | H45: AfC 2 - Consultant Clinical Scientist | I45: =IF(ISERROR(VLOOKUP($C45,'Staffing and Finance Data Entry'!$A$30:$P$60,$D45,FALSE))=TRUE,"XXX",IF(VLOOKUP($C45,'Staffing and Finance Data Entry'!$A$30:$P$60,$D45,FALSE)=0,"XXX",VLOOKUP($C45,'Staffing and Finance Data Entry'!$A$30:$P$60,$D45,FALSE))) -> XXX
C46: 7 | D46: 6 | E46: Staffing-AfC2-Q2 | G46: CH-Staffing-AfC2-Q2 | H46: AfC 2 - Non-Trainee, Non-Consultant Clinical Scientist | I46: =IF(ISERROR(VLOOKUP($C46,'Staffing and Finance Data Entry'!$A$30:$P$60,$D46,FALSE))=TRUE,"XXX",IF(VLOOKUP($C46,'Staffing and Finance Data Entry'!$A$30:$P$60,$D46,FALSE)=0,"XXX",VLOOKUP($C46,'Staffing and Finance Data Entry'!$A$30:$P$60,$D46,FALSE))) -> XXX
C47: 8 | D47: 6 | E47: Staffing-AfC2-Q3 | G47: CH-Staffing-AfC2-Q3 | H47: AfC 2 - Trainee Clinical Scientist (eg STP) - Internally Funded | I47: =IF(ISERROR(VLOOKUP($C47,'Staffing and Finance Data Entry'!$A$30:$P$60,$D47,FALSE))=TRUE,"XXX",IF(VLOOKUP($C47,'Staffing and Finance Data Entry'!$A$30:$P$60,$D47,FALSE)=0,"XXX",SUM(VLOOKUP($C47,'Staffing and Finance Data Entry'!$A$30:$P$60,$D47,FALSE)*'Staffing and Finance Data Entry'!$D$23))) -> XXX
C48: 9 | D48: 6 | E48: Staffing-AfC2-Q4 | G48: CH-Staffing-AfC2-Q4 | H48: AfC 2 - Trainee Clinical Scientist (eg STP) - Externally Funded | I48: =IF(ISERROR(VLOOKUP($C48,'Staffing and Finance Data Entry'!$A$30:$P$60,$D48,FALSE))=TRUE,"XXX",IF(VLOOKUP($C48,'Staffing and Finance Data Entry'!$A$30:$P$60,$D48,FALSE)=0,"XXX",SUM(VLOOKUP($C48,'Staffing and Finance Data Entry'!$A$30:$P$60,$D48,FALSE)*'Staffing and Finance Data Entry'!$D$23))) -> XXX
D49: 6 | E49: Staffing-AfC2-Q6 | G49: CH-Staffing-AfC2-Q6 | H49: AfC 2 - Consultant Biomedical Scientist | I49: =IF(ISERROR(VLOOKUP($C49,'Staffing and Finance Data Entry'!$A$30:$P$60,$D49,FALSE))=TRUE,"XXX",IF(VLOOKUP($C49,'Staffing and Finance Data Entry'!$A$30:$P$60,$D49,FALSE)=0,"XXX",VLOOKUP($C49,'Staffing and Finance Data Entry'!$A$30:$P$60,$D49,FALSE))) -> XXX
C50: 10 | D50: 6 | E50: Staffing-AfC2-Q7 | G50: CH-Staffing-AfC2-Q7 | H50: AfC 2 - Non Trainee Biomedical Scientist | I50: =IF(ISERROR(VLOOKUP($C50,'Staffing and Finance Data Entry'!$A$30:$P$60,$D50,FALSE))=TRUE,"XXX",IF(VLOOKUP($C50,'Staffing and Finance Data Entry'!$A$30:$P$60,$D50,FALSE)=0,"XXX",VLOOKUP($C50,'Staffing and Finance Data Entry'!$A$30:$P$60,$D50,FALSE))) -> XXX
C51: 11 | D51: 6 | E51: Staffing-AfC2-Q8 | G51: CH-Staffing-AfC2-Q8 | H51: AfC 2 - Trainee Biomedical Scientist - Internally Funded | I51: =IF(ISERROR(VLOOKUP($C51,'Staffing and Finance Data Entry'!$A$30:$P$60,$D51,FALSE))=TRUE,"XXX",IF(VLOOKUP($C51,'Staffing and Finance Data Entry'!$A$30:$P$60,$D51,FALSE)=0,"XXX",SUM(VLOOKUP($C51,'Staffing and Finance Data Entry'!$A$30:$P$60,$D51,FALSE)*'Staffing and Finance Data Entry'!$D$24))) -> XXX
C52: 12 | D52: 6 | E52: Staffing-AfC2-Q9 | G52: CH-Staffing-AfC2-Q9 | H52: AfC 2 - Trainee Biomedical Scientist - Externally Funded | I52: =IF(ISERROR(VLOOKUP($C52,'Staffing and Finance Data Entry'!$A$30:$P$60,$D52,FALSE))=TRUE,"XXX",IF(VLOOKUP($C52,'Staffing and Finance Data Entry'!$A$30:$P$60,$D52,FALSE)=0,"XXX",SUM(VLOOKUP($C52,'Staffing and Finance Data Entry'!$A$30:$P$60,$D52,FALSE)*'Staffing and Finance Data Entry'!$D$24))) -> XXX
C53: 13 | D53: 6 | E53: Staffing-AfC2-Q11 | G53: CH-Staffing-AfC2-Q11 | H53: AfC 2 - Laboratory Support Worker/Medical Laboratory Assistant (MLA) | I53: =IF(ISERROR(VLOOKUP($C53,'Staffing and Finance Data Entry'!$A$30:$P$60,$D53,FALSE))=TRUE,"XXX",IF(VLOOKUP($C53,'Staffing and Finance Data Entry'!$A$30:$P$60,$D53,FALSE)=0,"XXX",VLOOKUP($C53,'Staffing and Finance Data Entry'!$A$30:$P$60,$D53,FALSE))) -> XXX
C54: 14 | D54: 6 | E54: Staffing-AfC2-Q12 | G54: CH-Staffing-AfC2-Q12 | H54: AfC 2 - Associate Practitioner | I54: =IF(ISERROR(VLOOKUP($C54,'Staffing and Finance Data Entry'!$A$30:$P$60,$D54,FALSE))=TRUE,"XXX",IF(VLOOKUP($C54,'Staffing and Finance Data Entry'!$A$30:$P$60,$D54,FALSE)=0,"XXX",VLOOKUP($C54,'Staffing and Finance Data Entry'!$A$30:$P$60,$D54,FALSE))) -> XXX
C55: 15 | D55: 6 | E55: Staffing-AfC2-Q28 | G55: CH-Staffing-AfC2-Q28 | H55: AfC 2 - Cytoscreeners | I55: =IF(ISERROR(VLOOKUP($C55,'Staffing and Finance Data Entry'!$A$30:$P$60,$D55,FALSE))=TRUE,"XXX",IF(VLOOKUP($C55,'Staffing and Finance Data Entry'!$A$30:$P$60,$D55,FALSE)=0,"XXX",VLOOKUP($C55,'Staffing and Finance Data Entry'!$A$30:$P$60,$D55,FALSE))) -> XXX
C56: 16 | D56: 6 | E56: Staffing-AfC2-Q14 | G56: CH-Staffing-AfC2-Q14 | H56: AfC 2 - Administrative and Clerical Staff | I56: =IF(ISERROR(VLOOKUP($C56,'Staffing and Finance Data Entry'!$A$30:$P$60,$D56,FALSE))=TRUE,"XXX",IF(VLOOKUP($C56,'Staffing and Finance Data Entry'!$A$30:$P$60,$D56,FALSE)=0,"XXX",VLOOKUP($C56,'Staffing and Finance Data Entry'!$A$30:$P$60,$D56,FALSE))) -> XXX
C57: 17 | D57: 6 | E57: Staffing-AfC2-Q15 | G57: CH-Staffing-AfC2-Q15 | H57: AfC 2 - Management Staff (Include Clinical Director, Finance Director, Lab Manager etc) | I57: =IF(ISERROR(VLOOKUP($C57,'Staffing and Finance Data Entry'!$A$30:$P$60,$D57,FALSE))=TRUE,"XXX",IF(VLOOKUP($C57,'Staffing and Finance Data Entry'!$A$30:$P$60,$D57,FALSE)=0,"XXX",VLOOKUP($C57,'Staffing and Finance Data Entry'!$A$30:$P$60,$D57,FALSE))) -> XXX
C58: 18 | D58: 6 | E58: Staffing-AfC2-Q16 | G58: CH-Staffing-AfC2-Q16 | H58: AfC 2 - Quality Managers | I58: =IF(ISERROR(VLOOKUP($C58,'Staffing and Finance Data Entry'!$A$30:$P$60,$D58,FALSE))=TRUE,"XXX",IF(VLOOKUP($C58,'Staffing and Finance Data Entry'!$A$30:$P$60,$D58,FALSE)=0,"XXX",VLOOKUP($C58,'Staffing and Finance Data Entry'!$A$30:$P$60,$D58,FALSE))) -> XXX
C59: 19 | D59: 6 | E59: Staffing-AfC2-Q17 | G59: CH-Staffing-AfC2-Q17 | H59: AfC 2 - IT Staff | I59: =IF(ISERROR(VLOOKUP($C59,'Staffing and Finance Data Entry'!$A$30:$P$60,$D59,FALSE))=TRUE,"XXX",IF(VLOOKUP($C59,'Staffing and Finance Data Entry'!$A$30:$P$60,$D59,FALSE)=0,"XXX",VLOOKUP($C59,'Staffing and Finance Data Entry'!$A$30:$P$60,$D59,FALSE))) -> XXX
C60: 20 | D60: 6 | E60: Staffing-AfC2-Q18 | G60: CH-Staffing-AfC2-Q18 | H60: AfC 2 - Remaning Other Staff | I60: =IF(ISERROR(VLOOKUP($C60,'Staffing and Finance Data Entry'!$A$30:$P$60,$D60,FALSE))=TRUE,"XXX",IF(VLOOKUP($C60,'Staffing and Finance Data Entry'!$A$30:$P$60,$D60,FALSE)=0,"XXX",VLOOKUP($C60,'Staffing and Finance Data Entry'!$A$30:$P$60,$D60,FALSE))) -> XXX
C61: 21 | D61: 6 | E61: Staffing-AfC2-Q20 | G61: CH-Staffing-AfC2-Q20 | H61: AfC 2 - Total | I61: =IF(SUM(I45:I60)=0,"XXX",SUM(I45:I60)) -> XXX
C62: 6 | D62: 7 | E62: Staffing-AfC3-Q1 | G62: CH-Staffing-AfC3-Q1 | H62: AfC 3 - Consultant Clinical Scientist | I62: =IF(ISERROR(VLOOKUP($C62,'Staffing and Finance Data Entry'!$A$30:$P$60,$D62,FALSE))=TRUE,"XXX",IF(VLOOKUP($C62,'Staffing and Finance Data Entry'!$A$30:$P$60,$D62,FALSE)=0,"XXX",VLOOKUP($C62,'Staffing and Finance Data Entry'!$A$30:$P$60,$D62,FALSE))) -> XXX
C63: 7 | D63: 7 | E63: Staffing-AfC3-Q2 | G63: CH-Staffing-AfC3-Q2 | H63: AfC 3 - Non-Trainee, Non-Consultant Clinical Scientist | I63: =IF(ISERROR(VLOOKUP($C63,'Staffing and Finance Data Entry'!$A$30:$P$60,$D63,FALSE))=TRUE,"XXX",IF(VLOOKUP($C63,'Staffing and Finance Data Entry'!$A$30:$P$60,$D63,FALSE)=0,"XXX",VLOOKUP($C63,'Staffing and Finance Data Entry'!$A$30:$P$60,$D63,FALSE))) -> XXX
C64: 8 | D64: 7 | E64: Staffing-AfC3-Q3 | G64: CH-Staffing-AfC3-Q3 | H64: AfC 3 - Trainee Clinical Scientist (eg STP) - Internally Funded | I64: =IF(ISERROR(VLOOKUP($C64,'Staffing and Finance Data Entry'!$A$30:$P$60,$D64,FALSE))=TRUE,"XXX",IF(VLOOKUP($C64,'Staffing and Finance Data Entry'!$A$30:$P$60,$D64,FALSE)=0,"XXX",SUM(VLOOKUP($C64,'Staffing and Finance Data Entry'!$A$30:$P$60,$D64,FALSE)*'Staffing and Finance Data Entry'!$D$23))) -> XXX
C65: 9 | D65: 7 | E65: Staffing-AfC3-Q4 | G65: CH-Staffing-AfC3-Q4 | H65: AfC 3 - Trainee Clinical Scientist (eg STP) - Externally Funded | I65: =IF(ISERROR(VLOOKUP($C65,'Staffing and Finance Data Entry'!$A$30:$P$60,$D65,FALSE))=TRUE,"XXX",IF(VLOOKUP($C65,'Staffing and Finance Data Entry'!$A$30:$P$60,$D65,FALSE)=0,"XXX",SUM(VLOOKUP($C65,'Staffing and Finance Data Entry'!$A$30:$P$60,$D65,FALSE)*'Staffing and Finance Data Entry'!$D$23))) -> XXX
D66: 7 | E66: Staffing-AfC3-Q6 | G66: CH-Staffing-AfC3-Q6 | H66: AfC 3 - Consultant Biomedical Scientist | I66: =IF(ISERROR(VLOOKUP($C66,'Staffing and Finance Data Entry'!$A$30:$P$60,$D66,FALSE))=TRUE,"XXX",IF(VLOOKUP($C66,'Staffing and Finance Data Entry'!$A$30:$P$60,$D66,FALSE)=0,"XXX",VLOOKUP($C66,'Staffing and Finance Data Entry'!$A$30:$P$60,$D66,FALSE))) -> XXX
C67: 10 | D67: 7 | E67: Staffing-AfC3-Q7 | G67: CH-Staffing-AfC3-Q7 | H67: AfC 3 - Non Trainee Biomedical Scientist | I67: =IF(ISERROR(VLOOKUP($C67,'Staffing and Finance Data Entry'!$A$30:$P$60,$D67,FALSE))=TRUE,"XXX",IF(VLOOKUP($C67,'Staffing and Finance Data Entry'!$A$30:$P$60,$D67,FALSE)=0,"XXX",VLOOKUP($C67,'Staffing and Finance Data Entry'!$A$30:$P$60,$D67,FALSE))) -> XXX
C68: 11 | D68: 7 | E68: Staffing-AfC3-Q8 | G68: CH-Staffing-AfC3-Q8 | H68: AfC 3 - Trainee Biomedical Scientist - Internally Funded | I68: =IF(ISERROR(VLOOKUP($C68,'Staffing and Finance Data Entry'!$A$30:$P$60,$D68,FALSE))=TRUE,"XXX",IF(VLOOKUP($C68,'Staffing and Finance Data Entry'!$A$30:$P$60,$D68,FALSE)=0,"XXX",SUM(VLOOKUP($C68,'Staffing and Finance Data Entry'!$A$30:$P$60,$D68,FALSE)*'Staffing and Finance Data Entry'!$D$24))) -> XXX
C69: 12 | D69: 7 | E69: Staffing-AfC3-Q9 | G69: CH-Staffing-AfC3-Q9 | H69: AfC 3 - Trainee Biomedical Scientist - Externally Funded | I69: =IF(ISERROR(VLOOKUP($C69,'Staffing and Finance Data Entry'!$A$30:$P$60,$D69,FALSE))=TRUE,"XXX",IF(VLOOKUP($C69,'Staffing and Finance Data Entry'!$A$30:$P$60,$D69,FALSE)=0,"XXX",SUM(VLOOKUP($C69,'Staffing and Finance Data Entry'!$A$30:$P$60,$D69,FALSE)*'Staffing and Finance Data Entry'!$D$24))) -> XXX
C70: 13 | D70: 7 | E70: Staffing-AfC3-Q11 | G70: CH-Staffing-AfC3-Q11 | H70: AfC 3 - Laboratory Support Worker/Medical Laboratory Assistant (MLA) | I70: =IF(ISERROR(VLOOKUP($C70,'Staffing and Finance Data Entry'!$A$30:$P$60,$D70,FALSE))=TRUE,"XXX",IF(VLOOKUP($C70,'Staffing and Finance Data Entry'!$A$30:$P$60,$D70,FALSE)=0,"XXX",VLOOKUP($C70,'Staffing and Finance Data Entry'!$A$30:$P$60,$D70,FALSE))) -> XXX
C71: 14 | D71: 7 | E71: Staffing-AfC3-Q12 | G71: =CONCATENATE($F$2,"-",E71) -> CH-Staffing-AfC3-Q12 | H71: AfC 3 - Associate Practitioner | I71: =IF(ISERROR(VLOOKUP($C71,'Staffing and Finance Data Entry'!$A$30:$P$60,$D71,FALSE))=TRUE,"XXX",IF(VLOOKUP($C71,'Staffing and Finance Data Entry'!$A$30:$P$60,$D71,FALSE)=0,"XXX",VLOOKUP($C71,'Staffing and Finance Data Entry'!$A$30:$P$60,$D71,FALSE))) -> XXX
C72: 15 | D72: 7 | E72: Staffing-AfC3-Q28 | G72: CH-Staffing-AfC3-Q28 | H72: AfC 3 - Cytoscreeners | I72: =IF(ISERROR(VLOOKUP($C72,'Staffing and Finance Data Entry'!$A$30:$P$60,$D72,FALSE))=TRUE,"XXX",IF(VLOOKUP($C72,'Staffing and Finance Data Entry'!$A$30:$P$60,$D72,FALSE)=0,"XXX",VLOOKUP($C72,'Staffing and Finance Data Entry'!$A$30:$P$60,$D72,FALSE))) -> XXX
C73: 16 | D73: 7 | E73: Staffing-AfC3-Q14 | G73: CH-Staffing-AfC3-Q14 | H73: AfC 3 - Administrative and Clerical Staff | I73: =IF(ISERROR(VLOOKUP($C73,'Staffing and Finance Data Entry'!$A$30:$P$60,$D73,FALSE))=TRUE,"XXX",IF(VLOOKUP($C73,'Staffing and Finance Data Entry'!$A$30:$P$60,$D73,FALSE)=0,"XXX",VLOOKUP($C73,'Staffing and Finance Data Entry'!$A$30:$P$60,$D73,FALSE))) -> XXX
C74: 17 | D74: 7 | E74: Staffing-AfC3-Q15 | G74: CH-Staffing-AfC3-Q15 | H74: AfC 3 - Management Staff (Include Clinical Director, Finance Director, Lab Manager etc) | I74: =IF(ISERROR(VLOOKUP($C74,'Staffing and Finance Data Entry'!$A$30:$P$60,$D74,FALSE))=TRUE,"XXX",IF(VLOOKUP($C74,'Staffing and Finance Data Entry'!$A$30:$P$60,$D74,FALSE)=0,"XXX",VLOOKUP($C74,'Staffing and Finance Data Entry'!$A$30:$P$60,$D74,FALSE))) -> XXX
C75: 18 | D75: 7 | E75: Staffing-AfC3-Q16 | G75: CH-Staffing-AfC3-Q16 | H75: AfC 3 - Quality Managers | I75: =IF(ISERROR(VLOOKUP($C75,'Staffing and Finance Data Entry'!$A$30:$P$60,$D75,FALSE))=TRUE,"XXX",IF(VLOOKUP($C75,'Staffing and Finance Data Entry'!$A$30:$P$60,$D75,FALSE)=0,"XXX",VLOOKUP($C75,'Staffing and Finance Data Entry'!$A$30:$P$60,$D75,FALSE))) -> XXX
C76: 19 | D76: 7 | E76: Staffing-AfC3-Q17 | G76: CH-Staffing-AfC3-Q17 | H76: AfC 3 - IT Staff | I76: =IF(ISERROR(VLOOKUP($C76,'Staffing and Finance Data Entry'!$A$30:$P$60,$D76,FALSE))=TRUE,"XXX",IF(VLOOKUP($C76,'Staffing and Finance Data Entry'!$A$30:$P$60,$D76,FALSE)=0,"XXX",VLOOKUP($C76,'Staffing and Finance Data Entry'!$A$30:$P$60,$D76,FALSE))) -> XXX
C77: 20 | D77: 7 | E77: Staffing-AfC3-Q18 | G77: CH-Staffing-AfC3-Q18 | H77: AfC 3 - Remaning Other Staff | I77: =IF(ISERROR(VLOOKUP($C77,'Staffing and Finance Data Entry'!$A$30:$P$60,$D77,FALSE))=TRUE,"XXX",IF(VLOOKUP($C77,'Staffing and Finance Data Entry'!$A$30:$P$60,$D77,FALSE)=0,"XXX",VLOOKUP($C77,'Staffing and Finance Data Entry'!$A$30:$P$60,$D77,FALSE))) -> XXX
C78: 21 | D78: 7 | E78: Staffing-AfC3-Q20 | G78: CH-Staffing-AfC3-Q20 | H78: AfC 3 - Total | I78: =IF(SUM(I62:I77)=0,"XXX",SUM(I62:I77)) -> XXX
C79: 6 | D79: 8 | E79: Staffing-AfC4-Q1 | G79: CH-Staffing-AfC4-Q1 | H79: AfC 4 - Consultant Clinical Scientist | I79: =IF(ISERROR(VLOOKUP($C79,'Staffing and Finance Data Entry'!$A$30:$P$60,$D79,FALSE))=TRUE,"XXX",IF(VLOOKUP($C79,'Staffing and Finance Data Entry'!$A$30:$P$60,$D79,FALSE)=0,"XXX",VLOOKUP($C79,'Staffing and Finance Data Entry'!$A$30:$P$60,$D79,FALSE))) -> XXX
C80: 7 | D80: 8 | E80: Staffing-AfC4-Q2 | G80: CH-Staffing-AfC4-Q2 | H80: AfC 4 - Non-Trainee, Non-Consultant Clinical Scientist | I80: =IF(ISERROR(VLOOKUP($C80,'Staffing and Finance Data Entry'!$A$30:$P$60,$D80,FALSE))=TRUE,"XXX",IF(VLOOKUP($C80,'Staffing and Finance Data Entry'!$A$30:$P$60,$D80,FALSE)=0,"XXX",VLOOKUP($C80,'Staffing and Finance Data Entry'!$A$30:$P$60,$D80,FALSE))) -> XXX
C81: 8 | D81: 8 | E81: Staffing-AfC4-Q3 | G81: CH-Staffing-AfC4-Q3 | H81: AfC 4 - Trainee Clinical Scientist (eg STP) - Internally Funded | I81: =IF(ISERROR(VLOOKUP($C81,'Staffing and Finance Data Entry'!$A$30:$P$60,$D81,FALSE))=TRUE,"XXX",IF(VLOOKUP($C81,'Staffing and Finance Data Entry'!$A$30:$P$60,$D81,FALSE)=0,"XXX",SUM(VLOOKUP($C81,'Staffing and Finance Data Entry'!$A$30:$P$60,$D81,FALSE)*'Staffing and Finance Data Entry'!$D$23))) -> XXX
C82: 9 | D82: 8 | E82: Staffing-AfC4-Q4 | G82: CH-Staffing-AfC4-Q4 | H82: AfC 4 - Trainee Clinical Scientist (eg STP) - Externally Funded | I82: =IF(ISERROR(VLOOKUP($C82,'Staffing and Finance Data Entry'!$A$30:$P$60,$D82,FALSE))=TRUE,"XXX",IF(VLOOKUP($C82,'Staffing and Finance Data Entry'!$A$30:$P$60,$D82,FALSE)=0,"XXX",SUM(VLOOKUP($C82,'Staffing and Finance Data Entry'!$A$30:$P$60,$D82,FALSE)*'Staffing and Finance Data Entry'!$D$23))) -> XXX
D83: 8 | E83: Staffing-AfC4-Q6 | G83: CH-Staffing-AfC4-Q6 | H83: AfC 4 - Consultant Biomedical Scientist | I83: =IF(ISERROR(VLOOKUP($C83,'Staffing and Finance Data Entry'!$A$30:$P$60,$D83,FALSE))=TRUE,"XXX",IF(VLOOKUP($C83,'Staffing and Finance Data Entry'!$A$30:$P$60,$D83,FALSE)=0,"XXX",VLOOKUP($C83,'Staffing and Finance Data Entry'!$A$30:$P$60,$D83,FALSE))) -> XXX
C84: 10 | D84: 8 | E84: Staffing-AfC4-Q7 | G84: CH-Staffing-AfC4-Q7 | H84: AfC 4 - Non Trainee Biomedical Scientist | I84: =IF(ISERROR(VLOOKUP($C84,'Staffing and Finance Data Entry'!$A$30:$P$60,$D84,FALSE))=TRUE,"XXX",IF(VLOOKUP($C84,'Staffing and Finance Data Entry'!$A$30:$P$60,$D84,FALSE)=0,"XXX",VLOOKUP($C84,'Staffing and Finance Data Entry'!$A$30:$P$60,$D84,FALSE))) -> XXX
C85: 11 | D85: 8 | E85: Staffing-AfC4-Q8 | G85: CH-Staffing-AfC4-Q8 | H85: AfC 4 - Trainee Biomedical Scientist - Internally Funded | I85: =IF(ISERROR(VLOOKUP($C85,'Staffing and Finance Data Entry'!$A$30:$P$60,$D85,FALSE))=TRUE,"XXX",IF(VLOOKUP($C85,'Staffing and Finance Data Entry'!$A$30:$P$60,$D85,FALSE)=0,"XXX",SUM(VLOOKUP($C85,'Staffing and Finance Data Entry'!$A$30:$P$60,$D85,FALSE)*'Staffing and Finance Data Entry'!$D$24))) -> XXX
C86: 12 | D86: 8 | E86: Staffing-AfC4-Q9 | G86: CH-Staffing-AfC4-Q9 | H86: AfC 4 - Trainee Biomedical Scientist - Externally Funded | I86: =IF(ISERROR(VLOOKUP($C86,'Staffing and Finance Data Entry'!$A$30:$P$60,$D86,FALSE))=TRUE,"XXX",IF(VLOOKUP($C86,'Staffing and Finance Data Entry'!$A$30:$P$60,$D86,FALSE)=0,"XXX",SUM(VLOOKUP($C86,'Staffing and Finance Data Entry'!$A$30:$P$60,$D86,FALSE)*'Staffing and Finance Data Entry'!$D$24))) -> XXX
C87: 13 | D87: 8 | E87: Staffing-AfC4-Q11 | G87: CH-Staffing-AfC4-Q11 | H87: AfC 4 - Laboratory Support Worker/Medical Laboratory Assistant (MLA) | I87: =IF(ISERROR(VLOOKUP($C87,'Staffing and Finance Data Entry'!$A$30:$P$60,$D87,FALSE))=TRUE,"XXX",IF(VLOOKUP($C87,'Staffing and Finance Data Entry'!$A$30:$P$60,$D87,FALSE)=0,"XXX",VLOOKUP($C87,'Staffing and Finance Data Entry'!$A$30:$P$60,$D87,FALSE))) -> XXX
C88: 14 | D88: 8 | E88: Staffing-AfC4-Q12 | G88: CH-Staffing-AfC4-Q12 | H88: AfC 4 - Associate Practitioner | I88: =IF(ISERROR(VLOOKUP($C88,'Staffing and Finance Data Entry'!$A$30:$P$60,$D88,FALSE))=TRUE,"XXX",IF(VLOOKUP($C88,'Staffing and Finance Data Entry'!$A$30:$P$60,$D88,FALSE)=0,"XXX",VLOOKUP($C88,'Staffing and Finance Data Entry'!$A$30:$P$60,$D88,FALSE))) -> XXX
C89: 15 | D89: 8 | E89: Staffing-AfC4-Q28 | G89: CH-Staffing-AfC4-Q28 | H89: AfC 4 - Cytoscreeners | I89: =IF(ISERROR(VLOOKUP($C89,'Staffing and Finance Data Entry'!$A$30:$P$60,$D89,FALSE))=TRUE,"XXX",IF(VLOOKUP($C89,'Staffing and Finance Data Entry'!$A$30:$P$60,$D89,FALSE)=0,"XXX",VLOOKUP($C89,'Staffing and Finance Data Entry'!$A$30:$P$60,$D89,FALSE))) -> XXX
C90: 16 | D90: 8 | E90: Staffing-AfC4-Q14 | G90: CH-Staffing-AfC4-Q14 | H90: AfC 4 - Administrative and Clerical Staff | I90: =IF(ISERROR(VLOOKUP($C90,'Staffing and Finance Data Entry'!$A$30:$P$60,$D90,FALSE))=TRUE,"XXX",IF(VLOOKUP($C90,'Staffing and Finance Data Entry'!$A$30:$P$60,$D90,FALSE)=0,"XXX",VLOOKUP($C90,'Staffing and Finance Data Entry'!$A$30:$P$60,$D90,FALSE))) -> XXX
C91: 17 | D91: 8 | E91: Staffing-AfC4-Q15 | G91: CH-Staffing-AfC4-Q15 | H91: AfC 4 - Management Staff (Include Clinical Director, Finance Director, Lab Manager etc) | I91: =IF(ISERROR(VLOOKUP($C91,'Staffing and Finance Data Entry'!$A$30:$P$60,$D91,FALSE))=TRUE,"XXX",IF(VLOOKUP($C91,'Staffing and Finance Data Entry'!$A$30:$P$60,$D91,FALSE)=0,"XXX",VLOOKUP($C91,'Staffing and Finance Data Entry'!$A$30:$P$60,$D91,FALSE))) -> XXX
C92: 18 | D92: 8 | E92: Staffing-AfC4-Q16 | G92: CH-Staffing-AfC4-Q16 | H92: AfC 4 - Quality Managers | I92: =IF(ISERROR(VLOOKUP($C92,'Staffing and Finance Data Entry'!$A$30:$P$60,$D92,FALSE))=TRUE,"XXX",IF(VLOOKUP($C92,'Staffing and Finance Data Entry'!$A$30:$P$60,$D92,FALSE)=0,"XXX",VLOOKUP($C92,'Staffing and Finance Data Entry'!$A$30:$P$60,$D92,FALSE))) -> XXX
C93: 19 | D93: 8 | E93: Staffing-AfC4-Q17 | G93: CH-Staffing-AfC4-Q17 | H93: AfC 4 - IT Staff | I93: =IF(ISERROR(VLOOKUP($C93,'Staffing and Finance Data Entry'!$A$30:$P$60,$D93,FALSE))=TRUE,"XXX",IF(VLOOKUP($C93,'Staffing and Finance Data Entry'!$A$30:$P$60,$D93,FALSE)=0,"XXX",VLOOKUP($C93,'Staffing and Finance Data Entry'!$A$30:$P$60,$D93,FALSE))) -> XXX
C94: 20 | D94: 8 | E94: Staffing-AfC4-Q18 | G94: CH-Staffing-AfC4-Q18 | H94: AfC 4 - Remaning Other Staff | I94: =IF(ISERROR(VLOOKUP($C94,'Staffing and Finance Data Entry'!$A$30:$P$60,$D94,FALSE))=TRUE,"XXX",IF(VLOOKUP($C94,'Staffing and Finance Data Entry'!$A$30:$P$60,$D94,FALSE)=0,"XXX",VLOOKUP($C94,'Staffing and Finance Data Entry'!$A$30:$P$60,$D94,FALSE))) -> XXX
C95: 21 | D95: 8 | E95: Staffing-AfC4-Q20 | G95: CH-Staffing-AfC4-Q20 | H95: AfC 4 - Total | I95: =IF(SUM(I79:I94)=0,"XXX",SUM(I79:I94)) -> XXX
C96: 6 | D96: 9 | E96: Staffing-AfC5-Q1 | G96: CH-Staffing-AfC5-Q1 | H96: AfC 5 - Consultant Clinical Scientist | I96: =IF(ISERROR(VLOOKUP($C96,'Staffing and Finance Data Entry'!$A$30:$P$60,$D96,FALSE))=TRUE,"XXX",IF(VLOOKUP($C96,'Staffing and Finance Data Entry'!$A$30:$P$60,$D96,FALSE)=0,"XXX",VLOOKUP($C96,'Staffing and Finance Data Entry'!$A$30:$P$60,$D96,FALSE))) -> XXX
C97: 7 | D97: 9 | E97: Staffing-AfC5-Q2 | G97: CH-Staffing-AfC5-Q2 | H97: AfC 5 - Non-Trainee, Non-Consultant Clinical Scientist | I97: =IF(ISERROR(VLOOKUP($C97,'Staffing and Finance Data Entry'!$A$30:$P$60,$D97,FALSE))=TRUE,"XXX",IF(VLOOKUP($C97,'Staffing and Finance Data Entry'!$A$30:$P$60,$D97,FALSE)=0,"XXX",VLOOKUP($C97,'Staffing and Finance Data Entry'!$A$30:$P$60,$D97,FALSE))) -> XXX
C98: 8 | D98: 9 | E98: Staffing-AfC5-Q3 | G98: CH-Staffing-AfC5-Q3 | H98: AfC 5 - Trainee Clinical Scientist (eg STP) - Internally Funded | I98: =IF(ISERROR(VLOOKUP($C98,'Staffing and Finance Data Entry'!$A$30:$P$60,$D98,FALSE))=TRUE,"XXX",IF(VLOOKUP($C98,'Staffing and Finance Data Entry'!$A$30:$P$60,$D98,FALSE)=0,"XXX",SUM(VLOOKUP($C98,'Staffing and Finance Data Entry'!$A$30:$P$60,$D98,FALSE)*'Staffing and Finance Data Entry'!$D$23))) -> XXX
C99: 9 | D99: 9 | E99: Staffing-AfC5-Q4 | G99: CH-Staffing-AfC5-Q4 | H99: AfC 5 - Trainee Clinical Scientist (eg STP) - Externally Funded | I99: =IF(ISERROR(VLOOKUP($C99,'Staffing and Finance Data Entry'!$A$30:$P$60,$D99,FALSE))=TRUE,"XXX",IF(VLOOKUP($C99,'Staffing and Finance Data Entry'!$A$30:$P$60,$D99,FALSE)=0,"XXX",SUM(VLOOKUP($C99,'Staffing and Finance Data Entry'!$A$30:$P$60,$D99,FALSE)*'Staffing and Finance Data Entry'!$D$23))) -> XXX
D100: 9 | E100: Staffing-AfC5-Q6 | G100: CH-Staffing-AfC5-Q6 | H100: AfC 5 - Consultant Biomedical Scientist | I100: =IF(ISERROR(VLOOKUP($C100,'Staffing and Finance Data Entry'!$A$30:$P$60,$D100,FALSE))=TRUE,"XXX",IF(VLOOKUP($C100,'Staffing and Finance Data Entry'!$A$30:$P$60,$D100,FALSE)=0,"XXX",VLOOKUP($C100,'Staffing and Finance Data Entry'!$A$30:$P$60,$D100,FALSE))) -> XXX
C101: 10 | D101: 9 | E101: Staffing-AfC5-Q7 | G101: CH-Staffing-AfC5-Q7 | H101: AfC 5 - Non Trainee Biomedical Scientist | I101: =IF(ISERROR(VLOOKUP($C101,'Staffing and Finance Data Entry'!$A$30:$P$60,$D101,FALSE))=TRUE,"XXX",IF(VLOOKUP($C101,'Staffing and Finance Data Entry'!$A$30:$P$60,$D101,FALSE)=0,"XXX",VLOOKUP($C101,'Staffing and Finance Data Entry'!$A$30:$P$60,$D101,FALSE))) -> XXX
C102: 11 | D102: 9 | E102: Staffing-AfC5-Q8 | G102: CH-Staffing-AfC5-Q8 | H102: AfC 5 - Trainee Biomedical Scientist - Internally Funded | I102: =IF(ISERROR(VLOOKUP($C102,'Staffing and Finance Data Entry'!$A$30:$P$60,$D102,FALSE))=TRUE,"XXX",IF(VLOOKUP($C102,'Staffing and Finance Data Entry'!$A$30:$P$60,$D102,FALSE)=0,"XXX",SUM(VLOOKUP($C102,'Staffing and Finance Data Entry'!$A$30:$P$60,$D102,FALSE)*'Staffing and Finance Data Entry'!$D$24))) -> XXX
C103: 12 | D103: 9 | E103: Staffing-AfC5-Q9 | G103: CH-Staffing-AfC5-Q9 | H103: AfC 5 - Trainee Biomedical Scientist - Externally Funded | I103: =IF(ISERROR(VLOOKUP($C103,'Staffing and Finance Data Entry'!$A$30:$P$60,$D103,FALSE))=TRUE,"XXX",IF(VLOOKUP($C103,'Staffing and Finance Data Entry'!$A$30:$P$60,$D103,FALSE)=0,"XXX",SUM(VLOOKUP($C103,'Staffing and Finance Data Entry'!$A$30:$P$60,$D103,FALSE)*'Staffing and Finance Data Entry'!$D$24))) -> XXX
C104: 13 | D104: 9 | E104: Staffing-AfC5-Q11 | G104: CH-Staffing-AfC5-Q11 | H104: AfC 5 - Laboratory Support Worker/Medical Laboratory Assistant (MLA) | I104: =IF(ISERROR(VLOOKUP($C104,'Staffing and Finance Data Entry'!$A$30:$P$60,$D104,FALSE))=TRUE,"XXX",IF(VLOOKUP($C104,'Staffing and Finance Data Entry'!$A$30:$P$60,$D104,FALSE)=0,"XXX",VLOOKUP($C104,'Staffing and Finance Data Entry'!$A$30:$P$60,$D104,FALSE))) -> XXX
C105: 14 | D105: 9 | E105: Staffing-AfC5-Q12 | G105: CH-Staffing-AfC5-Q12 | H105: AfC 5 - Associate Practitioner | I105: =IF(ISERROR(VLOOKUP($C105,'Staffing and Finance Data Entry'!$A$30:$P$60,$D105,FALSE))=TRUE,"XXX",IF(VLOOKUP($C105,'Staffing and Finance Data Entry'!$A$30:$P$60,$D105,FALSE)=0,"XXX",VLOOKUP($C105,'Staffing and Finance Data Entry'!$A$30:$P$60,$D105,FALSE))) -> XXX
C106: 15 | D106: 9 | E106: Staffing-AfC5-Q28 | G106: CH-Staffing-AfC5-Q28 | H106: AfC 5 - Cytoscreeners | I106: =IF(ISERROR(VLOOKUP($C106,'Staffing and Finance Data Entry'!$A$30:$P$60,$D106,FALSE))=TRUE,"XXX",IF(VLOOKUP($C106,'Staffing and Finance Data Entry'!$A$30:$P$60,$D106,FALSE)=0,"XXX",VLOOKUP($C106,'Staffing and Finance Data Entry'!$A$30:$P$60,$D106,FALSE))) -> XXX
C107: 16 | D107: 9 | E107: Staffing-AfC5-Q14 | G107: CH-Staffing-AfC5-Q14 | H107: AfC 5 - Administrative and Clerical Staff | I107: =IF(ISERROR(VLOOKUP($C107,'Staffing and Finance Data Entry'!$A$30:$P$60,$D107,FALSE))=TRUE,"XXX",IF(VLOOKUP($C107,'Staffing and Finance Data Entry'!$A$30:$P$60,$D107,FALSE)=0,"XXX",VLOOKUP($C107,'Staffing and Finance Data Entry'!$A$30:$P$60,$D107,FALSE))) -> XXX
C108: 17 | D108: 9 | E108: Staffing-AfC5-Q15 | G108: CH-Staffing-AfC5-Q15 | H108: AfC 5 - Management Staff (Include Clinical Director, Finance Director, Lab Manager etc) | I108: =IF(ISERROR(VLOOKUP($C108,'Staffing and Finance Data Entry'!$A$30:$P$60,$D108,FALSE))=TRUE,"XXX",IF(VLOOKUP($C108,'Staffing and Finance Data Entry'!$A$30:$P$60,$D108,FALSE)=0,"XXX",VLOOKUP($C108,'Staffing and Finance Data Entry'!$A$30:$P$60,$D108,FALSE))) -> XXX
C109: 18 | D109: 9 | E109: Staffing-AfC5-Q16 | G109: CH-Staffing-AfC5-Q16 | H109: AfC 5 - Quality Managers | I109: =IF(ISERROR(VLOOKUP($C109,'Staffing and Finance Data Entry'!$A$30:$P$60,$D109,FALSE))=TRUE,"XXX",IF(VLOOKUP($C109,'Staffing and Finance Data Entry'!$A$30:$P$60,$D109,FALSE)=0,"XXX",VLOOKUP($C109,'Staffing and Finance Data Entry'!$A$30:$P$60,$D109,FALSE))) -> XXX
C110: 19 | D110: 9 | E110: Staffing-AfC5-Q17 | G110: CH-Staffing-AfC5-Q17 | H110: AfC 5 - IT Staff | I110: =IF(ISERROR(VLOOKUP($C110,'Staffing and Finance Data Entry'!$A$30:$P$60,$D110,FALSE))=TRUE,"XXX",IF(VLOOKUP($C110,'Staffing and Finance Data Entry'!$A$30:$P$60,$D110,FALSE)=0,"XXX",VLOOKUP($C110,'Staffing and Finance Data Entry'!$A$30:$P$60,$D110,FALSE))) -> XXX
C111: 20 | D111: 9 | E111: Staffing-AfC5-Q18 | G111: CH-Staffing-AfC5-Q18 | H111: AfC 5 - Remaning Other Staff | I111: =IF(ISERROR(VLOOKUP($C111,'Staffing and Finance Data Entry'!$A$30:$P$60,$D111,FALSE))=TRUE,"XXX",IF(VLOOKUP($C111,'Staffing and Finance Data Entry'!$A$30:$P$60,$D111,FALSE)=0,"XXX",VLOOKUP($C111,'Staffing and Finance Data Entry'!$A$30:$P$60,$D111,FALSE))) -> XXX
C112: 21 | D112: 9 | E112: Staffing-AfC5-Q20 | G112: CH-Staffing-AfC5-Q20 | H112: AfC 5 - Total | I112: =IF(SUM(I96:I111)=0,"XXX",SUM(I96:I111)) -> XXX
C113: 6 | D113: 10 | E113: Staffing-AfC6-Q1 | G113: CH-Staffing-AfC6-Q1 | H113: AfC 6 - Consultant Clinical Scientist | I113: =IF(ISERROR(VLOOKUP($C113,'Staffing and Finance Data Entry'!$A$30:$P$60,$D113,FALSE))=TRUE,"XXX",IF(VLOOKUP($C113,'Staffing and Finance Data Entry'!$A$30:$P$60,$D113,FALSE)=0,"XXX",VLOOKUP($C113,'Staffing and Finance Data Entry'!$A$30:$P$60,$D113,FALSE))) -> XXX
C114: 7 | D114: 10 | E114: Staffing-AfC6-Q2 | G114: CH-Staffing-AfC6-Q2 | H114: AfC 6 - Non-Trainee, Non-Consultant Clinical Scientist | I114: =IF(ISERROR(VLOOKUP($C114,'Staffing and Finance Data Entry'!$A$30:$P$60,$D114,FALSE))=TRUE,"XXX",IF(VLOOKUP($C114,'Staffing and Finance Data Entry'!$A$30:$P$60,$D114,FALSE)=0,"XXX",VLOOKUP($C114,'Staffing and Finance Data Entry'!$A$30:$P$60,$D114,FALSE))) -> XXX
C115: 8 | D115: 10 | E115: Staffing-AfC6-Q3 | G115: CH-Staffing-AfC6-Q3 | H115: AfC 6 - Trainee Clinical Scientist (eg STP) - Internally Funded | I115: =IF(ISERROR(VLOOKUP($C115,'Staffing and Finance Data Entry'!$A$30:$P$60,$D115,FALSE))=TRUE,"XXX",IF(VLOOKUP($C115,'Staffing and Finance Data Entry'!$A$30:$P$60,$D115,FALSE)=0,"XXX",SUM(VLOOKUP($C115,'Staffing and Finance Data Entry'!$A$30:$P$60,$D115,FALSE)*'Staffing and Finance Data Entry'!$D$23))) -> XXX
C116: 9 | D116: 10 | E116: Staffing-AfC6-Q4 | G116: CH-Staffing-AfC6-Q4 | H116: AfC 6 - Trainee Clinical Scientist (eg STP) - Externally Funded | I116: =IF(ISERROR(VLOOKUP($C116,'Staffing and Finance Data Entry'!$A$30:$P$60,$D116,FALSE))=TRUE,"XXX",IF(VLOOKUP($C116,'Staffing and Finance Data Entry'!$A$30:$P$60,$D116,FALSE)=0,"XXX",SUM(VLOOKUP($C116,'Staffing and Finance Data Entry'!$A$30:$P$60,$D116,FALSE)*'Staffing and Finance Data Entry'!$D$23))) -> XXX
D117: 10 | E117: Staffing-AfC6-Q6 | G117: CH-Staffing-AfC6-Q6 | H117: AfC 6 - Consultant Biomedical Scientist | I117: =IF(ISERROR(VLOOKUP($C117,'Staffing and Finance Data Entry'!$A$30:$P$60,$D117,FALSE))=TRUE,"XXX",IF(VLOOKUP($C117,'Staffing and Finance Data Entry'!$A$30:$P$60,$D117,FALSE)=0,"XXX",VLOOKUP($C117,'Staffing and Finance Data Entry'!$A$30:$P$60,$D117,FALSE))) -> XXX
C118: 10 | D118: 10 | E118: Staffing-AfC6-Q7 | G118: CH-Staffing-AfC6-Q7 | H118: AfC 6 - Non Trainee Biomedical Scientist | I118: =IF(ISERROR(VLOOKUP($C118,'Staffing and Finance Data Entry'!$A$30:$P$60,$D118,FALSE))=TRUE,"XXX",IF(VLOOKUP($C118,'Staffing and Finance Data Entry'!$A$30:$P$60,$D118,FALSE)=0,"XXX",VLOOKUP($C118,'Staffing and Finance Data Entry'!$A$30:$P$60,$D118,FALSE))) -> XXX
C119: 11 | D119: 10 | E119: Staffing-AfC6-Q8 | G119: CH-Staffing-AfC6-Q8 | H119: AfC 6 - Trainee Biomedical Scientist - Internally Funded | I119: =IF(ISERROR(VLOOKUP($C119,'Staffing and Finance Data Entry'!$A$30:$P$60,$D119,FALSE))=TRUE,"XXX",IF(VLOOKUP($C119,'Staffing and Finance Data Entry'!$A$30:$P$60,$D119,FALSE)=0,"XXX",SUM(VLOOKUP($C119,'Staffing and Finance Data Entry'!$A$30:$P$60,$D119,FALSE)*'Staffing and Finance Data Entry'!$D$24))) -> XXX
C120: 12 | D120: 10 | E120: Staffing-AfC6-Q9 | G120: CH-Staffing-AfC6-Q9 | H120: AfC 6 - Trainee Biomedical Scientist - Externally Funded | I120: =IF(ISERROR(VLOOKUP($C120,'Staffing and Finance Data Entry'!$A$30:$P$60,$D120,FALSE))=TRUE,"XXX",IF(VLOOKUP($C120,'Staffing and Finance Data Entry'!$A$30:$P$60,$D120,FALSE)=0,"XXX",SUM(VLOOKUP($C120,'Staffing and Finance Data Entry'!$A$30:$P$60,$D120,FALSE)*'Staffing and Finance Data Entry'!$D$24))) -> XXX
C121: 13 | D121: 10 | E121: Staffing-AfC6-Q11 | G121: CH-Staffing-AfC6-Q11 | H121: AfC 6 - Laboratory Support Worker/Medical Laboratory Assistant (MLA) | I121: =IF(ISERROR(VLOOKUP($C121,'Staffing and Finance Data Entry'!$A$30:$P$60,$D121,FALSE))=TRUE,"XXX",IF(VLOOKUP($C121,'Staffing and Finance Data Entry'!$A$30:$P$60,$D121,FALSE)=0,"XXX",VLOOKUP($C121,'Staffing and Finance Data Entry'!$A$30:$P$60,$D121,FALSE))) -> XXX
C122: 14 | D122: 10 | E122: Staffing-AfC6-Q12 | G122: CH-Staffing-AfC6-Q12 | H122: AfC 6 - Associate Practitioner | I122: =IF(ISERROR(VLOOKUP($C122,'Staffing and Finance Data Entry'!$A$30:$P$60,$D122,FALSE))=TRUE,"XXX",IF(VLOOKUP($C122,'Staffing and Finance Data Entry'!$A$30:$P$60,$D122,FALSE)=0,"XXX",VLOOKUP($C122,'Staffing and Finance Data Entry'!$A$30:$P$60,$D122,FALSE))) -> XXX
C123: 15 | D123: 10 | E123: Staffing-AfC6-Q28 | G123: CH-Staffing-AfC6-Q28 | H123: AfC 6 - Cytoscreeners | I123: =IF(ISERROR(VLOOKUP($C123,'Staffing and Finance Data Entry'!$A$30:$P$60,$D123,FALSE))=TRUE,"XXX",IF(VLOOKUP($C123,'Staffing and Finance Data Entry'!$A$30:$P$60,$D123,FALSE)=0,"XXX",VLOOKUP($C123,'Staffing and Finance Data Entry'!$A$30:$P$60,$D123,FALSE))) -> XXX
C124: 16 | D124: 10 | E124: Staffing-AfC6-Q14 | G124: CH-Staffing-AfC6-Q14 | H124: AfC 6 - Administrative and Clerical Staff | I124: =IF(ISERROR(VLOOKUP($C124,'Staffing and Finance Data Entry'!$A$30:$P$60,$D124,FALSE))=TRUE,"XXX",IF(VLOOKUP($C124,'Staffing and Finance Data Entry'!$A$30:$P$60,$D124,FALSE)=0,"XXX",VLOOKUP($C124,'Staffing and Finance Data Entry'!$A$30:$P$60,$D124,FALSE))) -> XXX
C125: 17 | D125: 10 | E125: Staffing-AfC6-Q15 | G125: CH-Staffing-AfC6-Q15 | H125: AfC 6 - Management Staff (Include Clinical Director, Finance Director, Lab Manager etc) | I125: =IF(ISERROR(VLOOKUP($C125,'Staffing and Finance Data Entry'!$A$30:$P$60,$D125,FALSE))=TRUE,"XXX",IF(VLOOKUP($C125,'Staffing and Finance Data Entry'!$A$30:$P$60,$D125,FALSE)=0,"XXX",VLOOKUP($C125,'Staffing and Finance Data Entry'!$A$30:$P$60,$D125,FALSE))) -> XXX
C126: 18 | D126: 10 | E126: Staffing-AfC6-Q16 | G126: CH-Staffing-AfC6-Q16 | H126: AfC 6 - Quality Managers | I126: =IF(ISERROR(VLOOKUP($C126,'Staffing and Finance Data Entry'!$A$30:$P$60,$D126,FALSE))=TRUE,"XXX",IF(VLOOKUP($C126,'Staffing and Finance Data Entry'!$A$30:$P$60,$D126,FALSE)=0,"XXX",VLOOKUP($C126,'Staffing and Finance Data Entry'!$A$30:$P$60,$D126,FALSE))) -> XXX
C127: 19 | D127: 10 | E127: Staffing-AfC6-Q17 | G127: CH-Staffing-AfC6-Q17 | H127: AfC 6 - IT Staff | I127: =IF(ISERROR(VLOOKUP($C127,'Staffing and Finance Data Entry'!$A$30:$P$60,$D127,FALSE))=TRUE,"XXX",IF(VLOOKUP($C127,'Staffing and Finance Data Entry'!$A$30:$P$60,$D127,FALSE)=0,"XXX",VLOOKUP($C127,'Staffing and Finance Data Entry'!$A$30:$P$60,$D127,FALSE))) -> XXX
C128: 20 | D128: 10 | E128: Staffing-AfC6-Q18 | G128: CH-Staffing-AfC6-Q18 | H128: AfC 6 - Remaning Other Staff | I128: =IF(ISERROR(VLOOKUP($C128,'Staffing and Finance Data Entry'!$A$30:$P$60,$D128,FALSE))=TRUE,"XXX",IF(VLOOKUP($C128,'Staffing and Finance Data Entry'!$A$30:$P$60,$D128,FALSE)=0,"XXX",VLOOKUP($C128,'Staffing and Finance Data Entry'!$A$30:$P$60,$D128,FALSE))) -> XXX
C129: 21 | D129: 10 | E129: Staffing-AfC6-Q20 | G129: CH-Staffing-AfC6-Q20 | H129: AfC 6 - Total | I129: =IF(SUM(I113:I128)=0,"XXX",SUM(I113:I128)) -> XXX
C130: 6 | D130: 11 | E130: Staffing-AfC7-Q1 | G130: CH-Staffing-AfC7-Q1 | H130: AfC 7 - Consultant Clinical Scientist | I130: =IF(ISERROR(VLOOKUP($C130,'Staffing and Finance Data Entry'!$A$30:$P$60,$D130,FALSE))=TRUE,"XXX",IF(VLOOKUP($C130,'Staffing and Finance Data Entry'!$A$30:$P$60,$D130,FALSE)=0,"XXX",VLOOKUP($C130,'Staffing and Finance Data Entry'!$A$30:$P$60,$D130,FALSE))) -> XXX
C131: 7 | D131: 11 | E131: Staffing-AfC7-Q2 | G131: CH-Staffing-AfC7-Q2 | H131: AfC 7 - Non-Trainee, Non-Consultant Clinical Scientist | I131: =IF(ISERROR(VLOOKUP($C131,'Staffing and Finance Data Entry'!$A$30:$P$60,$D131,FALSE))=TRUE,"XXX",IF(VLOOKUP($C131,'Staffing and Finance Data Entry'!$A$30:$P$60,$D131,FALSE)=0,"XXX",VLOOKUP($C131,'Staffing and Finance Data Entry'!$A$30:$P$60,$D131,FALSE))) -> XXX
C132: 8 | D132: 11 | E132: Staffing-AfC7-Q3 | G132: CH-Staffing-AfC7-Q3 | H132: AfC 7 - Trainee Clinical Scientist (eg STP) - Internally Funded | I132: =IF(ISERROR(VLOOKUP($C132,'Staffing and Finance Data Entry'!$A$30:$P$60,$D132,FALSE))=TRUE,"XXX",IF(VLOOKUP($C132,'Staffing and Finance Data Entry'!$A$30:$P$60,$D132,FALSE)=0,"XXX",SUM(VLOOKUP($C132,'Staffing and Finance Data Entry'!$A$30:$P$60,$D132,FALSE)*'Staffing and Finance Data Entry'!$D$23))) -> XXX
C133: 9 | D133: 11 | E133: Staffing-AfC7-Q4 | G133: CH-Staffing-AfC7-Q4 | H133: AfC 7 - Trainee Clinical Scientist (eg STP) - Externally Funded | I133: =IF(ISERROR(VLOOKUP($C133,'Staffing and Finance Data Entry'!$A$30:$P$60,$D133,FALSE))=TRUE,"XXX",IF(VLOOKUP($C133,'Staffing and Finance Data Entry'!$A$30:$P$60,$D133,FALSE)=0,"XXX",SUM(VLOOKUP($C133,'Staffing and Finance Data Entry'!$A$30:$P$60,$D133,FALSE)*'Staffing and Finance Data Entry'!$D$23))) -> XXX
D134: 11 | E134: Staffing-AfC7-Q6 | G134: CH-Staffing-AfC7-Q6 | H134: AfC 7 - Consultant Biomedical Scientist | I134: =IF(ISERROR(VLOOKUP($C134,'Staffing and Finance Data Entry'!$A$30:$P$60,$D134,FALSE))=TRUE,"XXX",IF(VLOOKUP($C134,'Staffing and Finance Data Entry'!$A$30:$P$60,$D134,FALSE)=0,"XXX",VLOOKUP($C134,'Staffing and Finance Data Entry'!$A$30:$P$60,$D134,FALSE))) -> XXX
C135: 10 | D135: 11 | E135: Staffing-AfC7-Q7 | G135: =CONCATENATE($F$2,"-",E135) -> CH-Staffing-AfC7-Q7 | H135: AfC 7 - Non Trainee Biomedical Scientist | I135: =IF(ISERROR(VLOOKUP($C135,'Staffing and Finance Data Entry'!$A$30:$P$60,$D135,FALSE))=TRUE,"XXX",IF(VLOOKUP($C135,'Staffing and Finance Data Entry'!$A$30:$P$60,$D135,FALSE)=0,"XXX",VLOOKUP($C135,'Staffing and Finance Data Entry'!$A$30:$P$60,$D135,FALSE))) -> XXX
C136: 11 | D136: 11 | E136: Staffing-AfC7-Q8 | G136: CH-Staffing-AfC7-Q8 | H136: AfC 7 - Trainee Biomedical Scientist - Internally Funded | I136: =IF(ISERROR(VLOOKUP($C136,'Staffing and Finance Data Entry'!$A$30:$P$60,$D136,FALSE))=TRUE,"XXX",IF(VLOOKUP($C136,'Staffing and Finance Data Entry'!$A$30:$P$60,$D136,FALSE)=0,"XXX",SUM(VLOOKUP($C136,'Staffing and Finance Data Entry'!$A$30:$P$60,$D136,FALSE)*'Staffing and Finance Data Entry'!$D$24))) -> XXX
C137: 12 | D137: 11 | E137: Staffing-AfC7-Q9 | G137: CH-Staffing-AfC7-Q9 | H137: AfC 7 - Trainee Biomedical Scientist - Externally Funded | I137: =IF(ISERROR(VLOOKUP($C137,'Staffing and Finance Data Entry'!$A$30:$P$60,$D137,FALSE))=TRUE,"XXX",IF(VLOOKUP($C137,'Staffing and Finance Data Entry'!$A$30:$P$60,$D137,FALSE)=0,"XXX",SUM(VLOOKUP($C137,'Staffing and Finance Data Entry'!$A$30:$P$60,$D137,FALSE)*'Staffing and Finance Data Entry'!$D$24))) -> XXX
C138: 13 | D138: 11 | E138: Staffing-AfC7-Q11 | G138: CH-Staffing-AfC7-Q11 | H138: AfC 7 - Laboratory Support Worker/Medical Laboratory Assistant (MLA) | I138: =IF(ISERROR(VLOOKUP($C138,'Staffing and Finance Data Entry'!$A$30:$P$60,$D138,FALSE))=TRUE,"XXX",IF(VLOOKUP($C138,'Staffing and Finance Data Entry'!$A$30:$P$60,$D138,FALSE)=0,"XXX",VLOOKUP($C138,'Staffing and Finance Data Entry'!$A$30:$P$60,$D138,FALSE))) -> XXX
C139: 14 | D139: 11 | E139: Staffing-AfC7-Q12 | G139: CH-Staffing-AfC7-Q12 | H139: AfC 7 - Associate Practitioner | I139: =IF(ISERROR(VLOOKUP($C139,'Staffing and Finance Data Entry'!$A$30:$P$60,$D139,FALSE))=TRUE,"XXX",IF(VLOOKUP($C139,'Staffing and Finance Data Entry'!$A$30:$P$60,$D139,FALSE)=0,"XXX",VLOOKUP($C139,'Staffing and Finance Data Entry'!$A$30:$P$60,$D139,FALSE))) -> XXX
C140: 15 | D140: 11 | E140: Staffing-AfC7-Q28 | G140: CH-Staffing-AfC7-Q28 | H140: AfC 7 - Cytoscreeners | I140: =IF(ISERROR(VLOOKUP($C140,'Staffing and Finance Data Entry'!$A$30:$P$60,$D140,FALSE))=TRUE,"XXX",IF(VLOOKUP($C140,'Staffing and Finance Data Entry'!$A$30:$P$60,$D140,FALSE)=0,"XXX",VLOOKUP($C140,'Staffing and Finance Data Entry'!$A$30:$P$60,$D140,FALSE))) -> XXX
C141: 16 | D141: 11 | E141: Staffing-AfC7-Q14 | G141: CH-Staffing-AfC7-Q14 | H141: AfC 7 - Administrative and Clerical Staff | I141: =IF(ISERROR(VLOOKUP($C141,'Staffing and Finance Data Entry'!$A$30:$P$60,$D141,FALSE))=TRUE,"XXX",IF(VLOOKUP($C141,'Staffing and Finance Data Entry'!$A$30:$P$60,$D141,FALSE)=0,"XXX",VLOOKUP($C141,'Staffing and Finance Data Entry'!$A$30:$P$60,$D141,FALSE))) -> XXX
C142: 17 | D142: 11 | E142: Staffing-AfC7-Q15 | G142: CH-Staffing-AfC7-Q15 | H142: AfC 7 - Management Staff (Include Clinical Director, Finance Director, Lab Manager etc) | I142: =IF(ISERROR(VLOOKUP($C142,'Staffing and Finance Data Entry'!$A$30:$P$60,$D142,FALSE))=TRUE,"XXX",IF(VLOOKUP($C142,'Staffing and Finance Data Entry'!$A$30:$P$60,$D142,FALSE)=0,"XXX",VLOOKUP($C142,'Staffing and Finance Data Entry'!$A$30:$P$60,$D142,FALSE))) -> XXX
C143: 18 | D143: 11 | E143: Staffing-AfC7-Q16 | G143: CH-Staffing-AfC7-Q16 | H143: AfC 7 - Quality Managers | I143: =IF(ISERROR(VLOOKUP($C143,'Staffing and Finance Data Entry'!$A$30:$P$60,$D143,FALSE))=TRUE,"XXX",IF(VLOOKUP($C143,'Staffing and Finance Data Entry'!$A$30:$P$60,$D143,FALSE)=0,"XXX",VLOOKUP($C143,'Staffing and Finance Data Entry'!$A$30:$P$60,$D143,FALSE))) -> XXX
C144: 19 | D144: 11 | E144: Staffing-AfC7-Q17 | G144: CH-Staffing-AfC7-Q17 | H144: AfC 7 - IT Staff | I144: =IF(ISERROR(VLOOKUP($C144,'Staffing and Finance Data Entry'!$A$30:$P$60,$D144,FALSE))=TRUE,"XXX",IF(VLOOKUP($C144,'Staffing and Finance Data Entry'!$A$30:$P$60,$D144,FALSE)=0,"XXX",VLOOKUP($C144,'Staffing and Finance Data Entry'!$A$30:$P$60,$D144,FALSE))) -> XXX
C145: 20 | D145: 11 | E145: Staffing-AfC7-Q18 | G145: CH-Staffing-AfC7-Q18 | H145: AfC 7 - Remaning Other Staff | I145: =IF(ISERROR(VLOOKUP($C145,'Staffing and Finance Data Entry'!$A$30:$P$60,$D145,FALSE))=TRUE,"XXX",IF(VLOOKUP($C145,'Staffing and Finance Data Entry'!$A$30:$P$60,$D145,FALSE)=0,"XXX",VLOOKUP($C145,'Staffing and Finance Data Entry'!$A$30:$P$60,$D145,FALSE))) -> XXX
C146: 21 | D146: 11 | E146: Staffing-AfC7-Q20 | G146: CH-Staffing-AfC7-Q20 | H146: AfC 7 - Total | I146: =IF(SUM(I130:I145)=0,"XXX",SUM(I130:I145)) -> XXX
C147: 6 | D147: 12 | E147: Staffing-AfC8a-Q1 | G147: CH-Staffing-AfC8a-Q1 | H147: AfC 8a - Consultant Clinical Scientist | I147: =IF(ISERROR(VLOOKUP($C147,'Staffing and Finance Data Entry'!$A$30:$P$60,$D147,FALSE))=TRUE,"XXX",IF(VLOOKUP($C147,'Staffing and Finance Data Entry'!$A$30:$P$60,$D147,FALSE)=0,"XXX",VLOOKUP($C147,'Staffing and Finance Data Entry'!$A$30:$P$60,$D147,FALSE))) -> XXX
C148: 7 | D148: 12 | E148: Staffing-AfC8a-Q2 | G148: CH-Staffing-AfC8a-Q2 | H148: AfC 8a - Non-Trainee, Non-Consultant Clinical Scientist | I148: =IF(ISERROR(VLOOKUP($C148,'Staffing and Finance Data Entry'!$A$30:$P$60,$D148,FALSE))=TRUE,"XXX",IF(VLOOKUP($C148,'Staffing and Finance Data Entry'!$A$30:$P$60,$D148,FALSE)=0,"XXX",VLOOKUP($C148,'Staffing and Finance Data Entry'!$A$30:$P$60,$D148,FALSE))) -> XXX
C149: 8 | D149: 12 | E149: Staffing-AfC8a-Q3 | G149: CH-Staffing-AfC8a-Q3 | H149: AfC 8a - Trainee Clinical Scientist (eg STP) - Internally Funded | I149: =IF(ISERROR(VLOOKUP($C149,'Staffing and Finance Data Entry'!$A$30:$P$60,$D149,FALSE))=TRUE,"XXX",IF(VLOOKUP($C149,'Staffing and Finance Data Entry'!$A$30:$P$60,$D149,FALSE)=0,"XXX",SUM(VLOOKUP($C149,'Staffing and Finance Data Entry'!$A$30:$P$60,$D149,FALSE)*'Staffing and Finance Data Entry'!$D$23))) -> XXX
C150: 9 | D150: 12 | E150: Staffing-AfC8a-Q4 | G150: CH-Staffing-AfC8a-Q4 | H150: AfC 8a - Trainee Clinical Scientist (eg STP) - Externally Funded | I150: =IF(ISERROR(VLOOKUP($C150,'Staffing and Finance Data Entry'!$A$30:$P$60,$D150,FALSE))=TRUE,"XXX",IF(VLOOKUP($C150,'Staffing and Finance Data Entry'!$A$30:$P$60,$D150,FALSE)=0,"XXX",SUM(VLOOKUP($C150,'Staffing and Finance Data Entry'!$A$30:$P$60,$D150,FALSE)*'Staffing and Finance Data Entry'!$D$23))) -> XXX
D151: 12 | E151: Staffing-AfC8a-Q6 | G151: CH-Staffing-AfC8a-Q6 | H151: AfC 8a - Consultant Biomedical Scientist | I151: =IF(ISERROR(VLOOKUP($C151,'Staffing and Finance Data Entry'!$A$30:$P$60,$D151,FALSE))=TRUE,"XXX",IF(VLOOKUP($C151,'Staffing and Finance Data Entry'!$A$30:$P$60,$D151,FALSE)=0,"XXX",VLOOKUP($C151,'Staffing and Finance Data Entry'!$A$30:$P$60,$D151,FALSE))) -> XXX
C152: 10 | D152: 12 | E152: Staffing-AfC8a-Q7 | G152: CH-Staffing-AfC8a-Q7 | H152: AfC 8a - Non Trainee Biomedical Scientist | I152: =IF(ISERROR(VLOOKUP($C152,'Staffing and Finance Data Entry'!$A$30:$P$60,$D152,FALSE))=TRUE,"XXX",IF(VLOOKUP($C152,'Staffing and Finance Data Entry'!$A$30:$P$60,$D152,FALSE)=0,"XXX",VLOOKUP($C152,'Staffing and Finance Data Entry'!$A$30:$P$60,$D152,FALSE))) -> XXX
C153: 11 | D153: 12 | E153: Staffing-AfC8a-Q8 | G153: CH-Staffing-AfC8a-Q8 | H153: AfC 8a - Trainee Biomedical Scientist - Internally Funded | I153: =IF(ISERROR(VLOOKUP($C153,'Staffing and Finance Data Entry'!$A$30:$P$60,$D153,FALSE))=TRUE,"XXX",IF(VLOOKUP($C153,'Staffing and Finance Data Entry'!$A$30:$P$60,$D153,FALSE)=0,"XXX",SUM(VLOOKUP($C153,'Staffing and Finance Data Entry'!$A$30:$P$60,$D153,FALSE)*'Staffing and Finance Data Entry'!$D$24))) -> XXX
C154: 12 | D154: 12 | E154: Staffing-AfC8a-Q9 | G154: CH-Staffing-AfC8a-Q9 | H154: AfC 8a - Trainee Biomedical Scientist - Externally Funded | I154: =IF(ISERROR(VLOOKUP($C154,'Staffing and Finance Data Entry'!$A$30:$P$60,$D154,FALSE))=TRUE,"XXX",IF(VLOOKUP($C154,'Staffing and Finance Data Entry'!$A$30:$P$60,$D154,FALSE)=0,"XXX",SUM(VLOOKUP($C154,'Staffing and Finance Data Entry'!$A$30:$P$60,$D154,FALSE)*'Staffing and Finance Data Entry'!$D$24))) -> XXX
C155: 13 | D155: 12 | E155: Staffing-AfC8a-Q11 | G155: CH-Staffing-AfC8a-Q11 | H155: AfC 8a - Laboratory Support Worker/Medical Laboratory Assistant (MLA) | I155: =IF(ISERROR(VLOOKUP($C155,'Staffing and Finance Data Entry'!$A$30:$P$60,$D155,FALSE))=TRUE,"XXX",IF(VLOOKUP($C155,'Staffing and Finance Data Entry'!$A$30:$P$60,$D155,FALSE)=0,"XXX",VLOOKUP($C155,'Staffing and Finance Data Entry'!$A$30:$P$60,$D155,FALSE))) -> XXX
C156: 14 | D156: 12 | E156: Staffing-AfC8a-Q12 | G156: CH-Staffing-AfC8a-Q12 | H156: AfC 8a - Associate Practitioner | I156: =IF(ISERROR(VLOOKUP($C156,'Staffing and Finance Data Entry'!$A$30:$P$60,$D156,FALSE))=TRUE,"XXX",IF(VLOOKUP($C156,'Staffing and Finance Data Entry'!$A$30:$P$60,$D156,FALSE)=0,"XXX",VLOOKUP($C156,'Staffing and Finance Data Entry'!$A$30:$P$60,$D156,FALSE))) -> XXX
C157: 15 | D157: 12 | E157: Staffing-AfC8a-Q28 | G157: CH-Staffing-AfC8a-Q28 | H157: AfC 8a - Cytoscreeners | I157: =IF(ISERROR(VLOOKUP($C157,'Staffing and Finance Data Entry'!$A$30:$P$60,$D157,FALSE))=TRUE,"XXX",IF(VLOOKUP($C157,'Staffing and Finance Data Entry'!$A$30:$P$60,$D157,FALSE)=0,"XXX",VLOOKUP($C157,'Staffing and Finance Data Entry'!$A$30:$P$60,$D157,FALSE))) -> XXX
C158: 16 | D158: 12 | E158: Staffing-AfC8a-Q14 | G158: CH-Staffing-AfC8a-Q14 | H158: AfC 8a - Administrative and Clerical Staff | I158: =IF(ISERROR(VLOOKUP($C158,'Staffing and Finance Data Entry'!$A$30:$P$60,$D158,FALSE))=TRUE,"XXX",IF(VLOOKUP($C158,'Staffing and Finance Data Entry'!$A$30:$P$60,$D158,FALSE)=0,"XXX",VLOOKUP($C158,'Staffing and Finance Data Entry'!$A$30:$P$60,$D158,FALSE))) -> XXX
C159: 17 | D159: 12 | E159: Staffing-AfC8a-Q15 | G159: CH-Staffing-AfC8a-Q15 | H159: AfC 8a - Management Staff (Include Clinical Director, Finance Director, Lab Manager etc) | I159: =IF(ISERROR(VLOOKUP($C159,'Staffing and Finance Data Entry'!$A$30:$P$60,$D159,FALSE))=TRUE,"XXX",IF(VLOOKUP($C159,'Staffing and Finance Data Entry'!$A$30:$P$60,$D159,FALSE)=0,"XXX",VLOOKUP($C159,'Staffing and Finance Data Entry'!$A$30:$P$60,$D159,FALSE))) -> XXX
C160: 18 | D160: 12 | E160: Staffing-AfC8a-Q16 | G160: CH-Staffing-AfC8a-Q16 | H160: AfC 8a - Quality Managers | I160: =IF(ISERROR(VLOOKUP($C160,'Staffing and Finance Data Entry'!$A$30:$P$60,$D160,FALSE))=TRUE,"XXX",IF(VLOOKUP($C160,'Staffing and Finance Data Entry'!$A$30:$P$60,$D160,FALSE)=0,"XXX",VLOOKUP($C160,'Staffing and Finance Data Entry'!$A$30:$P$60,$D160,FALSE))) -> XXX
C161: 19 | D161: 12 | E161: Staffing-AfC8a-Q17 | G161: CH-Staffing-AfC8a-Q17 | H161: AfC 8a - IT Staff | I161: =IF(ISERROR(VLOOKUP($C161,'Staffing and Finance Data Entry'!$A$30:$P$60,$D161,FALSE))=TRUE,"XXX",IF(VLOOKUP($C161,'Staffing and Finance Data Entry'!$A$30:$P$60,$D161,FALSE)=0,"XXX",VLOOKUP($C161,'Staffing and Finance Data Entry'!$A$30:$P$60,$D161,FALSE))) -> XXX
C162: 20 | D162: 12 | E162: Staffing-AfC8a-Q18 | G162: CH-Staffing-AfC8a-Q18 | H162: AfC 8a - Remaning Other Staff | I162: =IF(ISERROR(VLOOKUP($C162,'Staffing and Finance Data Entry'!$A$30:$P$60,$D162,FALSE))=TRUE,"XXX",IF(VLOOKUP($C162,'Staffing and Finance Data Entry'!$A$30:$P$60,$D162,FALSE)=0,"XXX",VLOOKUP($C162,'Staffing and Finance Data Entry'!$A$30:$P$60,$D162,FALSE))) -> XXX
C163: 21 | D163: 12 | E163: Staffing-AfC8a-Q20 | G163: CH-Staffing-AfC8a-Q20 | H163: AfC 8a - Total | I163: =IF(SUM(I147:I162)=0,"XXX",SUM(I147:I162)) -> XXX
C164: 6 | D164: 13 | E164: Staffing-AfC8b-Q1 | G164: CH-Staffing-AfC8b-Q1 | H164: AfC 8b - Consultant Clinical Scientist | I164: =IF(ISERROR(VLOOKUP($C164,'Staffing and Finance Data Entry'!$A$30:$P$60,$D164,FALSE))=TRUE,"XXX",IF(VLOOKUP($C164,'Staffing and Finance Data Entry'!$A$30:$P$60,$D164,FALSE)=0,"XXX",VLOOKUP($C164,'Staffing and Finance Data Entry'!$A$30:$P$60,$D164,FALSE))) -> XXX
C165: 7 | D165: 13 | E165: Staffing-AfC8b-Q2 | G165: CH-Staffing-AfC8b-Q2 | H165: AfC 8b - Non-Trainee, Non-Consultant Clinical Scientist | I165: =IF(ISERROR(VLOOKUP($C165,'Staffing and Finance Data Entry'!$A$30:$P$60,$D165,FALSE))=TRUE,"XXX",IF(VLOOKUP($C165,'Staffing and Finance Data Entry'!$A$30:$P$60,$D165,FALSE)=0,"XXX",VLOOKUP($C165,'Staffing and Finance Data Entry'!$A$30:$P$60,$D165,FALSE))) -> XXX
C166: 8 | D166: 13 | E166: Staffing-AfC8b-Q3 | G166: CH-Staffing-AfC8b-Q3 | H166: AfC 8b - Trainee Clinical Scientist (eg STP) - Internally Funded | I166: =IF(ISERROR(VLOOKUP($C166,'Staffing and Finance Data Entry'!$A$30:$P$60,$D166,FALSE))=TRUE,"XXX",IF(VLOOKUP($C166,'Staffing and Finance Data Entry'!$A$30:$P$60,$D166,FALSE)=0,"XXX",SUM(VLOOKUP($C166,'Staffing and Finance Data Entry'!$A$30:$P$60,$D166,FALSE)*'Staffing and Finance Data Entry'!$D$23))) -> XXX
C167: 9 | D167: 13 | E167: Staffing-AfC8b-Q4 | G167: CH-Staffing-AfC8b-Q4 | H167: AfC 8b - Trainee Clinical Scientist (eg STP) - Externally Funded | I167: =IF(ISERROR(VLOOKUP($C167,'Staffing and Finance Data Entry'!$A$30:$P$60,$D167,FALSE))=TRUE,"XXX",IF(VLOOKUP($C167,'Staffing and Finance Data Entry'!$A$30:$P$60,$D167,FALSE)=0,"XXX",SUM(VLOOKUP($C167,'Staffing and Finance Data Entry'!$A$30:$P$60,$D167,FALSE)*'Staffing and Finance Data Entry'!$D$23))) -> XXX
D168: 13 | E168: Staffing-AfC8b-Q6 | G168: CH-Staffing-AfC8b-Q6 | H168: AfC 8b - Consultant Biomedical Scientist | I168: =IF(ISERROR(VLOOKUP($C168,'Staffing and Finance Data Entry'!$A$30:$P$60,$D168,FALSE))=TRUE,"XXX",IF(VLOOKUP($C168,'Staffing and Finance Data Entry'!$A$30:$P$60,$D168,FALSE)=0,"XXX",VLOOKUP($C168,'Staffing and Finance Data Entry'!$A$30:$P$60,$D168,FALSE))) -> XXX
C169: 10 | D169: 13 | E169: Staffing-AfC8b-Q7 | G169: CH-Staffing-AfC8b-Q7 | H169: AfC 8b - Non Trainee Biomedical Scientist | I169: =IF(ISERROR(VLOOKUP($C169,'Staffing and Finance Data Entry'!$A$30:$P$60,$D169,FALSE))=TRUE,"XXX",IF(VLOOKUP($C169,'Staffing and Finance Data Entry'!$A$30:$P$60,$D169,FALSE)=0,"XXX",VLOOKUP($C169,'Staffing and Finance Data Entry'!$A$30:$P$60,$D169,FALSE))) -> XXX
C170: 11 | D170: 13 | E170: Staffing-AfC8b-Q8 | G170: CH-Staffing-AfC8b-Q8 | H170: AfC 8b - Trainee Biomedical Scientist - Internally Funded | I170: =IF(ISERROR(VLOOKUP($C170,'Staffing and Finance Data Entry'!$A$30:$P$60,$D170,FALSE))=TRUE,"XXX",IF(VLOOKUP($C170,'Staffing and Finance Data Entry'!$A$30:$P$60,$D170,FALSE)=0,"XXX",SUM(VLOOKUP($C170,'Staffing and Finance Data Entry'!$A$30:$P$60,$D170,FALSE)*'Staffing and Finance Data Entry'!$D$24))) -> XXX
C171: 12 | D171: 13 | E171: Staffing-AfC8b-Q9 | G171: CH-Staffing-AfC8b-Q9 | H171: AfC 8b - Trainee Biomedical Scientist - Externally Funded | I171: =IF(ISERROR(VLOOKUP($C171,'Staffing and Finance Data Entry'!$A$30:$P$60,$D171,FALSE))=TRUE,"XXX",IF(VLOOKUP($C171,'Staffing and Finance Data Entry'!$A$30:$P$60,$D171,FALSE)=0,"XXX",SUM(VLOOKUP($C171,'Staffing and Finance Data Entry'!$A$30:$P$60,$D171,FALSE)*'Staffing and Finance Data Entry'!$D$24))) -> XXX
C172: 13 | D172: 13 | E172: Staffing-AfC8b-Q11 | G172: CH-Staffing-AfC8b-Q11 | H172: AfC 8b - Laboratory Support Worker/Medical Laboratory Assistant (MLA) | I172: =IF(ISERROR(VLOOKUP($C172,'Staffing and Finance Data Entry'!$A$30:$P$60,$D172,FALSE))=TRUE,"XXX",IF(VLOOKUP($C172,'Staffing and Finance Data Entry'!$A$30:$P$60,$D172,FALSE)=0,"XXX",VLOOKUP($C172,'Staffing and Finance Data Entry'!$A$30:$P$60,$D172,FALSE))) -> XXX
C173: 14 | D173: 13 | E173: Staffing-AfC8b-Q12 | G173: CH-Staffing-AfC8b-Q12 | H173: AfC 8b - Associate Practitioner | I173: =IF(ISERROR(VLOOKUP($C173,'Staffing and Finance Data Entry'!$A$30:$P$60,$D173,FALSE))=TRUE,"XXX",IF(VLOOKUP($C173,'Staffing and Finance Data Entry'!$A$30:$P$60,$D173,FALSE)=0,"XXX",VLOOKUP($C173,'Staffing and Finance Data Entry'!$A$30:$P$60,$D173,FALSE))) -> XXX
C174: 15 | D174: 13 | E174: Staffing-AfC8b-Q28 | G174: CH-Staffing-AfC8b-Q28 | H174: AfC 8b - Cytoscreeners | I174: =IF(ISERROR(VLOOKUP($C174,'Staffing and Finance Data Entry'!$A$30:$P$60,$D174,FALSE))=TRUE,"XXX",IF(VLOOKUP($C174,'Staffing and Finance Data Entry'!$A$30:$P$60,$D174,FALSE)=0,"XXX",VLOOKUP($C174,'Staffing and Finance Data Entry'!$A$30:$P$60,$D174,FALSE))) -> XXX
C175: 16 | D175: 13 | E175: Staffing-AfC8b-Q14 | G175: CH-Staffing-AfC8b-Q14 | H175: AfC 8b - Administrative and Clerical Staff | I175: =IF(ISERROR(VLOOKUP($C175,'Staffing and Finance Data Entry'!$A$30:$P$60,$D175,FALSE))=TRUE,"XXX",IF(VLOOKUP($C175,'Staffing and Finance Data Entry'!$A$30:$P$60,$D175,FALSE)=0,"XXX",VLOOKUP($C175,'Staffing and Finance Data Entry'!$A$30:$P$60,$D175,FALSE))) -> XXX
C176: 17 | D176: 13 | E176: Staffing-AfC8b-Q15 | G176: CH-Staffing-AfC8b-Q15 | H176: AfC 8b - Management Staff (Include Clinical Director, Finance Director, Lab Manager etc) | I176: =IF(ISERROR(VLOOKUP($C176,'Staffing and Finance Data Entry'!$A$30:$P$60,$D176,FALSE))=TRUE,"XXX",IF(VLOOKUP($C176,'Staffing and Finance Data Entry'!$A$30:$P$60,$D176,FALSE)=0,"XXX",VLOOKUP($C176,'Staffing and Finance Data Entry'!$A$30:$P$60,$D176,FALSE))) -> XXX
C177: 18 | D177: 13 | E177: Staffing-AfC8b-Q16 | G177: CH-Staffing-AfC8b-Q16 | H177: AfC 8b - Quality Managers | I177: =IF(ISERROR(VLOOKUP($C177,'Staffing and Finance Data Entry'!$A$30:$P$60,$D177,FALSE))=TRUE,"XXX",IF(VLOOKUP($C177,'Staffing and Finance Data Entry'!$A$30:$P$60,$D177,FALSE)=0,"XXX",VLOOKUP($C177,'Staffing and Finance Data Entry'!$A$30:$P$60,$D177,FALSE))) -> XXX
C178: 19 | D178: 13 | E178: Staffing-AfC8b-Q17 | G178: CH-Staffing-AfC8b-Q17 | H178: AfC 8b - IT Staff | I178: =IF(ISERROR(VLOOKUP($C178,'Staffing and Finance Data Entry'!$A$30:$P$60,$D178,FALSE))=TRUE,"XXX",IF(VLOOKUP($C178,'Staffing and Finance Data Entry'!$A$30:$P$60,$D178,FALSE)=0,"XXX",VLOOKUP($C178,'Staffing and Finance Data Entry'!$A$30:$P$60,$D178,FALSE))) -> XXX
C179: 20 | D179: 13 | E179: Staffing-AfC8b-Q18 | G179: CH-Staffing-AfC8b-Q18 | H179: AfC 8b - Remaning Other Staff | I179: =IF(ISERROR(VLOOKUP($C179,'Staffing and Finance Data Entry'!$A$30:$P$60,$D179,FALSE))=TRUE,"XXX",IF(VLOOKUP($C179,'Staffing and Finance Data Entry'!$A$30:$P$60,$D179,FALSE)=0,"XXX",VLOOKUP($C179,'Staffing and Finance Data Entry'!$A$30:$P$60,$D179,FALSE))) -> XXX
C180: 21 | D180: 13 | E180: Staffing-AfC8b-Q20 | G180: CH-Staffing-AfC8b-Q20 | H180: AfC 8b - Total | I180: =IF(SUM(I164:I179)=0,"XXX",SUM(I164:I179)) -> XXX
C181: 6 | D181: 14 | E181: Staffing-AfC8c-Q1 | G181: CH-Staffing-AfC8c-Q1 | H181: AfC 8c - Consultant Clinical Scientist | I181: =IF(ISERROR(VLOOKUP($C181,'Staffing and Finance Data Entry'!$A$30:$P$60,$D181,FALSE))=TRUE,"XXX",IF(VLOOKUP($C181,'Staffing and Finance Data Entry'!$A$30:$P$60,$D181,FALSE)=0,"XXX",VLOOKUP($C181,'Staffing and Finance Data Entry'!$A$30:$P$60,$D181,FALSE))) -> XXX
C182: 7 | D182: 14 | E182: Staffing-AfC8c-Q2 | G182: CH-Staffing-AfC8c-Q2 | H182: AfC 8c - Non-Trainee, Non-Consultant Clinical Scientist | I182: =IF(ISERROR(VLOOKUP($C182,'Staffing and Finance Data Entry'!$A$30:$P$60,$D182,FALSE))=TRUE,"XXX",IF(VLOOKUP($C182,'Staffing and Finance Data Entry'!$A$30:$P$60,$D182,FALSE)=0,"XXX",VLOOKUP($C182,'Staffing and Finance Data Entry'!$A$30:$P$60,$D182,FALSE))) -> XXX
C183: 8 | D183: 14 | E183: Staffing-AfC8c-Q3 | G183: CH-Staffing-AfC8c-Q3 | H183: AfC 8c - Trainee Clinical Scientist (eg STP) - Internally Funded | I183: =IF(ISERROR(VLOOKUP($C183,'Staffing and Finance Data Entry'!$A$30:$P$60,$D183,FALSE))=TRUE,"XXX",IF(VLOOKUP($C183,'Staffing and Finance Data Entry'!$A$30:$P$60,$D183,FALSE)=0,"XXX",SUM(VLOOKUP($C183,'Staffing and Finance Data Entry'!$A$30:$P$60,$D183,FALSE)*'Staffing and Finance Data Entry'!$D$23))) -> XXX
C184: 9 | D184: 14 | E184: Staffing-AfC8c-Q4 | G184: CH-Staffing-AfC8c-Q4 | H184: AfC 8c - Trainee Clinical Scientist (eg STP) - Externally Funded | I184: =IF(ISERROR(VLOOKUP($C184,'Staffing and Finance Data Entry'!$A$30:$P$60,$D184,FALSE))=TRUE,"XXX",IF(VLOOKUP($C184,'Staffing and Finance Data Entry'!$A$30:$P$60,$D184,FALSE)=0,"XXX",SUM(VLOOKUP($C184,'Staffing and Finance Data Entry'!$A$30:$P$60,$D184,FALSE)*'Staffing and Finance Data Entry'!$D$23))) -> XXX
D185: 14 | E185: Staffing-AfC8c-Q6 | G185: CH-Staffing-AfC8c-Q6 | H185: AfC 8c - Consultant Biomedical Scientist | I185: =IF(ISERROR(VLOOKUP($C185,'Staffing and Finance Data Entry'!$A$30:$P$60,$D185,FALSE))=TRUE,"XXX",IF(VLOOKUP($C185,'Staffing and Finance Data Entry'!$A$30:$P$60,$D185,FALSE)=0,"XXX",VLOOKUP($C185,'Staffing and Finance Data Entry'!$A$30:$P$60,$D185,FALSE))) -> XXX
C186: 10 | D186: 14 | E186: Staffing-AfC8c-Q7 | G186: CH-Staffing-AfC8c-Q7 | H186: AfC 8c - Non Trainee Biomedical Scientist | I186: =IF(ISERROR(VLOOKUP($C186,'Staffing and Finance Data Entry'!$A$30:$P$60,$D186,FALSE))=TRUE,"XXX",IF(VLOOKUP($C186,'Staffing and Finance Data Entry'!$A$30:$P$60,$D186,FALSE)=0,"XXX",VLOOKUP($C186,'Staffing and Finance Data Entry'!$A$30:$P$60,$D186,FALSE))) -> XXX
C187: 11 | D187: 14 | E187: Staffing-AfC8c-Q8 | G187: CH-Staffing-AfC8c-Q8 | H187: AfC 8c - Trainee Biomedical Scientist - Internally Funded | I187: =IF(ISERROR(VLOOKUP($C187,'Staffing and Finance Data Entry'!$A$30:$P$60,$D187,FALSE))=TRUE,"XXX",IF(VLOOKUP($C187,'Staffing and Finance Data Entry'!$A$30:$P$60,$D187,FALSE)=0,"XXX",SUM(VLOOKUP($C187,'Staffing and Finance Data Entry'!$A$30:$P$60,$D187,FALSE)*'Staffing and Finance Data Entry'!$D$24))) -> XXX
C188: 12 | D188: 14 | E188: Staffing-AfC8c-Q9 | G188: CH-Staffing-AfC8c-Q9 | H188: AfC 8c - Trainee Biomedical Scientist - Externally Funded | I188: =IF(ISERROR(VLOOKUP($C188,'Staffing and Finance Data Entry'!$A$30:$P$60,$D188,FALSE))=TRUE,"XXX",IF(VLOOKUP($C188,'Staffing and Finance Data Entry'!$A$30:$P$60,$D188,FALSE)=0,"XXX",SUM(VLOOKUP($C188,'Staffing and Finance Data Entry'!$A$30:$P$60,$D188,FALSE)*'Staffing and Finance Data Entry'!$D$24))) -> XXX
C189: 13 | D189: 14 | E189: Staffing-AfC8c-Q11 | G189: CH-Staffing-AfC8c-Q11 | H189: AfC 8c - Laboratory Support Worker/Medical Laboratory Assistant (MLA) | I189: =IF(ISERROR(VLOOKUP($C189,'Staffing and Finance Data Entry'!$A$30:$P$60,$D189,FALSE))=TRUE,"XXX",IF(VLOOKUP($C189,'Staffing and Finance Data Entry'!$A$30:$P$60,$D189,FALSE)=0,"XXX",VLOOKUP($C189,'Staffing and Finance Data Entry'!$A$30:$P$60,$D189,FALSE))) -> XXX
C190: 14 | D190: 14 | E190: Staffing-AfC8c-Q12 | G190: CH-Staffing-AfC8c-Q12 | H190: AfC 8c - Associate Practitioner | I190: =IF(ISERROR(VLOOKUP($C190,'Staffing and Finance Data Entry'!$A$30:$P$60,$D190,FALSE))=TRUE,"XXX",IF(VLOOKUP($C190,'Staffing and Finance Data Entry'!$A$30:$P$60,$D190,FALSE)=0,"XXX",VLOOKUP($C190,'Staffing and Finance Data Entry'!$A$30:$P$60,$D190,FALSE))) -> XXX
C191: 15 | D191: 14 | E191: Staffing-AfC8c-Q28 | G191: CH-Staffing-AfC8c-Q28 | H191: AfC 8c - Cytoscreeners | I191: =IF(ISERROR(VLOOKUP($C191,'Staffing and Finance Data Entry'!$A$30:$P$60,$D191,FALSE))=TRUE,"XXX",IF(VLOOKUP($C191,'Staffing and Finance Data Entry'!$A$30:$P$60,$D191,FALSE)=0,"XXX",VLOOKUP($C191,'Staffing and Finance Data Entry'!$A$30:$P$60,$D191,FALSE))) -> XXX
C192: 16 | D192: 14 | E192: Staffing-AfC8c-Q14 | G192: CH-Staffing-AfC8c-Q14 | H192: AfC 8c - Administrative and Clerical Staff | I192: =IF(ISERROR(VLOOKUP($C192,'Staffing and Finance Data Entry'!$A$30:$P$60,$D192,FALSE))=TRUE,"XXX",IF(VLOOKUP($C192,'Staffing and Finance Data Entry'!$A$30:$P$60,$D192,FALSE)=0,"XXX",VLOOKUP($C192,'Staffing and Finance Data Entry'!$A$30:$P$60,$D192,FALSE))) -> XXX
C193: 17 | D193: 14 | E193: Staffing-AfC8c-Q15 | G193: CH-Staffing-AfC8c-Q15 | H193: AfC 8c - Management Staff (Include Clinical Director, Finance Director, Lab Manager etc) | I193: =IF(ISERROR(VLOOKUP($C193,'Staffing and Finance Data Entry'!$A$30:$P$60,$D193,FALSE))=TRUE,"XXX",IF(VLOOKUP($C193,'Staffing and Finance Data Entry'!$A$30:$P$60,$D193,FALSE)=0,"XXX",VLOOKUP($C193,'Staffing and Finance Data Entry'!$A$30:$P$60,$D193,FALSE))) -> XXX
C194: 18 | D194: 14 | E194: Staffing-AfC8c-Q16 | G194: CH-Staffing-AfC8c-Q16 | H194: AfC 8c - Quality Managers | I194: =IF(ISERROR(VLOOKUP($C194,'Staffing and Finance Data Entry'!$A$30:$P$60,$D194,FALSE))=TRUE,"XXX",IF(VLOOKUP($C194,'Staffing and Finance Data Entry'!$A$30:$P$60,$D194,FALSE)=0,"XXX",VLOOKUP($C194,'Staffing and Finance Data Entry'!$A$30:$P$60,$D194,FALSE))) -> XXX
C195: 19 | D195: 14 | E195: Staffing-AfC8c-Q17 | G195: CH-Staffing-AfC8c-Q17 | H195: AfC 8c - IT Staff | I195: =IF(ISERROR(VLOOKUP($C195,'Staffing and Finance Data Entry'!$A$30:$P$60,$D195,FALSE))=TRUE,"XXX",IF(VLOOKUP($C195,'Staffing and Finance Data Entry'!$A$30:$P$60,$D195,FALSE)=0,"XXX",VLOOKUP($C195,'Staffing and Finance Data Entry'!$A$30:$P$60,$D195,FALSE))) -> XXX
C196: 20 | D196: 14 | E196: Staffing-AfC8c-Q18 | G196: CH-Staffing-AfC8c-Q18 | H196: AfC 8c - Remaning Other Staff | I196: =IF(ISERROR(VLOOKUP($C196,'Staffing and Finance Data Entry'!$A$30:$P$60,$D196,FALSE))=TRUE,"XXX",IF(VLOOKUP($C196,'Staffing and Finance Data Entry'!$A$30:$P$60,$D196,FALSE)=0,"XXX",VLOOKUP($C196,'Staffing and Finance Data Entry'!$A$30:$P$60,$D196,FALSE))) -> XXX
C197: 21 | D197: 14 | E197: Staffing-AfC8c-Q20 | G197: CH-Staffing-AfC8c-Q20 | H197: AfC 8c - Total | I197: =IF(SUM(I181:I196)=0,"XXX",SUM(I181:I196)) -> XXX
C198: 6 | D198: 15 | E198: Staffing-AfC8d-Q1 | G198: CH-Staffing-AfC8d-Q1 | H198: AfC 8d - Consultant Clinical Scientist | I198: =IF(ISERROR(VLOOKUP($C198,'Staffing and Finance Data Entry'!$A$30:$P$60,$D198,FALSE))=TRUE,"XXX",IF(VLOOKUP($C198,'Staffing and Finance Data Entry'!$A$30:$P$60,$D198,FALSE)=0,"XXX",VLOOKUP($C198,'Staffing and Finance Data Entry'!$A$30:$P$60,$D198,FALSE))) -> XXX
C199: 7 | D199: 15 | E199: Staffing-AfC8d-Q2 | G199: =CONCATENATE($F$2,"-",E199) -> CH-Staffing-AfC8d-Q2 | H199: AfC 8d - Non-Trainee, Non-Consultant Clinical Scientist | I199: =IF(ISERROR(VLOOKUP($C199,'Staffing and Finance Data Entry'!$A$30:$P$60,$D199,FALSE))=TRUE,"XXX",IF(VLOOKUP($C199,'Staffing and Finance Data Entry'!$A$30:$P$60,$D199,FALSE)=0,"XXX",VLOOKUP($C199,'Staffing and Finance Data Entry'!$A$30:$P$60,$D199,FALSE))) -> XXX
C200: 8 | D200: 15 | E200: Staffing-AfC8d-Q3 | G200: CH-Staffing-AfC8d-Q3 | H200: AfC 8d - Trainee Clinical Scientist (eg STP) - Internally Funded | I200: =IF(ISERROR(VLOOKUP($C200,'Staffing and Finance Data Entry'!$A$30:$P$60,$D200,FALSE))=TRUE,"XXX",IF(VLOOKUP($C200,'Staffing and Finance Data Entry'!$A$30:$P$60,$D200,FALSE)=0,"XXX",SUM(VLOOKUP($C200,'Staffing and Finance Data Entry'!$A$30:$P$60,$D200,FALSE)*'Staffing and Finance Data Entry'!$D$23))) -> XXX
C201: 9 | D201: 15 | E201: Staffing-AfC8d-Q4 | G201: CH-Staffing-AfC8d-Q4 | H201: AfC 8d - Trainee Clinical Scientist (eg STP) - Externally Funded | I201: =IF(ISERROR(VLOOKUP($C201,'Staffing and Finance Data Entry'!$A$30:$P$60,$D201,FALSE))=TRUE,"XXX",IF(VLOOKUP($C201,'Staffing and Finance Data Entry'!$A$30:$P$60,$D201,FALSE)=0,"XXX",SUM(VLOOKUP($C201,'Staffing and Finance Data Entry'!$A$30:$P$60,$D201,FALSE)*'Staffing and Finance Data Entry'!$D$23))) -> XXX
... 2054 more rows
